account_party,address,code,date,document_number,expense_code_name,expense_code_name_short,id,party_cell,party_cell_code,party_cell_geoobject,purpose,source_bank_account_number,source_bank_account_type,sum,target_legal_personality,target_legal_personality_code,target_type
Самопоміч,"Київ, вулиця Єреванська, 1",70,2017-12-29,TR.2504263.72483.2667,Банківські послуги,Інші витрати,49801,Київська обласна організація,39922721,Київська область,"Плата за розрахункове обслуговування по рахунку № 26007924419329.980 за період з 01\12\2017 по 31\12\2017 зг. договору № 2016/РКО/060-077 від 2016-10-13р, без ПДВ",26007924419329,current,30.00,"АБ ""Укргазбанк""",23697280,юридична особа
Самопоміч,"Київ, вулиця Єреванська, 1",70,2017-12-29,TR.2522104.59105.2667,Банківські послуги,Інші витрати,49800,Київська обласна організація,39922721,Київська область,"Абонплата за обслуговування в системі КІБ по рахунку 26007924419329.980 за період з 01\12\2017 по 31\12\2017 зг. договору № 2016/КИБ/060-064 від 2016-10-26р, без ПДВ",26007924419329,current,30.00,"АБ ""Укргазбанк""",23697280,юридична особа
Самопоміч,"Київ, вулиця Єреванська, 1",70,2017-12-29,TR.2504263.433766.2667,Банківські послуги,Інші витрати,49799,Київська обласна організація,39922721,Київська область,"Плата за розрахункове обслуговування по рахунку № 26007924419329.980 з 01\12\2017 по 29\12\2017 згідно Договору № 2016/РКО/060-077 від 2016-10-13р, без ПДВ",26007924419329,current,0.80,"АБ ""Укргазбанк""",23697280,юридична особа
Самопоміч,"Київ, вулиця Єреванська, 1",70,2017-12-29,TR.3531759.58438.266,Банківські послуги,Інші витрати,49791,Дніпровська міська організація,39959985,Дніпропетровська область,Абонплата за обслуговування в системі,26003924419196,current,30.00,"АБ ""Укргазбанк""",23697280,юридична особа
Самопоміч,"Київ, вулиця Андріївська, 2/12",70,2017-12-29,87732629,Банківські послуги,Інші витрати,49080,Центральний офіс,38558365,Україна,Комісія по рах. 26006530146200 UAH за ведення поточ.рах. за період з 2017-11-30 по 2017-12-31 зг. Дог. №03530146201 від 2014-09-17 без ПДВ,26006530146200,current,179.00,"АТ ""Укрсиббанк""",09807750,юридична особа
Самопоміч,"Київ, вулиця Госпітальна, 12Г",70,2017-12-29,148140139,Банківські послуги,Інші витрати,48880,Барська районна організація,39919455,Вінницька область,Списання щомісячної плати за обслуговування ТП Моя громада за за грудень 2017 р.,26000171311565,current,19.60,"АТ ""Ощадбанк""",00032129,юридична особа
Самопоміч,"Івано-Франківська область, Рожнятівський район, Нижній Струтинь",84,2017-12-28,519,"Заробітна плата, премії","Заробітна плата, лікарняні, вагітності, відрядження, компенсації",58956,Центральний офіс,38558365,Україна,Зарахування зарплати за грудень Самілів Г. В. на рахунок,26045903290725,current,3606.41,Самілів Галина Василівна,,фізична особа
Самопоміч,"Тернопільська область, Тернопіль, вулиця Лучаківського, 10, 101",58,2017-12-28,526,"Виготовлення друкованих матеріалів (плакатів, листівок, буклетів та інших агітаційних матеріалів)",Друкована агітація,52780,Центральний офіс,38558365,Україна,"Оплата за друк газети ""Обʼєднання ""Самопоміч"" 43,508 тис. шт., згідно рахунку на оплату № 277 від 2017-12-08 р.",26006530146200,current,33580.00,Красниця Теодозій Володимирович,1962702237,фізична особа
Самопоміч,"Львівська область, Львів, вулиця Стрийська, 35",62,2017-12-28,516,Сплата ЄСВ,Податкові платежі,52010,Центральний офіс,38558365,Україна,*;101;38558365; сплата єдиного соціального внеску 22% із зарплати працівника за грудень 2017 р. ;;;,26006530146200,current,985.60,Залізнична ОДПІ ГУ ДФС у Львівській області,39554382,юридична особа
Самопоміч,"Київ, проспект Перемоги, 67, 306",57,2017-12-28,421,Виготовлення брендованої продукції,"Виготовлення брендованої продукції (футболки, кепки, парасольки)",51538,Центральний офіс,38558365,Україна,"Оплата за футболки,записники та прапори з логотипом, згідно рахунку на оплату № 4633 від 29.08.17 р. у т.ч. ПДВ 20% - 1430,45 грн.",26006530146200,current,8582.70,"ТОВ ’Торговий Дім ""Еней""",38205868,юридична особа
Самопоміч,"Київ, проспект Перемоги, 67, 306",57,2017-12-28,473,Виготовлення брендованої продукції,"Виготовлення брендованої продукції (футболки, кепки, парасольки)",51537,Центральний офіс,38558365,Україна,"Оплата за футболки з логотипом, згідно рахунку на оплату № 4746 від 25.09.17 р. в т.ч. ПДВ 1418,40 грн.",26006530146200,current,8510.40,"ТОВ ’Торговий Дім ""Еней""",38205868,юридична особа
Самопоміч,"Київ, проспект Перемоги, 67, 306",57,2017-12-28,472,Виготовлення брендованої продукції,"Виготовлення брендованої продукції (футболки, кепки, парасольки)",51536,Центральний офіс,38558365,Україна,"Оплата за сумку бавовняну з логотипом, згідно рахунку на оплату № 4742 від 2017-09-25 р. в т.ч. ПДВ 2715,00 грн.",26006530146200,current,16290.00,"ТОВ ’Торговий Дім ""Еней""",38205868,юридична особа
Самопоміч,"Київ, проспект Перемоги, 67, 306",57,2017-12-28,513,Виготовлення брендованої продукції,"Виготовлення брендованої продукції (футболки, кепки, парасольки)",51535,Центральний офіс,38558365,Україна,"Оплата за рюкзаки з логотипом, згідно рахунку на оплату № 4745 від 2017-09-25 р. у т.ч. ПДВ 20% - 1667,80 грн.",26006530146200,current,10006.80,"ТОВ ’Торговий Дім ""Еней""",38205868,юридична особа
Самопоміч,"Київ, проспект Перемоги, 67, 306",57,2017-12-28,512,Виготовлення брендованої продукції,"Виготовлення брендованої продукції (футболки, кепки, парасольки)",51534,Центральний офіс,38558365,Україна,"Оплата за ручки кулькові з логотипом, згідно рахунку на оплату № 4744 від 2017-09-25 р. у т.ч. ПДВ 20% - 170,00 грн.",26006530146200,current,1020.00,"ТОВ ’Торговий Дім ""Еней""",38205868,юридична особа
Самопоміч,"Київ, проспект Перемоги, 67, 306",57,2017-12-28,510,Виготовлення брендованої продукції,"Виготовлення брендованої продукції (футболки, кепки, парасольки)",51533,Центральний офіс,38558365,Україна,"Оплата за прапори з логотипом та тримачі для прапора, згідно рахунку на оплату № 4255 від 2017-09-04 р. у т.ч. ПДВ 20% - 840,00 грн.",26006530146200,current,5040.00,"ТОВ ’Торговий Дім ""Еней""",38205868,юридична особа
Самопоміч,"Київ, проспект Перемоги, 67, 306",57,2017-12-28,515,Виготовлення брендованої продукції,"Виготовлення брендованої продукції (футболки, кепки, парасольки)",51532,Центральний офіс,38558365,Україна,"Оплата за ліхтарики з логотипом, згідно рахунку на оплату № 4743 від 2017-09-25 р. у т.ч. ПДВ 20% - 1720,00 грн.",26006530146200,current,10320.00,"ТОВ ’Торговий Дім ""Еней""",38205868,юридична особа
Самопоміч,"Київ, проспект Перемоги, 67, 306",57,2017-12-28,514,Виготовлення брендованої продукції,"Виготовлення брендованої продукції (футболки, кепки, парасольки)",51531,Центральний офіс,38558365,Україна,"Оплата за зошити А5 та блокноти А5 з логотипом, згідно рахунку на оплату № 4740 від 2017-09-25 р. у т.ч. ПДВ 20% - 751,00 грн.",26006530146200,current,4506.00,"ТОВ ’Торговий Дім ""Еней""",38205868,юридична особа
Самопоміч,"Київ, проспект Перемоги, 67, 306",57,2017-12-28,511,Виготовлення брендованої продукції,"Виготовлення брендованої продукції (футболки, кепки, парасольки)",51530,Центральний офіс,38558365,Україна,"Оплата за дощовики з логотипом, згідно рахунку на оплату № 4741 від 2017-09-25 р. у т.ч. ПДВ 20% - 1669,50 грн.",26006530146200,current,10017.00,"ТОВ ’Торговий Дім ""Еней""",38205868,юридична особа
Самопоміч,"Львівська область, Львів, вулиця Конотопська, 6",63,2017-12-28,518,Податок на доходи,Податкові платежі,51315,Центральний офіс,38558365,Україна,*;101;38558365; сплата ПДФО із зарплати працівника за грудень 2017 р. ;;; 11010100,26006530146200,current,806.40,УДКСУ у Франківському районі м. Львова,37965138,юридична особа
Самопоміч,"Львівська область, Львів, вулиця Конотопська, 6",61,2017-12-28,517,Військовий збір,Податкові платежі,51314,Центральний офіс,38558365,Україна,*;101;38558365; сплата військового збору із зарплати працівника за грудень 2017 р. ;;; 11011000,26006530146200,current,67.19,УДКСУ у Франківському районі м. Львова,37965138,юридична особа
Самопоміч,"Івано-Франківська область, Галицький район, Бурштин, вулиця Січових Стрільців, 27",51,2017-12-28,525,Оплата ефірного часу на ТБ,Телереклама,50902,Центральний офіс,38558365,Україна,"Оплата за виготовлення та трансляцію телепрограми ""Новий погляд"", згідно рахунку фактури № 214 від 2017-12-18 р.",26006530146200,current,8100.00,"ТОВ ""Телерадіокомпанія ""РАІ""",36983355,юридична особа
Самопоміч,"Львівська область, Львів, Соборна площа, 12",50,2017-12-28,521,Оплата ефірного часу на радіо,Реклама на радіо,50839,Центральний офіс,38558365,Україна,"Оплата за виготовлення та розміщення радіопрограм, згідно рахунку-фактури № СФ-0000477 від 2017-12-13 р. у т.ч. ПДВ 20% - 1200,00 грн.",26006530146200,current,7200.00,"ТОВ ""Телерадіокомпанія Галичина""",36610255,юридична особа
Самопоміч,"Львівська область, Львів, Соборна площа, 12",50,2017-12-28,520,Оплата ефірного часу на радіо,Реклама на радіо,50838,Центральний офіс,38558365,Україна,"Оплата за виготовлення та розміщення радіопрограм, згідно рахунку-фактури № СФ-0000454 від 2017-11-30 р. у т.ч. ПДВ 20% - 1200,00 грн.",26006530146200,current,7200.00,"ТОВ ""Телерадіокомпанія Галичина""",36610255,юридична особа
Самопоміч,"Львівська область, Львів, вулиця Юрія Липи, 45",50,2017-12-28,523,Оплата ефірного часу на радіо,Реклама на радіо,50419,Центральний офіс,38558365,Україна,"Оплата за розміщення інформаційних матеріалів в ефірі, згідно рахунку-фактури № 33 від 2017-11-30 р.",26006530146200,current,17640.00,"ПП ""ТРК ""Західна Столиця""",31804544,юридична особа
Самопоміч,"Львівська область, Львів, вулиця Юрія Липи, 45",50,2017-12-28,522,Оплата ефірного часу на радіо,Реклама на радіо,50418,Центральний офіс,38558365,Україна,"Оплата за розміщення інформаційних матеріалів в ефірі, згідно рахунку-фактури № 30 від 2017-10-31 р.",26006530146200,current,18990.00,"ПП ""ТРК ""Західна Столиця""",31804544,юридична особа
Самопоміч,"Дніпропетровська область, Дніпро́, вулиця Курсантська, 24",70,2017-12-28,459231,Банківські послуги,Інші витрати,50270,Одеська міська організація,39923299,Одеська область,За розрахункове обслуговування (без наявності оборотів на рахунку) зг Договору №26/80475/980 від 2015-09-18р. згідно тарифів банка. Без ПДВ,26007010353673,current,20.00,"ПАТ ""Банк Восток""",26237202,юридична особа
Самопоміч,"Львівська область, Львів, вулиця Князя Романа, 12",50,2017-12-28,524,Оплата ефірного часу на радіо,Реклама на радіо,49342,Центральний офіс,38558365,Україна,"Оплата за розміщення інформаційних матеріалів на радіо, згідно акту наданих послуг від 2017-12-01 р.",26006530146200,current,5367.60,"ТОВ ""Радіоінформаційний центр ""Незалежність""",20851970,юридична особа
Самопоміч,"Київ, вулиця Андріївська, 2/12",70,2017-12-28,1657359286,Банківські послуги,Інші витрати,49079,Центральний офіс,38558365,Україна,Комісія по рах. 26006530146200 UAH за зовнішній платіж СЕП ССП зг.Дог. №03530146201 від 2014-09-17 без ПДВ,26006530146200,current,3.00,"АТ ""Укрсиббанк""",09807750,юридична особа
Самопоміч,"Київ, вулиця Андріївська, 2/12",70,2017-12-28,1657359285,Банківські послуги,Інші витрати,49078,Центральний офіс,38558365,Україна,Комісія по рах. 26006530146200 UAH за зовнішній платіж СЕП ССП зг.Дог. №03530146201 від 2014-09-17 без ПДВ,26006530146200,current,3.00,"АТ ""Укрсиббанк""",09807750,юридична особа
Самопоміч,"Київ, вулиця Андріївська, 2/12",70,2017-12-28,1657389197,Банківські послуги,Інші витрати,49077,Центральний офіс,38558365,Україна,Комісія по рах. 26006530146200 UAH за зовнішній платіж СЕП ССП зг.Дог. №03530146201 від 2014-09-17 без ПДВ,26006530146200,current,3.00,"АТ ""Укрсиббанк""",09807750,юридична особа
Самопоміч,"Київ, вулиця Андріївська, 2/12",70,2017-12-28,1657368843,Банківські послуги,Інші витрати,49076,Центральний офіс,38558365,Україна,Комісія по рах. 26006530146200 UAH за зовнішній платіж СЕП ССП зг.Дог. №03530146201 від 2014-09-17 без ПДВ,26006530146200,current,3.00,"АТ ""Укрсиббанк""",09807750,юридична особа
Самопоміч,"Київ, вулиця Андріївська, 2/12",70,2017-12-28,1657359290,Банківські послуги,Інші витрати,49075,Центральний офіс,38558365,Україна,Комісія по рах. 26006530146200 UAH за зовнішній платіж СЕП ССП зг.Дог. №03530146201 від 2014-09-17 без ПДВ,26006530146200,current,3.00,"АТ ""Укрсиббанк""",09807750,юридична особа
Самопоміч,"Київ, вулиця Андріївська, 2/12",70,2017-12-28,1657368457,Банківські послуги,Інші витрати,49074,Центральний офіс,38558365,Україна,Комісія по рах. 26006530146200 UAH за зовнішній платіж СЕП ССП зг.Дог. №03530146201 від 2014-09-17 без ПДВ,26006530146200,current,3.00,"АТ ""Укрсиббанк""",09807750,юридична особа
Самопоміч,"Київ, вулиця Андріївська, 2/12",70,2017-12-28,1657368458,Банківські послуги,Інші витрати,49073,Центральний офіс,38558365,Україна,Комісія по рах. 26006530146200 UAH за зовнішній платіж СЕП ССП зг.Дог. №03530146201 від 2014-09-17 без ПДВ,26006530146200,current,3.00,"АТ ""Укрсиббанк""",09807750,юридична особа
Самопоміч,"Київ, вулиця Андріївська, 2/12",70,2017-12-28,1657368459,Банківські послуги,Інші витрати,49072,Центральний офіс,38558365,Україна,Комісія по рах. 26006530146200 UAH за зовнішній платіж СЕП ССП зг.Дог. №03530146201 від 2014-09-17 без ПДВ,26006530146200,current,3.00,"АТ ""Укрсиббанк""",09807750,юридична особа
Самопоміч,"Київ, вулиця Андріївська, 2/12",70,2017-12-28,1657368460,Банківські послуги,Інші витрати,49071,Центральний офіс,38558365,Україна,Комісія по рах. 26006530146200 UAH за зовнішній платіж СЕП ССП зг.Дог. №03530146201 від 2014-09-17 без ПДВ,26006530146200,current,3.00,"АТ ""Укрсиббанк""",09807750,юридична особа
Самопоміч,"Київ, вулиця Андріївська, 2/12",70,2017-12-28,1657368461,Банківські послуги,Інші витрати,49070,Центральний офіс,38558365,Україна,Комісія по рах. 26006530146200 UAH за зовнішній платіж СЕП ССП зг.Дог. №03530146201 від 2014-09-17 без ПДВ,26006530146200,current,3.00,"АТ ""Укрсиббанк""",09807750,юридична особа
Самопоміч,"Київ, вулиця Андріївська, 2/12",70,2017-12-28,1657359289,Банківські послуги,Інші витрати,49069,Центральний офіс,38558365,Україна,Комісія по рах. 26006530146200 UAH за зовнішній платіж СЕП ССП зг.Дог. №03530146201 від 2014-09-17 без ПДВ,26006530146200,current,3.00,"АТ ""Укрсиббанк""",09807750,юридична особа
Самопоміч,"Київ, вулиця Андріївська, 2/12",70,2017-12-28,1657359288,Банківські послуги,Інші витрати,49068,Центральний офіс,38558365,Україна,Комісія по рах. 26006530146200 UAH за зовнішній платіж СЕП ССП зг.Дог. №03530146201 від 2014-09-17 без ПДВ,26006530146200,current,3.00,"АТ ""Укрсиббанк""",09807750,юридична особа
Самопоміч,"Київ, вулиця Андріївська, 2/12",70,2017-12-28,1657359287,Банківські послуги,Інші витрати,49067,Центральний офіс,38558365,Україна,Комісія по рах. 26006530146200 UAH за зовнішній платіж СЕП ССП зг.Дог. №03530146201 від 2014-09-17 без ПДВ,26006530146200,current,3.00,"АТ ""Укрсиббанк""",09807750,юридична особа
Самопоміч,"Київ, вулиця Андріївська, 2/12",70,2017-12-28,1657359295,Банківські послуги,Інші витрати,49066,Центральний офіс,38558365,Україна,Комісія по рах. 26006530146200 UAH за зовнішній платіж СЕП ССП зг.Дог. №03530146201 від 2014-09-17 без ПДВ,26006530146200,current,3.00,"АТ ""Укрсиббанк""",09807750,юридична особа
Самопоміч,"Київ, вулиця Андріївська, 2/12",70,2017-12-28,1657359294,Банківські послуги,Інші витрати,49065,Центральний офіс,38558365,Україна,Комісія по рах. 26006530146200 UAH за зовнішній платіж СЕП ССП зг.Дог. №03530146201 від 2014-09-17 без ПДВ,26006530146200,current,3.00,"АТ ""Укрсиббанк""",09807750,юридична особа
Самопоміч,"Київ, вулиця Андріївська, 2/12",70,2017-12-28,1657359293,Банківські послуги,Інші витрати,49064,Центральний офіс,38558365,Україна,Комісія по рах. 26006530146200 UAH за зовнішній платіж СЕП ССП зг.Дог. №03530146201 від 2014-09-17 без ПДВ,26006530146200,current,3.00,"АТ ""Укрсиббанк""",09807750,юридична особа
Самопоміч,"Київ, вулиця Андріївська, 2/12",70,2017-12-28,1657359292,Банківські послуги,Інші витрати,49063,Центральний офіс,38558365,Україна,Комісія по рах. 26006530146200 UAH за зовнішній платіж СЕП ССП зг.Дог. №03530146201 від 2014-09-17 без ПДВ,26006530146200,current,3.00,"АТ ""Укрсиббанк""",09807750,юридична особа
Самопоміч,"Київ, вулиця Андріївська, 2/12",70,2017-12-28,1657359291,Банківські послуги,Інші витрати,49062,Центральний офіс,38558365,Україна,Комісія по рах. 26006530146200 UAH за зовнішній платіж СЕП ССП зг.Дог. №03530146201 від 2014-09-17 без ПДВ,26006530146200,current,3.00,"АТ ""Укрсиббанк""",09807750,юридична особа
Самопоміч,"Київ, вулиця Андріївська, 2/12",70,2017-12-28,1657352284,Банківські послуги,Інші витрати,49061,Центральний офіс,38558365,Україна,Комісія по рах. 26006530146200 UAH за зовнішній платіж СЕП ССП зг.Дог. №03530146201 від 2014-09-17 без ПДВ,26006530146200,current,3.00,"АТ ""Укрсиббанк""",09807750,юридична особа
Самопоміч,"Львівська область, Львів",83,2017-12-26,4614,"Виплати працівникам (не зарплата): лікарняні, вагітності, відрядження, компенсації ","Заробітна плата, лікарняні, вагітності, відрядження, компенсації",59651,Центральний офіс,38558365,Україна,відрядження,26008924418040,state,2097.84,Кучеренко Олексій Ігорович,,фізична особа
Самопоміч,"Херсонська область, Херсон, вулиця Тираспольська, 21",58,2017-12-26,4609,"Виготовлення друкованих матеріалів (плакатів, листівок, буклетів та інших агітаційних матеріалів)",Друкована агітація,52982,Центральний офіс,38558365,Україна,"Оплата за виготовлення друкованої продукції, згідно рахунку на оплату № 241 від 2017-11-01 р.",26008924418040,state,28560.00,Кузнецов Дмитро Борисович,2424201951,фізична особа
Самопоміч,"Львівська область, Львів, вулиця Генерала Чупринки, 110, 7",57,2017-12-26,4619,Виготовлення брендованої продукції,"Виготовлення брендованої продукції (футболки, кепки, парасольки)",52672,Центральний офіс,38558365,Україна,"Оплата за брендовані флісові шарфи 150*20 см, згідно рахунку-фактури № 50 від 2017-12-05р.",26008924418040,state,5336.24,Портах Володимир Степанович,1702716055,фізична особа
Самопоміч,"Київ, вулиця Казимира Малевича, 86Б",58,2017-12-26,4616,"Виготовлення друкованих матеріалів (плакатів, листівок, буклетів та інших агітаційних матеріалів)",Друкована агітація,52532,Центральний офіс,38558365,Україна,"Оплата за буклети, згідно рахунку № 320 від 2017-12-15 р.",26008924418040,state,9510.00,"ТОВ ""Київміськреклама""",40827200,юридична особа
Самопоміч,"Київ, проспект Перемоги, 67, 306",57,2017-12-26,4612,Виготовлення брендованої продукції,"Виготовлення брендованої продукції (футболки, кепки, парасольки)",51702,Центральний офіс,38558365,Україна,"Оплата за ручки, прапори, зошити з логотипом та вудлище під прапора, згідно рахунку на оплату № 6399 від 13.11.17р. в т.ч. ПДВ 32990.30 грн.",26008924418040,state,197941.80,"ТОВ ’Торговий Дім ""Еней""",38205868,юридична особа
Самопоміч,"Львівська область, Радехівський район, Радехів, вулиця Івана Франка, 2",79,2017-12-26,4615,"Оренда будинків і приміщень та експлуатаційні витрати (прибирання, страхування орендованих будинків, охорона, сигналізація, ремонт, вивіз сміття, тощо)",Оренда нерухомості,51454,Центральний офіс,38558365,Україна,"Оплата за оренду нежитлового приміщення за листопад 2017 р., згідно рахунку № 36/11 від 2017-12-20 р.",26008924418040,state,625.60,Радехівська міська рада,37976988,юридична особа
Самопоміч,"Тернопільська область, Тернопіль, вулиця Текстильна, 28",75,2017-12-26,4611,Поштові послуги та поширення друкованих матеріалів,Поштові послуги та поширення друкованих матеріалів,50895,Центральний офіс,38558365,Україна,"Відшкод. витрат приймання передплати і доставки періодичних друк.видань у грудні 2017р,зг. акту від 2017-12-21р до договору доручення №0103/17 від 2017-301р.",26008924418040,state,674571.38,"ТОВ ""ПОДІЛЛЯ-ТЕР""",36829762,юридична особа
Самопоміч,"Харківська область, Харків, майдан Свободи, 7",51,2017-12-26,4608,Оплата ефірного часу на ТБ,Телереклама,50669,Центральний офіс,38558365,Україна,"Оплата за прокат відеоматеріалу в ефірі телеканалу ʼSimonʼ 2017-12-21р., згідно акту №ОУ-0000089 від 2017-12-21р.",26008924418040,state,12000.00,ТОВ 'Медіа група 'Обʼєктив',34468048,юридична особа
Самопоміч,"Київ, вулиця Олени Теліги, 3",58,2017-12-26,4617,"Виготовлення друкованих матеріалів (плакатів, листівок, буклетів та інших агітаційних матеріалів)",Друкована агітація,50424,Центральний офіс,38558365,Україна,"Оплата за листівки, згідно рахунку-фактури № 112201 від 2017-11-22 р. в т.ч. ПДВ 1620.00 грн.",26008924418040,state,9720.00,"ПП ""ГРАНД-ПРІНГ""",32049969,юридична особа
Самопоміч,"Київ, вулиця Олени Теліги, 3",58,2017-12-26,4618,"Виготовлення друкованих матеріалів (плакатів, листівок, буклетів та інших агітаційних матеріалів)",Друкована агітація,50423,Центральний офіс,38558365,Україна,"Оплата за банери та банери на палатку, згідно рахунку-фактури № 121501 від 2017-12-15 р. в т.ч. ПДВ 1368.80 грн.",26008924418040,state,8212.80,"ПП ""ГРАНД-ПРІНГ""",32049969,юридична особа
Самопоміч,"Львівська область, Львів, вулиця Пасічна, 129",58,2017-12-26,4610,"Виготовлення друкованих матеріалів (плакатів, листівок, буклетів та інших агітаційних матеріалів)",Друкована агітація,50299,Центральний офіс,38558365,Україна,"Часткова оплата за папір газетний, згідно рахунку на оплату № 35 від 2017-12-13 р. в т.ч. ПДВ 20239,52 грн.",26008924418040,state,121437.12,ТОВ ʼЕхоʼ,30583745,юридична особа
Самопоміч,"Київ, вулиця Єреванська, 1",70,2017-12-26,4613,Банківські послуги,Інші витрати,49787,Центральний офіс,38558365,Україна,Банківська комісія за відшкодування відрядних витрат,26008924418040,state,10.49,"АБ ""Укргазбанк""",23697280,юридична особа
Самопоміч,Київ,84,2017-12-22,38,"Заробітна плата, премії","Заробітна плата, лікарняні, вагітності, відрядження, компенсації",62282,Київська міська організація,39842314,Київ,Зарплата за 2 пол. грудень 2017р.,26005056218695,current,435.39,Олішевець Альона Олександрівна,,фізична особа
Самопоміч,Київ,84,2017-12-22,38,"Заробітна плата, премії","Заробітна плата, лікарняні, вагітності, відрядження, компенсації",62281,Київська міська організація,39842314,Київ,Зарплата за 2 пол. грудень 2017р.,26005056218695,current,763.94,Зубер Світлана Олександрівна,,фізична особа
Самопоміч,"Івано-Франківська область, Івано-Франківськ",84,2017-12-22,38,"Заробітна плата, премії","Заробітна плата, лікарняні, вагітності, відрядження, компенсації",62280,Київська міська організація,39842314,Київ,Зарплата за 2 пол. грудень 2017р.,26005056218695,current,4862.50,Томин Марʼяна Миколаївна,,фізична особа
Самопоміч,Київ,84,2017-12-22,38,"Заробітна плата, премії","Заробітна плата, лікарняні, вагітності, відрядження, компенсації",62279,Київська міська організація,39842314,Київ,Зарплата за 2 пол. грудень 2017р.,26005056218695,current,4862.50,Олішевець Євген Олександрович,,фізична особа
Самопоміч,Київ,84,2017-12-22,38,"Заробітна плата, премії","Заробітна плата, лікарняні, вагітності, відрядження, компенсації",62278,Київська міська організація,39842314,Київ,Зарплата за 2 пол. грудень 2017р.,26005056218695,current,1226.00,Форос Анастасія Василівна,,фізична особа
Самопоміч,"Херсонська область, Херсон",84,2017-12-22,156,"Заробітна плата, премії","Заробітна плата, лікарняні, вагітності, відрядження, компенсації",62253,Центральний офіс,38558365,Україна,Зарплата,26008924418040,state,1988.54,Усенко Марина Владленівна,,фізична особа
Самопоміч,"Черкаська область, Черкаси",84,2017-12-22,156,"Заробітна плата, премії","Заробітна плата, лікарняні, вагітності, відрядження, компенсації",62252,Центральний офіс,38558365,Україна,Зарплата,26008924418040,state,1811.25,Козиряй Тетяна Володимирівна,,фізична особа
Самопоміч,"Львівська область, Львів",84,2017-12-22,156,"Заробітна плата, премії","Заробітна плата, лікарняні, вагітності, відрядження, компенсації",62251,Центральний офіс,38558365,Україна,Зарплата,26008924418040,state,1851.65,Пойда Юлія Дмитрівна,,фізична особа
Самопоміч,"Вінницька область, Тульчинський район, Тульчин",84,2017-12-22,156,"Заробітна плата, премії","Заробітна плата, лікарняні, вагітності, відрядження, компенсації",62250,Центральний офіс,38558365,Україна,Зарплата,26008924418040,state,1082.89,Цугуй Ауріка Іванівна,,фізична особа
Самопоміч,"Черкаська область, Черкаси",84,2017-12-22,156,"Заробітна плата, премії","Заробітна плата, лікарняні, вагітності, відрядження, компенсації",62249,Центральний офіс,38558365,Україна,Зарплата,26008924418040,state,177.30,Скічко Вʼячеслав Павлович,,фізична особа
Самопоміч,"Кіровоградська область, Благовіщенський район, Благовіщенське",84,2017-12-22,156,"Заробітна плата, премії","Заробітна плата, лікарняні, вагітності, відрядження, компенсації",62248,Центральний офіс,38558365,Україна,Зарплата,26008924418040,state,3605.62,Суслов Роман Дмитрович,,фізична особа
Самопоміч,"Житомирська область, Ружинський район, Ружин",84,2017-12-22,156,"Заробітна плата, премії","Заробітна плата, лікарняні, вагітності, відрядження, компенсації",62247,Центральний офіс,38558365,Україна,Зарплата,26008924418040,state,740.60,Ткачук Богдан Олександрович,,фізична особа
Самопоміч,"Полтавська область, Полтава",84,2017-12-22,156,"Заробітна плата, премії","Заробітна плата, лікарняні, вагітності, відрядження, компенсації",62246,Центральний офіс,38558365,Україна,Зарплата,26008924418040,state,1845.77,Бистрицька Катерина Сергіївна,,фізична особа
Самопоміч,"Херсонська область, Херсон",84,2017-12-22,156,"Заробітна плата, премії","Заробітна плата, лікарняні, вагітності, відрядження, компенсації",62245,Центральний офіс,38558365,Україна,Зарплата,26008924418040,state,706.10,Шахов Володимир Анатолійович,,фізична особа
Самопоміч,Вінницька область,84,2017-12-22,156,"Заробітна плата, премії","Заробітна плата, лікарняні, вагітності, відрядження, компенсації",62244,Центральний офіс,38558365,Україна,Зарплата,26008924418040,state,1501.48,Стефаненко Людмила Ксенофонтівна,,фізична особа
Самопоміч,"Черкаська область, Тальнівський район, Тальне",84,2017-12-22,156,"Заробітна плата, премії","Заробітна плата, лікарняні, вагітності, відрядження, компенсації",62243,Центральний офіс,38558365,Україна,Зарплата,26008924418040,state,1449.01,Наливайко Інна Миколаївна,,фізична особа
Самопоміч,"Хмельницька область, Кам'янець-Подільський",84,2017-12-22,156,"Заробітна плата, премії","Заробітна плата, лікарняні, вагітності, відрядження, компенсації",62242,Центральний офіс,38558365,Україна,Зарплата,26008924418040,state,1649.16,Гнидюк Олександр Анатолійович,,фізична особа
Самопоміч,Київ,84,2017-12-22,156,"Заробітна плата, премії","Заробітна плата, лікарняні, вагітності, відрядження, компенсації",62241,Центральний офіс,38558365,Україна,Зарплата,26008924418040,state,4681.37,Сидоренко Ольга Валеріївна,,фізична особа
Самопоміч,"Львівська область, Львів",84,2017-12-22,156,"Заробітна плата, премії","Заробітна плата, лікарняні, вагітності, відрядження, компенсації",62240,Центральний офіс,38558365,Україна,Зарплата,26008924418040,state,1479.18,Машталір Сергій Геннадійович,,фізична особа
Самопоміч,"Івано-Франківська область, Тлумацький район, Тлумач",84,2017-12-22,156,"Заробітна плата, премії","Заробітна плата, лікарняні, вагітності, відрядження, компенсації",62239,Центральний офіс,38558365,Україна,Зарплата,26008924418040,state,1203.17,Гнатюк Петро Михайлович,,фізична особа
Самопоміч,Київ,84,2017-12-22,156,"Заробітна плата, премії","Заробітна плата, лікарняні, вагітності, відрядження, компенсації",62238,Центральний офіс,38558365,Україна,Зарплата,26008924418040,state,10830.09,Лисенко Марія Михайлівна,,фізична особа
Самопоміч,"Івано-Франківська область, Богородчанський район, Богородчани",84,2017-12-22,156,"Заробітна плата, премії","Заробітна плата, лікарняні, вагітності, відрядження, компенсації",62237,Центральний офіс,38558365,Україна,Зарплата,26008924418040,state,7833.33,Никорович Святослав Ігорович,,фізична особа
Самопоміч,"Львівська область, Перемишлянський район, Перемишляни",84,2017-12-22,156,"Заробітна плата, премії","Заробітна плата, лікарняні, вагітності, відрядження, компенсації",62236,Центральний офіс,38558365,Україна,Зарплата,26008924418040,state,640.46,Рацька Руслана Іванівна,,фізична особа
Самопоміч,"Вінницька область, Жмеринка",84,2017-12-22,156,"Заробітна плата, премії","Заробітна плата, лікарняні, вагітності, відрядження, компенсації",62235,Центральний офіс,38558365,Україна,Зарплата,26008924418040,state,1206.01,Романцов Василь Іванович,,фізична особа
Самопоміч,"Львівська область, Львів",84,2017-12-22,156,"Заробітна плата, премії","Заробітна плата, лікарняні, вагітності, відрядження, компенсації",62234,Центральний офіс,38558365,Україна,Зарплата,26008924418040,state,1358.69,Дунаєвська Марія Михайлівна,,фізична особа
Самопоміч,"Тернопільська область, Тернопіль",84,2017-12-22,156,"Заробітна плата, премії","Заробітна плата, лікарняні, вагітності, відрядження, компенсації",62233,Центральний офіс,38558365,Україна,Зарплата,26008924418040,state,1361.23,Коваль Ірина Геннадіївна,,фізична особа
Самопоміч,"Хмельницька область, Хмельницький",84,2017-12-22,156,"Заробітна плата, премії","Заробітна плата, лікарняні, вагітності, відрядження, компенсації",62232,Центральний офіс,38558365,Україна,Зарплата,26008924418040,state,2245.95,Радченко Олександр Петрович,,фізична особа
Самопоміч,Волинська область,84,2017-12-22,156,"Заробітна плата, премії","Заробітна плата, лікарняні, вагітності, відрядження, компенсації",62231,Центральний офіс,38558365,Україна,Зарплата,26008924418040,state,1441.75,Хомич Анна Володимирівна,,фізична особа
Самопоміч,"Львівська область, Львів",84,2017-12-22,156,"Заробітна плата, премії","Заробітна плата, лікарняні, вагітності, відрядження, компенсації",62230,Центральний офіс,38558365,Україна,Зарплата,26008924418040,state,1552.16,Сиротяк Андрій Васильович,,фізична особа
Самопоміч,"Одеська область, Одеса",84,2017-12-22,156,"Заробітна плата, премії","Заробітна плата, лікарняні, вагітності, відрядження, компенсації",62229,Центральний офіс,38558365,Україна,Зарплата,26008924418040,state,2962.18,Якових Олександра Володимирівна,,фізична особа
Самопоміч,"Львівська область, Львів",84,2017-12-22,156,"Заробітна плата, премії","Заробітна плата, лікарняні, вагітності, відрядження, компенсації",62228,Центральний офіс,38558365,Україна,Зарплата,26008924418040,state,6755.96,Кучеренко Олексій Ігорович,,фізична особа
Самопоміч,"Харківська область, Харків",84,2017-12-22,156,"Заробітна плата, премії","Заробітна плата, лікарняні, вагітності, відрядження, компенсації",62227,Центральний офіс,38558365,Україна,Зарплата,26008924418040,state,826.63,Макуха Анжела Вадимівна,,фізична особа
Самопоміч,"Львівська область, Львів",84,2017-12-22,156,"Заробітна плата, премії","Заробітна плата, лікарняні, вагітності, відрядження, компенсації",62226,Центральний офіс,38558365,Україна,Зарплата,26008924418040,state,251.92,Драган Ірина Андріївна,,фізична особа
Самопоміч,"Хмельницька область, Хмельницький",84,2017-12-22,156,"Заробітна плата, премії","Заробітна плата, лікарняні, вагітності, відрядження, компенсації",62225,Центральний офіс,38558365,Україна,Зарплата,26008924418040,state,2292.76,Погребняк Ольга Олександрівна,,фізична особа
Самопоміч,"Львівська область, Радехівський район, Радехів",84,2017-12-22,156,"Заробітна плата, премії","Заробітна плата, лікарняні, вагітності, відрядження, компенсації",62224,Центральний офіс,38558365,Україна,Зарплата,26008924418040,state,345.19,Наконечний Володимир Романович,,фізична особа
Самопоміч,"Львівська область, Львів",84,2017-12-22,156,"Заробітна плата, премії","Заробітна плата, лікарняні, вагітності, відрядження, компенсації",62223,Центральний офіс,38558365,Україна,Зарплата,26008924418040,state,5255.75,Яремчук Роман Володимирович,,фізична особа
Самопоміч,"Тернопільська область, Козівський район, Козова",84,2017-12-22,156,"Заробітна плата, премії","Заробітна плата, лікарняні, вагітності, відрядження, компенсації",62222,Центральний офіс,38558365,Україна,Зарплата,26008924418040,state,45.34,Шевчик Артем Ігорович,,фізична особа
Самопоміч,"Житомирська область, Ємільчинський район",84,2017-12-22,156,"Заробітна плата, премії","Заробітна плата, лікарняні, вагітності, відрядження, компенсації",62221,Центральний офіс,38558365,Україна,Зарплата,26008924418040,state,50.22,Шомко Іван Вікторович,,фізична особа
Самопоміч,"Харківська область, Близнюківський район, Софіївка Перша",84,2017-12-22,156,"Заробітна плата, премії","Заробітна плата, лікарняні, вагітності, відрядження, компенсації",62220,Центральний офіс,38558365,Україна,Зарплата,26008924418040,state,1303.88,Матвієнко Олена Миколаївна,,фізична особа
Самопоміч,"Кіровоградська область, Світловодський район",84,2017-12-22,156,"Заробітна плата, премії","Заробітна плата, лікарняні, вагітності, відрядження, компенсації",62219,Центральний офіс,38558365,Україна,Зарплата,26008924418040,state,811.44,Орлова Юлія Василівна,,фізична особа
Самопоміч,"Тернопільська область, Тернопіль",84,2017-12-22,156,"Заробітна плата, премії","Заробітна плата, лікарняні, вагітності, відрядження, компенсації",62218,Центральний офіс,38558365,Україна,Зарплата,26008924418040,state,886.20,Станкевич Марія Петрівна,,фізична особа
Самопоміч,"Львівська область, Сокальський район, Сокаль",84,2017-12-22,156,"Заробітна плата, премії","Заробітна плата, лікарняні, вагітності, відрядження, компенсації",62217,Центральний офіс,38558365,Україна,Зарплата,26008924418040,state,4092.72,Вавринчук Зоряна Петрівна,,фізична особа
Самопоміч,"Черкаська область, Золотоноша",84,2017-12-22,156,"Заробітна плата, премії","Заробітна плата, лікарняні, вагітності, відрядження, компенсації",62216,Центральний офіс,38558365,Україна,Зарплата,26008924418040,state,1449.00,Луцик Оксана Олександрівна,,фізична особа
Самопоміч,"Івано-Франківська область, Тисменицький район, Тисмениця",84,2017-12-22,156,"Заробітна плата, премії","Заробітна плата, лікарняні, вагітності, відрядження, компенсації",62215,Центральний офіс,38558365,Україна,Зарплата,26008924418040,state,1159.20,Бас Христина Михайлівна,,фізична особа
Самопоміч,"Івано-Франківська область, Рогатинський район, Рогатин",84,2017-12-22,156,"Заробітна плата, премії","Заробітна плата, лікарняні, вагітності, відрядження, компенсації",62214,Центральний офіс,38558365,Україна,Зарплата,26008924418040,state,670.16,Воробець Христина Михайлівна,,фізична особа
Самопоміч,"Львівська область, Львів",84,2017-12-22,156,"Заробітна плата, премії","Заробітна плата, лікарняні, вагітності, відрядження, компенсації",62213,Центральний офіс,38558365,Україна,Зарплата,26008924418040,state,2402.77,Окрепка Ілона Геннадіївна,,фізична особа
Самопоміч,"Львівська область, Пустомитівський район",84,2017-12-22,156,"Заробітна плата, премії","Заробітна плата, лікарняні, вагітності, відрядження, компенсації",62212,Центральний офіс,38558365,Україна,Зарплата,26008924418040,state,389.06,Ортинська Ірина Валентинівна,,фізична особа
Самопоміч,"Львівська область, Львів",84,2017-12-22,156,"Заробітна плата, премії","Заробітна плата, лікарняні, вагітності, відрядження, компенсації",62211,Центральний офіс,38558365,Україна,Зарплата,26008924418040,state,9543.58,Зуб Ігор Романович,,фізична особа
Самопоміч,Київ,84,2017-12-22,156,"Заробітна плата, премії","Заробітна плата, лікарняні, вагітності, відрядження, компенсації",62210,Центральний офіс,38558365,Україна,Зарплата,26008924418040,state,2298.98,Берест Павло Михайлович,,фізична особа
Самопоміч,"Львівська область, Львів",84,2017-12-22,156,"Заробітна плата, премії","Заробітна плата, лікарняні, вагітності, відрядження, компенсації",62209,Центральний офіс,38558365,Україна,Зарплата,26008924418040,state,1041.62,Кізима Роман Михайлович,,фізична особа
Самопоміч,"Івано-Франківська область, Калуш",84,2017-12-22,156,"Заробітна плата, премії","Заробітна плата, лікарняні, вагітності, відрядження, компенсації",62208,Центральний офіс,38558365,Україна,Зарплата,26008924418040,state,2264.06,Воробйова Наталія Миколаївна,,фізична особа
Самопоміч,"Львівська область, Львів",84,2017-12-22,156,"Заробітна плата, премії","Заробітна плата, лікарняні, вагітності, відрядження, компенсації",62207,Центральний офіс,38558365,Україна,Зарплата,26008924418040,state,3783.71,Гнип Максим Стахович,,фізична особа
Самопоміч,"Львівська область, Львів",84,2017-12-22,156,"Заробітна плата, премії","Заробітна плата, лікарняні, вагітності, відрядження, компенсації",62206,Центральний офіс,38558365,Україна,Зарплата,26008924418040,state,2347.68,Главацька Аліна Володимирівна,,фізична особа
Самопоміч,"Львівська область, Львів",84,2017-12-22,156,"Заробітна плата, премії","Заробітна плата, лікарняні, вагітності, відрядження, компенсації",62205,Центральний офіс,38558365,Україна,Зарплата,26008924418040,state,1913.38,Куриляк Роксолана Любомирівна,,фізична особа
Самопоміч,Київ,84,2017-12-22,156,"Заробітна плата, премії","Заробітна плата, лікарняні, вагітності, відрядження, компенсації",62204,Центральний офіс,38558365,Україна,Зарплата,26008924418040,state,2007.04,Голубіцька Ольга Зенонівна,,фізична особа
Самопоміч,"Львівська область, Львів",84,2017-12-22,156,"Заробітна плата, премії","Заробітна плата, лікарняні, вагітності, відрядження, компенсації",62203,Центральний офіс,38558365,Україна,Зарплата,26008924418040,state,3195.65,Варунок Галина Степанівна,,фізична особа
Самопоміч,"Дніпропетровська область, Дніпро́",84,2017-12-22,156,"Заробітна плата, премії","Заробітна плата, лікарняні, вагітності, відрядження, компенсації",62202,Центральний офіс,38558365,Україна,Зарплата,26008924418040,state,2713.25,Плющова Анастасія Олексіївна,,фізична особа
Самопоміч,"Полтавська область, Лубни",84,2017-12-22,156,"Заробітна плата, премії","Заробітна плата, лікарняні, вагітності, відрядження, компенсації",62201,Центральний офіс,38558365,Україна,Зарплата,26008924418040,state,995.00,Балога Валентина Федорівна,,фізична особа
Самопоміч,"Київська обл., Бориспіль",84,2017-12-22,156,"Заробітна плата, премії","Заробітна плата, лікарняні, вагітності, відрядження, компенсації",62200,Центральний офіс,38558365,Україна,Зарплата,26008924418040,state,13534.06,Нестеренко Світлана Вадимівна,,фізична особа
Самопоміч,"Львівська область, Яворівський район, Яворів",84,2017-12-22,156,"Заробітна плата, премії","Заробітна плата, лікарняні, вагітності, відрядження, компенсації",62199,Центральний офіс,38558365,Україна,Зарплата,26008924418040,state,3244.21,Звір Юрій Васильович,,фізична особа
Самопоміч,"Житомирська область, Житомир",84,2017-12-22,156,"Заробітна плата, премії","Заробітна плата, лікарняні, вагітності, відрядження, компенсації",62198,Центральний офіс,38558365,Україна,Зарплата,26008924418040,state,3049.70,Байдик Анна Сергіївна,,фізична особа
Самопоміч,"Львівська область, Львів",84,2017-12-22,156,"Заробітна плата, премії","Заробітна плата, лікарняні, вагітності, відрядження, компенсації",62197,Центральний офіс,38558365,Україна,Зарплата,26008924418040,state,6303.00,Дунаєвська Ольга Євстахіївна,,фізична особа
Самопоміч,"Львівська область, Жидачівський район, Жидачів",84,2017-12-22,156,"Заробітна плата, премії","Заробітна плата, лікарняні, вагітності, відрядження, компенсації",62196,Центральний офіс,38558365,Україна,Зарплата,26008924418040,state,3682.88,Бурчин Володимир Миколайович,,фізична особа
Самопоміч,"Львівська область, Львів",84,2017-12-22,156,"Заробітна плата, премії","Заробітна плата, лікарняні, вагітності, відрядження, компенсації",62195,Центральний офіс,38558365,Україна,Зарплата,26008924418040,state,321.80,Тимців Наталія Василівна,,фізична особа
Самопоміч,"Львівська область, Львів",84,2017-12-22,156,"Заробітна плата, премії","Заробітна плата, лікарняні, вагітності, відрядження, компенсації",62194,Центральний офіс,38558365,Україна,Зарплата,26008924418040,state,8114.60,Камінська Ірина Степанівна,,фізична особа
Самопоміч,"Херсонська область, Херсон",84,2017-12-22,156,"Заробітна плата, премії","Заробітна плата, лікарняні, вагітності, відрядження, компенсації",62193,Центральний офіс,38558365,Україна,Зарплата,26008924418040,state,2784.54,Вірлич Євгенія Михайлівна,,фізична особа
Самопоміч,"Хмельницька область, Хмельницький",84,2017-12-22,156,"Заробітна плата, премії","Заробітна плата, лікарняні, вагітності, відрядження, компенсації",62192,Центральний офіс,38558365,Україна,Зарплата,26008924418040,state,1207.50,Коваль Альона Антонівна,,фізична особа
Самопоміч,"Дніпропетровська область, Павлоград",84,2017-12-22,156,"Заробітна плата, премії","Заробітна плата, лікарняні, вагітності, відрядження, компенсації",62191,Центральний офіс,38558365,Україна,Зарплата,26008924418040,state,1593.68,Пономаренко Анастасія Станіславівна,,фізична особа
Самопоміч,"Житомирська область, Житомир",84,2017-12-22,156,"Заробітна плата, премії","Заробітна плата, лікарняні, вагітності, відрядження, компенсації",62190,Центральний офіс,38558365,Україна,Зарплата,26008924418040,state,1575.79,Мачульська Катерина Володимирівна,,фізична особа
Самопоміч,Івано-Франківська область,84,2017-12-22,156,"Заробітна плата, премії","Заробітна плата, лікарняні, вагітності, відрядження, компенсації",62189,Центральний офіс,38558365,Україна,Зарплата,26008924418040,state,2264.06,Іщенко Олександра Євгенівна,,фізична особа
Самопоміч,"Закарпатська область, Рахівський район, Рахів",84,2017-12-22,156,"Заробітна плата, премії","Заробітна плата, лікарняні, вагітності, відрядження, компенсації",62188,Центральний офіс,38558365,Україна,Зарплата,26008924418040,state,1159.20,Губко Богдан Валентинович,,фізична особа
Самопоміч,"Львівська область, Львів",84,2017-12-22,156,"Заробітна плата, премії","Заробітна плата, лікарняні, вагітності, відрядження, компенсації",62187,Центральний офіс,38558365,Україна,Зарплата,26008924418040,state,3271.01,Котляров Олександр Володимирович,,фізична особа
Самопоміч,"Волинська область, Ратнівський район",84,2017-12-22,156,"Заробітна плата, премії","Заробітна плата, лікарняні, вагітності, відрядження, компенсації",62186,Центральний офіс,38558365,Україна,Зарплата,26008924418040,state,1122.98,Базарнова Оксана Анатоліївна,,фізична особа
Самопоміч,"Львівська область, Львів",84,2017-12-22,156,"Заробітна плата, премії","Заробітна плата, лікарняні, вагітності, відрядження, компенсації",62185,Центральний офіс,38558365,Україна,Зарплата,26008924418040,state,754.95,Матіяш Василь Зіновійович,,фізична особа
Самопоміч,"Львівська область, Пустомитівський район",84,2017-12-22,156,"Заробітна плата, премії","Заробітна плата, лікарняні, вагітності, відрядження, компенсації",62184,Центральний офіс,38558365,Україна,Зарплата,26008924418040,state,7938.86,Бордун Галина Володимирівна,,фізична особа
Самопоміч,"Полтавська область, Кременчуцький район, Горішні Плавні",84,2017-12-22,156,"Заробітна плата, премії","Заробітна плата, лікарняні, вагітності, відрядження, компенсації",62183,Центральний офіс,38558365,Україна,Зарплата,26008924418040,state,979.18,Попович Наталія Фірузівна,,фізична особа
Самопоміч,"Тернопільська область, Бережанський район, Бережани",84,2017-12-22,156,"Заробітна плата, премії","Заробітна плата, лікарняні, вагітності, відрядження, компенсації",62182,Центральний офіс,38558365,Україна,Зарплата,26008924418040,state,672.33,Гурак Зоряна Іванівна,,фізична особа
Самопоміч,"Київська обл., Васильківський район",84,2017-12-22,156,"Заробітна плата, премії","Заробітна плата, лікарняні, вагітності, відрядження, компенсації",62181,Центральний офіс,38558365,Україна,Зарплата,26008924418040,state,3840.13,Шевченко Олександр Леонідович,,фізична особа
Самопоміч,"Івано-Франківська область, Коломийський район, Коломия",84,2017-12-22,156,"Заробітна плата, премії","Заробітна плата, лікарняні, вагітності, відрядження, компенсації",62180,Центральний офіс,38558365,Україна,Зарплата,26008924418040,state,692.30,Малиш Орест Ярославович,,фізична особа
Самопоміч,Київ,84,2017-12-22,156,"Заробітна плата, премії","Заробітна плата, лікарняні, вагітності, відрядження, компенсації",62179,Центральний офіс,38558365,Україна,Зарплата,26008924418040,state,1082.89,Чоп Наталія Богданівна,,фізична особа
Самопоміч,"Дніпропетровська область, Кам’янське",84,2017-12-22,156,"Заробітна плата, премії","Заробітна плата, лікарняні, вагітності, відрядження, компенсації",62178,Центральний офіс,38558365,Україна,Зарплата,26008924418040,state,1459.59,Олянюк Олена Анатоліївна,,фізична особа
Самопоміч,"Черкаська область, Корсунь-Шевченківський район, Корсунь-Шевченківський",84,2017-12-22,156,"Заробітна плата, премії","Заробітна плата, лікарняні, вагітності, відрядження, компенсації",62177,Центральний офіс,38558365,Україна,Зарплата,26008924418040,state,1488.58,Почтар Олександр Васильович,,фізична особа
Самопоміч,Київ,84,2017-12-22,156,"Заробітна плата, премії","Заробітна плата, лікарняні, вагітності, відрядження, компенсації",62176,Центральний офіс,38558365,Україна,Зарплата,26008924418040,state,3197.06,Гапоненко Владислав Геннадійович,,фізична особа
Самопоміч,"Тернопільська область, Тернопіль",84,2017-12-22,156,"Заробітна плата, премії","Заробітна плата, лікарняні, вагітності, відрядження, компенсації",62175,Центральний офіс,38558365,Україна,Зарплата,26008924418040,state,3604.39,Гарасимів Зоряна Володимирівна,,фізична особа
Самопоміч,"Одеська область, Чорноморськ",84,2017-12-22,156,"Заробітна плата, премії","Заробітна плата, лікарняні, вагітності, відрядження, компенсації",62174,Центральний офіс,38558365,Україна,Зарплата,26008924418040,state,1006.24,Стеценко Наталя Вікторівна,,фізична особа
Самопоміч,"Полтавська область, Великобагачанський район, Велика Багачка",84,2017-12-22,156,"Заробітна плата, премії","Заробітна плата, лікарняні, вагітності, відрядження, компенсації",62173,Центральний офіс,38558365,Україна,Зарплата,26008924418040,state,1203.17,Ворона Віктор Іванович,,фізична особа
Самопоміч,"Вінницька область, Бершадський район, Бершадь",84,2017-12-22,156,"Заробітна плата, премії","Заробітна плата, лікарняні, вагітності, відрядження, компенсації",62172,Центральний офіс,38558365,Україна,Зарплата,26008924418040,state,1159.20,Гаврильченко Наталія Володимирівна,,фізична особа
Самопоміч,"Волинська область, Турійський район, Турійськ",84,2017-12-22,156,"Заробітна плата, премії","Заробітна плата, лікарняні, вагітності, відрядження, компенсації",62171,Центральний офіс,38558365,Україна,Зарплата,26008924418040,state,677.41,Лемещук Олександр Петрович,,фізична особа
Самопоміч,"Львівська область, Львів",84,2017-12-22,156,"Заробітна плата, премії","Заробітна плата, лікарняні, вагітності, відрядження, компенсації",62170,Центральний офіс,38558365,Україна,Зарплата,26008924418040,state,3019.46,Косович Ліліана Володимирівна,,фізична особа
Самопоміч,Київ,84,2017-12-22,156,"Заробітна плата, премії","Заробітна плата, лікарняні, вагітності, відрядження, компенсації",62169,Центральний офіс,38558365,Україна,Зарплата,26008924418040,state,6729.80,Боляк Ігор Васильович,,фізична особа
Самопоміч,Київ,84,2017-12-22,156,"Заробітна плата, премії","Заробітна плата, лікарняні, вагітності, відрядження, компенсації",62168,Центральний офіс,38558365,Україна,Зарплата,26008924418040,state,1097.72,Корніченко Леся Владиславівна,,фізична особа
Самопоміч,"Одеська область, Одеса",84,2017-12-22,156,"Заробітна плата, премії","Заробітна плата, лікарняні, вагітності, відрядження, компенсації",62167,Центральний офіс,38558365,Україна,Зарплата,26008924418040,state,1111.68,Драганов Станіслав Сергійович,,фізична особа
Самопоміч,"Вінницька область, Гайсинський район, Гайсин",84,2017-12-22,156,"Заробітна плата, премії","Заробітна плата, лікарняні, вагітності, відрядження, компенсації",62166,Центральний офіс,38558365,Україна,Зарплата,26008924418040,state,746.13,Сіньковська Вікторія Олександрівна,,фізична особа
Самопоміч,"Хмельницька область, Дунаєвецький район, Маків",84,2017-12-22,156,"Заробітна плата, премії","Заробітна плата, лікарняні, вагітності, відрядження, компенсації",62165,Центральний офіс,38558365,Україна,Зарплата,26008924418040,state,1261.33,Воропай Юлія Вікторівна,,фізична особа
Самопоміч,"Одеська область, Чорноморськ",84,2017-12-22,156,"Заробітна плата, премії","Заробітна плата, лікарняні, вагітності, відрядження, компенсації",62164,Центральний офіс,38558365,Україна,Зарплата,26008924418040,state,2043.21,Кочан Анна Олександрівна,,фізична особа
Самопоміч,"Львівська область, Сколівський район, Сколе",84,2017-12-22,156,"Заробітна плата, премії","Заробітна плата, лікарняні, вагітності, відрядження, компенсації",62163,Центральний офіс,38558365,Україна,Зарплата,26008924418040,state,579.60,Гуфчак Маріанна Марʼянівна,,фізична особа
Самопоміч,"Дніпропетровська область, Дніпро́",84,2017-12-22,156,"Заробітна плата, премії","Заробітна плата, лікарняні, вагітності, відрядження, компенсації",62162,Центральний офіс,38558365,Україна,Зарплата,26008924418040,state,2713.25,Наказіна Ольга Олександрівна,,фізична особа
Самопоміч,Хмельницька область,84,2017-12-22,156,"Заробітна плата, премії","Заробітна плата, лікарняні, вагітності, відрядження, компенсації",62161,Центральний офіс,38558365,Україна,Зарплата,26008924418040,state,1002.72,Закурдаєв Віктор Іванович,,фізична особа
Самопоміч,Львівська область,84,2017-12-22,156,"Заробітна плата, премії","Заробітна плата, лікарняні, вагітності, відрядження, компенсації",62160,Центральний офіс,38558365,Україна,Зарплата,26008924418040,state,3196.96,Давидович Любов Павлівна,,фізична особа
Самопоміч,"Тернопільська область, Чортківський район, Чортків",84,2017-12-22,156,"Заробітна плата, премії","Заробітна плата, лікарняні, вагітності, відрядження, компенсації",62159,Центральний офіс,38558365,Україна,Зарплата,26008924418040,state,2699.11,Заболотний Назар Володимирович,,фізична особа
Самопоміч,"Львівська область, Червоноград",84,2017-12-22,156,"Заробітна плата, премії","Заробітна плата, лікарняні, вагітності, відрядження, компенсації",62158,Центральний офіс,38558365,Україна,Зарплата,26008924418040,state,2870.36,Фартушок Дмитро Ігорович,,фізична особа
Самопоміч,"Дніпропетровська область, Синельникове",84,2017-12-22,156,"Заробітна плата, премії","Заробітна плата, лікарняні, вагітності, відрядження, компенсації",62157,Центральний офіс,38558365,Україна,Зарплата,26008924418040,state,1803.20,Мішина Наталія Віталіївна,,фізична особа
Самопоміч,м. Кропивницький,84,2017-12-22,156,"Заробітна плата, премії","Заробітна плата, лікарняні, вагітності, відрядження, компенсації",62156,Центральний офіс,38558365,Україна,Зарплата,26008924418040,state,2894.17,Будько Вадим Ігорович,,фізична особа
Самопоміч,"Полтавська область, Чутівський район",84,2017-12-22,156,"Заробітна плата, премії","Заробітна плата, лікарняні, вагітності, відрядження, компенсації",62155,Центральний офіс,38558365,Україна,Зарплата,26008924418040,state,4500.28,Скрипай Олександр Сергійович,,фізична особа
Самопоміч,"Полтавська область, Чутівський район",84,2017-12-22,156,"Заробітна плата, премії","Заробітна плата, лікарняні, вагітності, відрядження, компенсації",62154,Центральний офіс,38558365,Україна,Зарплата,26008924418040,state,4510.01,Скрипай Дмитро Сергійович,,фізична особа
Самопоміч,"Дніпропетровська область, Павлоград",84,2017-12-22,156,"Заробітна плата, премії","Заробітна плата, лікарняні, вагітності, відрядження, компенсації",62153,Центральний офіс,38558365,Україна,Зарплата,26008924418040,state,813.86,Третяк Ганна Валеріївна,,фізична особа
Самопоміч,"Івано-Франківська область, Тлумацький район, Тлумач",84,2017-12-22,156,"Заробітна плата, премії","Заробітна плата, лікарняні, вагітності, відрядження, компенсації",62152,Центральний офіс,38558365,Україна,Зарплата,26008924418040,state,2264.06,Бойда Дарія Олексіївна,,фізична особа
Самопоміч,Київ,84,2017-12-22,156,"Заробітна плата, премії","Заробітна плата, лікарняні, вагітності, відрядження, компенсації",62151,Центральний офіс,38558365,Україна,Зарплата,26008924418040,state,7354.50,Гринишин Марія Михайлівна,,фізична особа
Самопоміч,"Запорізька область, Запоріжжя",84,2017-12-22,156,"Заробітна плата, премії","Заробітна плата, лікарняні, вагітності, відрядження, компенсації",62150,Центральний офіс,38558365,Україна,Зарплата,26008924418040,state,1495.81,Бойко Борис Олександрович,,фізична особа
Самопоміч,"Харківська область, Харків",84,2017-12-22,156,"Заробітна плата, премії","Заробітна плата, лікарняні, вагітності, відрядження, компенсації",62149,Центральний офіс,38558365,Україна,Зарплата,26008924418040,state,2401.43,Мамай Наталія Миколаївна,,фізична особа
Самопоміч,"Чернігівська область, Ніжин",84,2017-12-22,156,"Заробітна плата, премії","Заробітна плата, лікарняні, вагітності, відрядження, компенсації",62148,Центральний офіс,38558365,Україна,Зарплата,26008924418040,state,45.38,Лях Владислав Михайлович,,фізична особа
Самопоміч,Київ,84,2017-12-22,156,"Заробітна плата, премії","Заробітна плата, лікарняні, вагітності, відрядження, компенсації",62147,Центральний офіс,38558365,Україна,Зарплата,26008924418040,state,350.27,Маметова Айше Серверівна,,фізична особа
Самопоміч,"Сумська область, Липоводолинський район",84,2017-12-22,156,"Заробітна плата, премії","Заробітна плата, лікарняні, вагітності, відрядження, компенсації",62146,Центральний офіс,38558365,Україна,Зарплата,26008924418040,state,1206.01,Педько Марина Олексіївна,,фізична особа
Самопоміч,Київ,84,2017-12-22,156,"Заробітна плата, премії","Заробітна плата, лікарняні, вагітності, відрядження, компенсації",62145,Центральний офіс,38558365,Україна,Зарплата,26008924418040,state,2992.96,Заруба Анастасія Вікторівна,,фізична особа
Самопоміч,"Житомирська область, Житомир",84,2017-12-22,156,"Заробітна плата, премії","Заробітна плата, лікарняні, вагітності, відрядження, компенсації",62144,Центральний офіс,38558365,Україна,Зарплата,26008924418040,state,144.67,Дідківська Альона Михайлівна,,фізична особа
Самопоміч,"Львівська область, Львів",84,2017-12-22,156,"Заробітна плата, премії","Заробітна плата, лікарняні, вагітності, відрядження, компенсації",62143,Центральний офіс,38558365,Україна,Зарплата,26008924418040,state,1204.46,Шуплат Юлія Богданівна,,фізична особа
Самопоміч,"Сумська область, Конотоп",84,2017-12-22,156,"Заробітна плата, премії","Заробітна плата, лікарняні, вагітності, відрядження, компенсації",62142,Центральний офіс,38558365,Україна,Зарплата,26008924418040,state,1206.01,Кондратьєва Анастасія Ігорівна,,фізична особа
Самопоміч,"Одеська область, Одеса",84,2017-12-22,156,"Заробітна плата, премії","Заробітна плата, лікарняні, вагітності, відрядження, компенсації",62141,Центральний офіс,38558365,Україна,Зарплата,26008924418040,state,2291.33,Якових Анастасія Володимирівна,,фізична особа
Самопоміч,"Вінницька область, Жмеринка",84,2017-12-22,156,"Заробітна плата, премії","Заробітна плата, лікарняні, вагітності, відрядження, компенсації",62140,Центральний офіс,38558365,Україна,Зарплата,26008924418040,state,1454.11,Горчук Микола Володимирович,,фізична особа
Самопоміч,Київ,84,2017-12-22,156,"Заробітна плата, премії","Заробітна плата, лікарняні, вагітності, відрядження, компенсації",62139,Центральний офіс,38558365,Україна,Зарплата,26008924418040,state,11395.77,Савичук Олег Олександрович,,фізична особа
Самопоміч,"Волинська область, Локачинський район",84,2017-12-22,156,"Заробітна плата, премії","Заробітна плата, лікарняні, вагітності, відрядження, компенсації",62138,Центральний офіс,38558365,Україна,Зарплата,26008924418040,state,1050.93,Войтович Юлія Миколаївна,,фізична особа
Самопоміч,"Хмельницька область, Хмельницький",84,2017-12-22,156,"Заробітна плата, премії","Заробітна плата, лікарняні, вагітності, відрядження, компенсації",62137,Центральний офіс,38558365,Україна,Зарплата,26008924418040,state,2245.95,Смолінська Ольга Броніславівна,,фізична особа
Самопоміч,"Волинська область, Луцьк",84,2017-12-22,156,"Заробітна плата, премії","Заробітна плата, лікарняні, вагітності, відрядження, компенсації",62136,Центральний офіс,38558365,Україна,Зарплата,26008924418040,state,1358.44,Собуцька Катерина Миколаївна,,фізична особа
Самопоміч,Київ,84,2017-12-22,156,"Заробітна плата, премії","Заробітна плата, лікарняні, вагітності, відрядження, компенсації",62135,Центральний офіс,38558365,Україна,Зарплата,26008924418040,state,3715.28,Черкашин Денис Євгенович,,фізична особа
Самопоміч,"Львівська область, Львів",84,2017-12-22,156,"Заробітна плата, премії","Заробітна плата, лікарняні, вагітності, відрядження, компенсації",62134,Центральний офіс,38558365,Україна,Зарплата,26008924418040,state,1204.47,Курницький Андрій Володимирович,,фізична особа
Самопоміч,"Волинська область, Луцьк",84,2017-12-22,156,"Заробітна плата, премії","Заробітна плата, лікарняні, вагітності, відрядження, компенсації",62133,Центральний офіс,38558365,Україна,Зарплата,26008924418040,state,4121.60,Ларіна Леся Степанівна,,фізична особа
Самопоміч,"Львівська область, Львів",84,2017-12-22,156,"Заробітна плата, премії","Заробітна плата, лікарняні, вагітності, відрядження, компенсації",62132,Центральний офіс,38558365,Україна,Зарплата,26008924418040,state,1657.90,Здзьобек Софія Франківна,,фізична особа
Самопоміч,"Волинська область, Горохівський район, Горохів",84,2017-12-22,156,"Заробітна плата, премії","Заробітна плата, лікарняні, вагітності, відрядження, компенсації",62131,Центральний офіс,38558365,Україна,Зарплата,26008924418040,state,677.41,Корольчук Ірина Андріївна,,фізична особа
Самопоміч,"Львівська область, Пустомитівський район",84,2017-12-22,156,"Заробітна плата, премії","Заробітна плата, лікарняні, вагітності, відрядження, компенсації",62130,Центральний офіс,38558365,Україна,Зарплата,26008924418040,state,5507.01,Курус Михайло Миколайович,,фізична особа
Самопоміч,"Львівська область, Львів",84,2017-12-22,156,"Заробітна плата, премії","Заробітна плата, лікарняні, вагітності, відрядження, компенсації",62129,Центральний офіс,38558365,Україна,Зарплата,26008924418040,state,2264.06,Письменна Тетяна Олександрівна,,фізична особа
Самопоміч,"Вінницька область, Барський район, Бар",84,2017-12-22,156,"Заробітна плата, премії","Заробітна плата, лікарняні, вагітності, відрядження, компенсації",62128,Центральний офіс,38558365,Україна,Зарплата,26008924418040,state,452.81,Сурма Наталя Василівна,,фізична особа
Самопоміч,"Вінницька область, Вінниця",84,2017-12-22,156,"Заробітна плата, премії","Заробітна плата, лікарняні, вагітності, відрядження, компенсації",62127,Центральний офіс,38558365,Україна,Зарплата,26008924418040,state,4117.36,Бугакова Олена Юріївна,,фізична особа
Самопоміч,Київ,84,2017-12-22,156,"Заробітна плата, премії","Заробітна плата, лікарняні, вагітності, відрядження, компенсації",62126,Центральний офіс,38558365,Україна,Зарплата,26008924418040,state,177.64,Книш Катерина Олегівна,,фізична особа
Самопоміч,Севастополь,84,2017-12-22,156,"Заробітна плата, премії","Заробітна плата, лікарняні, вагітності, відрядження, компенсації",62125,Центральний офіс,38558365,Україна,Зарплата,26008924418040,state,1231.65,Балдига Лілія Олександрівна,,фізична особа
Самопоміч,"Львівська область, Кам'янка-Бузький район",84,2017-12-22,156,"Заробітна плата, премії","Заробітна плата, лікарняні, вагітності, відрядження, компенсації",62124,Центральний офіс,38558365,Україна,Зарплата,26008924418040,state,620.81,Гриниха Ірина Богданівна,,фізична особа
Самопоміч,"Вінницька область, Вінниця",84,2017-12-22,156,"Заробітна плата, премії","Заробітна плата, лікарняні, вагітності, відрядження, компенсації",62123,Центральний офіс,38558365,Україна,Зарплата,26008924418040,state,1203.17,Шпортко Ангеліна Анатоліївна,,фізична особа
Самопоміч,"Івано-Франківська область, Івано-Франківськ",84,2017-12-22,156,"Заробітна плата, премії","Заробітна плата, лікарняні, вагітності, відрядження, компенсації",62122,Центральний офіс,38558365,Україна,Зарплата,26008924418040,state,3042.90,Самілів Лариса Василівна,,фізична особа
Самопоміч,"Львівська область, Дрогобич",84,2017-12-22,156,"Заробітна плата, премії","Заробітна плата, лікарняні, вагітності, відрядження, компенсації",62121,Центральний офіс,38558365,Україна,Зарплата,26008924418040,state,2002.29,Зінченко Тарас Ігорович,,фізична особа
Самопоміч,"Дніпропетровська область, Кам’янське",84,2017-12-22,156,"Заробітна плата, премії","Заробітна плата, лікарняні, вагітності, відрядження, компенсації",62120,Центральний офіс,38558365,Україна,Зарплата,26008924418040,state,1604.49,Неклеса Олена Олександрівна,,фізична особа
Самопоміч,"Івано-Франківська область, Рогатинський район, Рогатин",84,2017-12-22,156,"Заробітна плата, премії","Заробітна плата, лікарняні, вагітності, відрядження, компенсації",62119,Центральний офіс,38558365,Україна,Зарплата,26008924418040,state,560.59,Коновал Соломія Ярославівна,,фізична особа
Самопоміч,"Львівська область, Львів",84,2017-12-22,156,"Заробітна плата, премії","Заробітна плата, лікарняні, вагітності, відрядження, компенсації",62118,Центральний офіс,38558365,Україна,Зарплата,26008924418040,state,3355.93,Супрун Марта Олегівна,,фізична особа
Самопоміч,"Львівська область, Золочівський район, Золочів",84,2017-12-22,156,"Заробітна плата, премії","Заробітна плата, лікарняні, вагітності, відрядження, компенсації",62117,Центральний офіс,38558365,Україна,Зарплата,26008924418040,state,579.60,Горгота Леся Зіновіївна,,фізична особа
Самопоміч,"Львівська область, Пустомитівський район",84,2017-12-22,156,"Заробітна плата, премії","Заробітна плата, лікарняні, вагітності, відрядження, компенсації",62116,Центральний офіс,38558365,Україна,Зарплата,26008924418040,state,732.80,Лапичак Уляна Ігорівна,,фізична особа
Самопоміч,"Львівська область, Львів",84,2017-12-22,156,"Заробітна плата, премії","Заробітна плата, лікарняні, вагітності, відрядження, компенсації",62115,Центральний офіс,38558365,Україна,Зарплата,26008924418040,state,3993.61,Коваль Богдан Ігорович,,фізична особа
Самопоміч,Київ,84,2017-12-22,156,"Заробітна плата, премії","Заробітна плата, лікарняні, вагітності, відрядження, компенсації",62114,Центральний офіс,38558365,Україна,Зарплата,26008924418040,state,2082.94,Лабун Олександр Сергійович,,фізична особа
Самопоміч,"Чернігівська область, Ніжин",84,2017-12-22,156,"Заробітна плата, премії","Заробітна плата, лікарняні, вагітності, відрядження, компенсації",62113,Центральний офіс,38558365,Україна,Зарплата,26008924418040,state,4510.01,Тимошик Дмитро Михайлович,,фізична особа
Самопоміч,"Вінницька область, Могилів-Подільський",84,2017-12-22,156,"Заробітна плата, премії","Заробітна плата, лікарняні, вагітності, відрядження, компенсації",62112,Центральний офіс,38558365,Україна,Зарплата,26008924418040,state,1514.50,Крижевська Світлана Борисівна,,фізична особа
Самопоміч,"Тернопільська область, Чортківський район, Чортків",84,2017-12-22,156,"Заробітна плата, премії","Заробітна плата, лікарняні, вагітності, відрядження, компенсації",62111,Центральний офіс,38558365,Україна,Зарплата,26008924418040,state,617.86,Шутков Олександр Васильович,,фізична особа
Самопоміч,Житомирська область,84,2017-12-22,156,"Заробітна плата, премії","Заробітна плата, лікарняні, вагітності, відрядження, компенсації",62110,Центральний офіс,38558365,Україна,Зарплата,26008924418040,state,4549.42,Никончук Дмитро Миколайович,,фізична особа
Самопоміч,"Львівська область, Львів",84,2017-12-22,156,"Заробітна плата, премії","Заробітна плата, лікарняні, вагітності, відрядження, компенсації",62109,Центральний офіс,38558365,Україна,Зарплата,26008924418040,state,4260.81,Дедишин Володимир Євгенович,,фізична особа
Самопоміч,"Львівська область, Львів",84,2017-12-22,156,"Заробітна плата, премії","Заробітна плата, лікарняні, вагітності, відрядження, компенсації",62108,Центральний офіс,38558365,Україна,Зарплата,26008924418040,state,2264.06,Сомик Богдан Романович,,фізична особа
Самопоміч,"Львівська область, Борислав",84,2017-12-22,156,"Заробітна плата, премії","Заробітна плата, лікарняні, вагітності, відрядження, компенсації",62107,Центральний офіс,38558365,Україна,Зарплата,26008924418040,state,579.60,Голубіцька Любов Михайлівна,,фізична особа
Самопоміч,"Рівненська область, Демидівський район, Демидівка",84,2017-12-22,156,"Заробітна плата, премії","Заробітна плата, лікарняні, вагітності, відрядження, компенсації",62106,Центральний офіс,38558365,Україна,Зарплата,26008924418040,state,1159.20,Леус Юлія Володимирівна,,фізична особа
Самопоміч,"Вінницька область, Вінницький район, Агрономічне",84,2017-12-22,156,"Заробітна плата, премії","Заробітна плата, лікарняні, вагітності, відрядження, компенсації",62105,Центральний офіс,38558365,Україна,Зарплата,26008924418040,state,4839.26,Зєрщиков Олександр Володимирович,,фізична особа
Самопоміч,"Вінницька область, Вінниця",84,2017-12-22,156,"Заробітна плата, премії","Заробітна плата, лікарняні, вагітності, відрядження, компенсації",62104,Центральний офіс,38558365,Україна,Зарплата,26008924418040,state,42.89,Кононенко Юлія Петрівна,,фізична особа
Самопоміч,Київ,84,2017-12-22,156,"Заробітна плата, премії","Заробітна плата, лікарняні, вагітності, відрядження, компенсації",62103,Центральний офіс,38558365,Україна,Зарплата,26008924418040,state,3809.87,Третьяков Сергій Іванович,,фізична особа
Самопоміч,"Рівненська область, Костопільський район, Костопіль",84,2017-12-22,156,"Заробітна плата, премії","Заробітна плата, лікарняні, вагітності, відрядження, компенсації",62102,Центральний офіс,38558365,Україна,Зарплата,26008924418040,state,1075.68,Сидорчук Андрій Вікторович,,фізична особа
Самопоміч,"Хмельницька область, Кам'янець-Подільський",84,2017-12-22,156,"Заробітна плата, премії","Заробітна плата, лікарняні, вагітності, відрядження, компенсації",62101,Центральний офіс,38558365,Україна,Зарплата,26008924418040,state,901.60,Мельник Світлана Василівна,,фізична особа
Самопоміч,"Хмельницька область, Нетішин",84,2017-12-22,156,"Заробітна плата, премії","Заробітна плата, лікарняні, вагітності, відрядження, компенсації",62100,Центральний офіс,38558365,Україна,Зарплата,26008924418040,state,746.13,Матросова Олена Віталіївна,,фізична особа
Самопоміч,"Львівська область, Старосамбірський район, Старий Самбір",84,2017-12-22,156,"Заробітна плата, премії","Заробітна плата, лікарняні, вагітності, відрядження, компенсації",62099,Центральний офіс,38558365,Україна,Зарплата,26008924418040,state,992.59,Федечко Наталія Зеновіївна,,фізична особа
Самопоміч,"Полтавська область, Полтавський район",84,2017-12-22,156,"Заробітна плата, премії","Заробітна плата, лікарняні, вагітності, відрядження, компенсації",62098,Центральний офіс,38558365,Україна,Зарплата,26008924418040,state,748.65,Гладченко Ольга Іванівна,,фізична особа
Самопоміч,"Львівська область, Львів",84,2017-12-22,156,"Заробітна плата, премії","Заробітна плата, лікарняні, вагітності, відрядження, компенсації",62097,Центральний офіс,38558365,Україна,Зарплата,26008924418040,state,3476.14,Христина Зоряна Орестівна,,фізична особа
Самопоміч,"Івано-Франківська область, Івано-Франківськ",84,2017-12-22,156,"Заробітна плата, премії","Заробітна плата, лікарняні, вагітності, відрядження, компенсації",62096,Центральний офіс,38558365,Україна,Зарплата,26008924418040,state,2355.71,Войтович Роман Степанович,,фізична особа
Самопоміч,"Львівська область, Львів",84,2017-12-22,156,"Заробітна плата, премії","Заробітна плата, лікарняні, вагітності, відрядження, компенсації",62095,Центральний офіс,38558365,Україна,Зарплата,26008924418040,state,5563.57,Дроздова Анна Юріївна,,фізична особа
Самопоміч,"Чернігівська область, Чернігів",84,2017-12-22,156,"Заробітна плата, премії","Заробітна плата, лікарняні, вагітності, відрядження, компенсації",62094,Центральний офіс,38558365,Україна,Зарплата,26008924418040,state,2354.63,Селівон Алла Ігорівна,,фізична особа
Самопоміч,"Тернопільська область, Борщівський район, Борщів",84,2017-12-22,156,"Заробітна плата, премії","Заробітна плата, лікарняні, вагітності, відрядження, компенсації",62093,Центральний офіс,38558365,Україна,Зарплата,26008924418040,state,1638.00,Кріль Оксана Володимирівна,,фізична особа
Самопоміч,"Харківська область, Люботин",84,2017-12-22,156,"Заробітна плата, премії","Заробітна плата, лікарняні, вагітності, відрядження, компенсації",62092,Центральний офіс,38558365,Україна,Зарплата,26008924418040,state,2245.95,Антоненко Владислав Володимирович,,фізична особа
Самопоміч,"Львівська область, Пустомитівський район",84,2017-12-22,156,"Заробітна плата, премії","Заробітна плата, лікарняні, вагітності, відрядження, компенсації",62091,Центральний офіс,38558365,Україна,Зарплата,26008924418040,state,1811.25,Брегін Андрій Іванович,,фізична особа
Самопоміч,"Волинська область, Володимир-Волинський",84,2017-12-22,156,"Заробітна плата, премії","Заробітна плата, лікарняні, вагітності, відрядження, компенсації",62090,Центральний офіс,38558365,Україна,Зарплата,26008924418040,state,1203.17,Сєргєєва Віра Григорівна,,фізична особа
Самопоміч,"Львівська область, Кам'янка-Бузький район",84,2017-12-22,156,"Заробітна плата, премії","Заробітна плата, лікарняні, вагітності, відрядження, компенсації",62089,Центральний офіс,38558365,Україна,Зарплата,26008924418040,state,3387.09,Назаркевич Назар Дмитрович,,фізична особа
Самопоміч,"Івано-Франківська область, Надворнянський район, Надвірна",84,2017-12-22,156,"Заробітна плата, премії","Заробітна плата, лікарняні, вагітності, відрядження, компенсації",62088,Центральний офіс,38558365,Україна,Зарплата,26008924418040,state,1159.20,Арсенич Наталія Миколаївна,,фізична особа
Самопоміч,"Чернівецька область, Чернівці",84,2017-12-22,156,"Заробітна плата, премії","Заробітна плата, лікарняні, вагітності, відрядження, компенсації",62087,Центральний офіс,38558365,Україна,Зарплата,26008924418040,state,1257.81,Тамазлікар Анжела Миколаївна,,фізична особа
Самопоміч,Київ,84,2017-12-22,156,"Заробітна плата, премії","Заробітна плата, лікарняні, вагітності, відрядження, компенсації",62086,Центральний офіс,38558365,Україна,Зарплата,26008924418040,state,5417.53,Баланович Станіслав Васильович,,фізична особа
Самопоміч,"Київська обл., Васильків",84,2017-12-22,156,"Заробітна плата, премії","Заробітна плата, лікарняні, вагітності, відрядження, компенсації",62085,Центральний офіс,38558365,Україна,Зарплата,26008924418040,state,1313.28,Ковріжних Іван Олександрович,,фізична особа
Самопоміч,Київ,84,2017-12-22,156,"Заробітна плата, премії","Заробітна плата, лікарняні, вагітності, відрядження, компенсації",62084,Центральний офіс,38558365,Україна,Зарплата,26008924418040,state,579.60,Коба Антон Володимирович,,фізична особа
Самопоміч,"Вінницька область, Немирівський район, Немирів",84,2017-12-22,156,"Заробітна плата, премії","Заробітна плата, лікарняні, вагітності, відрядження, компенсації",62083,Центральний офіс,38558365,Україна,Зарплата,26008924418040,state,937.99,Єщенко Ірина Петрівна,,фізична особа
Самопоміч,"Івано-Франківська область, Долинський район, Долина",84,2017-12-22,156,"Заробітна плата, премії","Заробітна плата, лікарняні, вагітності, відрядження, компенсації",62082,Центральний офіс,38558365,Україна,Зарплата,26008924418040,state,692.30,Шира Ірина Володимирівна,,фізична особа
Самопоміч,"Житомирська область, Житомир",84,2017-12-22,156,"Заробітна плата, премії","Заробітна плата, лікарняні, вагітності, відрядження, компенсації",62081,Центральний офіс,38558365,Україна,Зарплата,26008924418040,state,1924.72,Поліщук Надія Володимирівна,,фізична особа
Самопоміч,"Полтавська область, Полтава",84,2017-12-22,156,"Заробітна плата, премії","Заробітна плата, лікарняні, вагітності, відрядження, компенсації",62080,Центральний офіс,38558365,Україна,Зарплата,26008924418040,state,4555.39,Дейнека Тетяна Ігорівна,,фізична особа
Самопоміч,Тернопільська область,84,2017-12-22,156,"Заробітна плата, премії","Заробітна плата, лікарняні, вагітності, відрядження, компенсації",62079,Центральний офіс,38558365,Україна,Зарплата,26008924418040,state,322.00,Фидрин Віталій Михайлович,,фізична особа
Самопоміч,"Вінницька область, Вінниця",84,2017-12-22,156,"Заробітна плата, премії","Заробітна плата, лікарняні, вагітності, відрядження, компенсації",62078,Центральний офіс,38558365,Україна,Зарплата,26008924418040,state,1551.13,Лапшина Юлія Михайлівна,,фізична особа
Самопоміч,Київ,84,2017-12-22,156,"Заробітна плата, премії","Заробітна плата, лікарняні, вагітності, відрядження, компенсації",62077,Центральний офіс,38558365,Україна,Зарплата,26008924418040,state,612.18,Голєнкова Ольга Сергіївна,,фізична особа
Самопоміч,"Львівська область, Львів",84,2017-12-22,156,"Заробітна плата, премії","Заробітна плата, лікарняні, вагітності, відрядження, компенсації",62076,Центральний офіс,38558365,Україна,Зарплата,26008924418040,state,1554.27,Петровська Дарія Олегівна,,фізична особа
Самопоміч,"Львівська область, Яворівський район, Яворів",84,2017-12-22,156,"Заробітна плата, премії","Заробітна плата, лікарняні, вагітності, відрядження, компенсації",62075,Центральний офіс,38558365,Україна,Зарплата,26008924418040,state,144.68,Фітель Ірина Іванівна,,фізична особа
Самопоміч,"Львівська область, Львів",84,2017-12-22,156,"Заробітна плата, премії","Заробітна плата, лікарняні, вагітності, відрядження, компенсації",62074,Центральний офіс,38558365,Україна,Зарплата,26008924418040,state,8999.90,Когут Тетяна Петрівна,,фізична особа
Самопоміч,"Дніпропетровська область, Марганець",84,2017-12-22,156,"Заробітна плата, премії","Заробітна плата, лікарняні, вагітності, відрядження, компенсації",62073,Центральний офіс,38558365,Україна,Зарплата,26008924418040,state,386.91,Ефа Людмила Миколаївна,,фізична особа
Самопоміч,"Львівська область, Львів",84,2017-12-22,156,"Заробітна плата, премії","Заробітна плата, лікарняні, вагітності, відрядження, компенсації",62072,Центральний офіс,38558365,Україна,Зарплата,26008924418040,state,6729.80,Колтик Тарас Іванович,,фізична особа
Самопоміч,"Київська обл., Обухівський район",84,2017-12-22,156,"Заробітна плата, премії","Заробітна плата, лікарняні, вагітності, відрядження, компенсації",62071,Центральний офіс,38558365,Україна,Зарплата,26008924418040,state,310.41,Тищук Анастасія Сергіївна,,фізична особа
Самопоміч,"Хмельницька область, Хмельницький",84,2017-12-22,156,"Заробітна плата, премії","Заробітна плата, лікарняні, вагітності, відрядження, компенсації",62070,Центральний офіс,38558365,Україна,Зарплата,26008924418040,state,1086.75,Гіджеліцький Ігор Казимирович,,фізична особа
Самопоміч,"Львівська область, Львів",84,2017-12-22,156,"Заробітна плата, премії","Заробітна плата, лікарняні, вагітності, відрядження, компенсації",62069,Центральний офіс,38558365,Україна,Зарплата,26008924418040,state,2447.20,Мирощенко Андрій Миколайович,,фізична особа
Самопоміч,"Дніпропетровська область, Кривий Ріг",84,2017-12-22,156,"Заробітна плата, премії","Заробітна плата, лікарняні, вагітності, відрядження, компенсації",62068,Центральний офіс,38558365,Україна,Зарплата,26008924418040,state,2209.72,Чайковська Наталія Юріївна,,фізична особа
Самопоміч,"Вінницька область, Гайсинський район, Гайсин",84,2017-12-22,156,"Заробітна плата, премії","Заробітна плата, лікарняні, вагітності, відрядження, компенсації",62067,Центральний офіс,38558365,Україна,Зарплата,26008924418040,state,1203.17,Максимець Вікторія Олександрівна,,фізична особа
Самопоміч,"Івано-Франківська область, Івано-Франківськ",84,2017-12-22,156,"Заробітна плата, премії","Заробітна плата, лікарняні, вагітності, відрядження, компенсації",62066,Центральний офіс,38558365,Україна,Зарплата,26008924418040,state,314.72,Щипанова Жанна Борисівна,,фізична особа
Самопоміч,Київ,84,2017-12-22,156,"Заробітна плата, премії","Заробітна плата, лікарняні, вагітності, відрядження, компенсації",62065,Центральний офіс,38558365,Україна,Зарплата,26008924418040,state,2699.12,Ярова Дарина Григорівна,,фізична особа
Самопоміч,"Львівська область, Львів",84,2017-12-22,156,"Заробітна плата, премії","Заробітна плата, лікарняні, вагітності, відрядження, компенсації",62064,Центральний офіс,38558365,Україна,Зарплата,26008924418040,state,1820.07,Шеянов Дмитро Олегович,,фізична особа
Самопоміч,Київ,84,2017-12-22,156,"Заробітна плата, премії","Заробітна плата, лікарняні, вагітності, відрядження, компенсації",62063,Центральний офіс,38558365,Україна,Зарплата,26008924418040,state,2245.94,Єременко Анна Володимирівна,,фізична особа
Самопоміч,"Івано-Франківська область, Івано-Франківськ",84,2017-12-22,156,"Заробітна плата, премії","Заробітна плата, лікарняні, вагітності, відрядження, компенсації",62062,Центральний офіс,38558365,Україна,Зарплата,26008924418040,state,2264.06,Ватутіна Олена Геннадіївна,,фізична особа
Самопоміч,"Львівська область, Львів",84,2017-12-22,156,"Заробітна плата, премії","Заробітна плата, лікарняні, вагітності, відрядження, компенсації",62061,Центральний офіс,38558365,Україна,Зарплата,26008924418040,state,1358.68,Никорак Ольга Юріївна,,фізична особа
Самопоміч,Київ,84,2017-12-22,156,"Заробітна плата, премії","Заробітна плата, лікарняні, вагітності, відрядження, компенсації",62060,Центральний офіс,38558365,Україна,Зарплата,26008924418040,state,1999.62,Зубер Світлана Олександрівна,,фізична особа
Самопоміч,Київ,84,2017-12-22,156,"Заробітна плата, премії","Заробітна плата, лікарняні, вагітності, відрядження, компенсації",62059,Центральний офіс,38558365,Україна,Зарплата,26008924418040,state,7257.69,Чернюк Денис Сергійович,,фізична особа
Самопоміч,"Харківська область, Харків",84,2017-12-22,156,"Заробітна плата, премії","Заробітна плата, лікарняні, вагітності, відрядження, компенсації",62058,Центральний офіс,38558365,Україна,Зарплата,26008924418040,state,2039.19,Малбієва Катерина Павлівна,,фізична особа
Самопоміч,"Львівська область, Городоцький район",84,2017-12-22,156,"Заробітна плата, премії","Заробітна плата, лікарняні, вагітності, відрядження, компенсації",62057,Центральний офіс,38558365,Україна,Зарплата,26008924418040,state,1051.64,Лаврик Лілія Тарасівна,,фізична особа
Самопоміч,"Полтавська область, Кременчук",84,2017-12-22,156,"Заробітна плата, премії","Заробітна плата, лікарняні, вагітності, відрядження, компенсації",62056,Центральний офіс,38558365,Україна,Зарплата,26008924418040,state,17.97,Плахотник Дмитро Миколайович,,фізична особа
Самопоміч,"Волинська область, Луцьк",84,2017-12-22,156,"Заробітна плата, премії","Заробітна плата, лікарняні, вагітності, відрядження, компенсації",62055,Центральний офіс,38558365,Україна,Зарплата,26008924418040,state,7679.70,Надточій Алла Володимирівна,,фізична особа
Самопоміч,Київ,84,2017-12-22,156,"Заробітна плата, премії","Заробітна плата, лікарняні, вагітності, відрядження, компенсації",62054,Центральний офіс,38558365,Україна,Зарплата,26008924418040,state,4408.08,Бульба Альона Сергіївна,,фізична особа
Самопоміч,"Дніпропетровська область, Дніпро́",84,2017-12-22,156,"Заробітна плата, премії","Заробітна плата, лікарняні, вагітності, відрядження, компенсації",62053,Центральний офіс,38558365,Україна,Зарплата,26008924418040,state,2264.06,Дука Олександр Олександрович,,фізична особа
Самопоміч,"Львівська область, Львів",84,2017-12-22,156,"Заробітна плата, премії","Заробітна плата, лікарняні, вагітності, відрядження, компенсації",62052,Центральний офіс,38558365,Україна,Зарплата,26008924418040,state,2167.63,Блінова Світлана Миколаївна,,фізична особа
Самопоміч,"Львівська область, Львів",84,2017-12-22,156,"Заробітна плата, премії","Заробітна плата, лікарняні, вагітності, відрядження, компенсації",62051,Центральний офіс,38558365,Україна,Зарплата,26008924418040,state,2264.06,Артимʼяк Ірина Броніславівна,,фізична особа
Самопоміч,"Чернігівська область, Прилуки",84,2017-12-22,156,"Заробітна плата, премії","Заробітна плата, лікарняні, вагітності, відрядження, компенсації",62050,Центральний офіс,38558365,Україна,Зарплата,26008924418040,state,2260.24,Соляр Катерина Юріївна,,фізична особа
Самопоміч,"Львівська область, Львів",84,2017-12-22,156,"Заробітна плата, премії","Заробітна плата, лікарняні, вагітності, відрядження, компенсації",62049,Центральний офіс,38558365,Україна,Зарплата,26008924418040,state,2705.79,Васів Наталія Юріївна,,фізична особа
Самопоміч,"Київська обл., Миронівський район, Миронівка",84,2017-12-22,156,"Заробітна плата, премії","Заробітна плата, лікарняні, вагітності, відрядження, компенсації",62048,Центральний офіс,38558365,Україна,Зарплата,26008924418040,state,805.00,Бондаренко Ігор Васильович,,фізична особа
Самопоміч,"Сумська область, Сумський район, Суми",84,2017-12-22,156,"Заробітна плата, премії","Заробітна плата, лікарняні, вагітності, відрядження, компенсації",62047,Центральний офіс,38558365,Україна,Зарплата,26008924418040,state,851.08,Зименко Олександр Вікторович,,фізична особа
Самопоміч,"Запорізька область, Токмак",84,2017-12-22,156,"Заробітна плата, премії","Заробітна плата, лікарняні, вагітності, відрядження, компенсації",62046,Центральний офіс,38558365,Україна,Зарплата,26008924418040,state,123.97,Панасенко Тетяна Миколаївна,,фізична особа
Самопоміч,"Львівська область, Сокальський район",84,2017-12-22,156,"Заробітна плата, премії","Заробітна плата, лікарняні, вагітності, відрядження, компенсації",62045,Центральний офіс,38558365,Україна,Зарплата,26008924418040,state,579.60,Лесик Ірина Олегівна,,фізична особа
Самопоміч,"Миколаївська область, Миколаїв",84,2017-12-22,156,"Заробітна плата, премії","Заробітна плата, лікарняні, вагітності, відрядження, компенсації",62044,Центральний офіс,38558365,Україна,Зарплата,26008924418040,state,2359.43,Герасіменя Тетяна Олександрівна,,фізична особа
Самопоміч,"Харківська область, Дергачівський район, Дергачі",84,2017-12-22,156,"Заробітна плата, премії","Заробітна плата, лікарняні, вагітності, відрядження, компенсації",62043,Центральний офіс,38558365,Україна,Зарплата,26008924418040,state,1962.08,Анчишкін Олександр Володимирович,,фізична особа
Самопоміч,"Вінницька область, Калинівський район, Калинівка",84,2017-12-22,156,"Заробітна плата, премії","Заробітна плата, лікарняні, вагітності, відрядження, компенсації",62042,Центральний офіс,38558365,Україна,Зарплата,26008924418040,state,1622.60,Бабій Микола Сергійович,,фізична особа
Самопоміч,"Львівська область, Пустомитівський район",84,2017-12-22,156,"Заробітна плата, премії","Заробітна плата, лікарняні, вагітності, відрядження, компенсації",62041,Центральний офіс,38558365,Україна,Зарплата,26008924418040,state,1900.20,Смітюх Жанна Вікторівна,,фізична особа
Самопоміч,"Сумська область, Ромни",84,2017-12-22,156,"Заробітна плата, премії","Заробітна плата, лікарняні, вагітності, відрядження, компенсації",62040,Центральний офіс,38558365,Україна,Зарплата,26008924418040,state,1204.58,Салогуб Юлія Миколаївна,,фізична особа
Самопоміч,Київ,84,2017-12-22,156,"Заробітна плата, премії","Заробітна плата, лікарняні, вагітності, відрядження, компенсації",62039,Центральний офіс,38558365,Україна,Зарплата,26008924418040,state,428.06,Пахомова Ольга Анатоліївна,,фізична особа
Самопоміч,"Львівська область, Львів",84,2017-12-22,156,"Заробітна плата, премії","Заробітна плата, лікарняні, вагітності, відрядження, компенсації",62038,Центральний офіс,38558365,Україна,Зарплата,26008924418040,state,4766.71,Бенцало Любов Леонідівна,,фізична особа
Самопоміч,Київ,84,2017-12-22,156,"Заробітна плата, премії","Заробітна плата, лікарняні, вагітності, відрядження, компенсації",62037,Центральний офіс,38558365,Україна,Зарплата,26008924418040,state,3605.61,Яшина Юлія Борисівна,,фізична особа
Самопоміч,"Львівська область, Львів",84,2017-12-22,156,"Заробітна плата, премії","Заробітна плата, лікарняні, вагітності, відрядження, компенсації",62036,Центральний офіс,38558365,Україна,Зарплата,26008924418040,state,4901.14,Тимочко Сюзанна Ігорівна,,фізична особа
Самопоміч,"Львівська область, Львів",84,2017-12-22,156,"Заробітна плата, премії","Заробітна плата, лікарняні, вагітності, відрядження, компенсації",62035,Центральний офіс,38558365,Україна,Зарплата,26008924418040,state,2486.24,Боцян Ірина Володимирівна,,фізична особа
Самопоміч,"Миколаївська область, Миколаїв",84,2017-12-22,156,"Заробітна плата, премії","Заробітна плата, лікарняні, вагітності, відрядження, компенсації",62034,Центральний офіс,38558365,Україна,Зарплата,26008924418040,state,46.80,Глінка Валерія Юріївна,,фізична особа
Самопоміч,"Львівська область, Бродівський район, Броди",84,2017-12-22,156,"Заробітна плата, премії","Заробітна плата, лікарняні, вагітності, відрядження, компенсації",62033,Центральний офіс,38558365,Україна,Зарплата,26008924418040,state,2480.96,Родак Наталія Леонідівна,,фізична особа
Самопоміч,"Львівська область, Львів",84,2017-12-22,156,"Заробітна плата, премії","Заробітна плата, лікарняні, вагітності, відрядження, компенсації",62032,Центральний офіс,38558365,Україна,Зарплата,26008924418040,state,2065.31,Гмирук Марія Сергіївна,,фізична особа
Самопоміч,Київ,84,2017-12-22,156,"Заробітна плата, премії","Заробітна плата, лікарняні, вагітності, відрядження, компенсації",62031,Центральний офіс,38558365,Україна,Зарплата,26008924418040,state,2451.33,Яценко Богдан Ігорович,,фізична особа
Самопоміч,"Львівська область, Жовківський район",84,2017-12-22,156,"Заробітна плата, премії","Заробітна плата, лікарняні, вагітності, відрядження, компенсації",62030,Центральний офіс,38558365,Україна,Зарплата,26008924418040,state,1204.58,Калиняк Оксана Романівна,,фізична особа
Самопоміч,"Сумська область, Шостка",84,2017-12-22,156,"Заробітна плата, премії","Заробітна плата, лікарняні, вагітності, відрядження, компенсації",62029,Центральний офіс,38558365,Україна,Зарплата,26008924418040,state,1046.97,Гончарова Катерина Сергіївна,,фізична особа
Самопоміч,"Львівська область, Львів",84,2017-12-22,156,"Заробітна плата, премії","Заробітна плата, лікарняні, вагітності, відрядження, компенсації",62028,Центральний офіс,38558365,Україна,Зарплата,26008924418040,state,8999.90,Струж Мирослава Андріївна,,фізична особа
Самопоміч,"Харківська область, Харківський район, Мерефа",84,2017-12-22,156,"Заробітна плата, премії","Заробітна плата, лікарняні, вагітності, відрядження, компенсації",62027,Центральний офіс,38558365,Україна,Зарплата,26008924418040,state,1996.40,Осьмак Тетяна Леонідівна,,фізична особа
Самопоміч,"Львівська область, Жидачівський район, Дев'ятники",84,2017-12-22,156,"Заробітна плата, премії","Заробітна плата, лікарняні, вагітності, відрядження, компенсації",62026,Центральний офіс,38558365,Україна,Зарплата,26008924418040,state,1045.88,Юрків Марія Ярославівна,,фізична особа
Самопоміч,"Львівська область, Львів",84,2017-12-22,156,"Заробітна плата, премії","Заробітна плата, лікарняні, вагітності, відрядження, компенсації",62025,Центральний офіс,38558365,Україна,Зарплата,26008924418040,state,1575.79,Гордон Ігор Зеновійович,,фізична особа
Самопоміч,"Львівська область, Львів",84,2017-12-22,156,"Заробітна плата, премії","Заробітна плата, лікарняні, вагітності, відрядження, компенсації",62024,Центральний офіс,38558365,Україна,Зарплата,26008924418040,state,6280.34,Івасько Лілія Михайлівна,,фізична особа
Самопоміч,"Івано-Франківська область, Богородчанський район, Богородчани",84,2017-12-22,156,"Заробітна плата, премії","Заробітна плата, лікарняні, вагітності, відрядження, компенсації",62023,Центральний офіс,38558365,Україна,Зарплата,26008924418040,state,1159.20,Міщанин Світлана Богданівна,,фізична особа
Самопоміч,"Львівська область, Львів",84,2017-12-22,156,"Заробітна плата, премії","Заробітна плата, лікарняні, вагітності, відрядження, компенсації",62022,Центральний офіс,38558365,Україна,Зарплата,26008924418040,state,2834.40,Шлиян Юлія Богданівна,,фізична особа
Самопоміч,"Чернігівська область, Чернігів",84,2017-12-22,156,"Заробітна плата, премії","Заробітна плата, лікарняні, вагітності, відрядження, компенсації",62021,Центральний офіс,38558365,Україна,Зарплата,26008924418040,state,835.18,Травінцева Ганна Анатоліївна,,фізична особа
Самопоміч,"Львівська область, Львів",84,2017-12-22,156,"Заробітна плата, премії","Заробітна плата, лікарняні, вагітності, відрядження, компенсації",62020,Центральний офіс,38558365,Україна,Зарплата,26008924418040,state,2028.40,Телішевська Галина Ігорівна,,фізична особа
Самопоміч,"Черкаська область, Шполянський район, Шпола",84,2017-12-22,156,"Заробітна плата, премії","Заробітна плата, лікарняні, вагітності, відрядження, компенсації",62019,Центральний офіс,38558365,Україна,Зарплата,26008924418040,state,771.31,Гегельська Юлія Миколаївна,,фізична особа
Самопоміч,"Волинська область, Любомльський район, Любомль",84,2017-12-22,156,"Заробітна плата, премії","Заробітна плата, лікарняні, вагітності, відрядження, компенсації",62018,Центральний офіс,38558365,Україна,Зарплата,26008924418040,state,1159.20,Булавка Тамара Павлівна,,фізична особа
Самопоміч,"Львівська область, Пустомитівський район",84,2017-12-22,156,"Заробітна плата, премії","Заробітна плата, лікарняні, вагітності, відрядження, компенсації",62017,Центральний офіс,38558365,Україна,Зарплата,26008924418040,state,4173.93,Циганик Ірина-Софія Романівна,,фізична особа
Самопоміч,"Львівська область, Львів",84,2017-12-22,156,"Заробітна плата, премії","Заробітна плата, лікарняні, вагітності, відрядження, компенсації",62016,Центральний офіс,38558365,Україна,Зарплата,26008924418040,state,4617.55,Сімак Ірина Вікторівна,,фізична особа
Самопоміч,"Львівська область, Львів",84,2017-12-22,156,"Заробітна плата, премії","Заробітна плата, лікарняні, вагітності, відрядження, компенсації",62015,Центральний офіс,38558365,Україна,Зарплата,26008924418040,state,4736.92,Шаповал Оксана Вікторівна,,фізична особа
Самопоміч,"Вінницька область, Тиврівський район",84,2017-12-22,156,"Заробітна плата, премії","Заробітна плата, лікарняні, вагітності, відрядження, компенсації",62014,Центральний офіс,38558365,Україна,Зарплата,26008924418040,state,462.88,Завальницька Оксана Василівна,,фізична особа
Самопоміч,"Львівська область, Львів",84,2017-12-22,156,"Заробітна плата, премії","Заробітна плата, лікарняні, вагітності, відрядження, компенсації",62013,Центральний офіс,38558365,Україна,Зарплата,26008924418040,state,219.55,Боцян Ірина Володимирівна,,фізична особа
Самопоміч,Київ,84,2017-12-22,156,"Заробітна плата, премії","Заробітна плата, лікарняні, вагітності, відрядження, компенсації",62012,Центральний офіс,38558365,Україна,Зарплата,26008924418040,state,327.15,Казарінова Олена Вікторівна,,фізична особа
Самопоміч,"Львівська область, Мостиський район, Мостиська",84,2017-12-22,156,"Заробітна плата, премії","Заробітна плата, лікарняні, вагітності, відрядження, компенсації",62011,Центральний офіс,38558365,Україна,Зарплата,26008924418040,state,3081.13,Олешко Оксана Богданівна,,фізична особа
Самопоміч,Київ,84,2017-12-22,156,"Заробітна плата, премії","Заробітна плата, лікарняні, вагітності, відрядження, компенсації",62010,Центральний офіс,38558365,Україна,Зарплата,26008924418040,state,2173.50,Демедюк Сніжана Василівна,,фізична особа
Самопоміч,"Львівська область, Жидачівський район, Жидачів",84,2017-12-22,156,"Заробітна плата, премії","Заробітна плата, лікарняні, вагітності, відрядження, компенсації",62009,Центральний офіс,38558365,Україна,Зарплата,26008924418040,state,8034.72,Бойчук Олеся Богданівна,,фізична особа
Самопоміч,"Львівська область, Миколаївський район, Миколаїв",84,2017-12-22,156,"Заробітна плата, премії","Заробітна плата, лікарняні, вагітності, відрядження, компенсації",62008,Центральний офіс,38558365,Україна,Зарплата,26008924418040,state,257.60,Паньків Володимир Ігорович,,фізична особа
Самопоміч,"Полтавська область, Полтава",84,2017-12-22,156,"Заробітна плата, премії","Заробітна плата, лікарняні, вагітності, відрядження, компенсації",62007,Центральний офіс,38558365,Україна,Зарплата,26008924418040,state,1453.17,Корсун Тамара Єгорівна,,фізична особа
Самопоміч,"Черкаська область, Черкаси, вулиця Пацаєва, 26",84,2017-12-22,156,"Заробітна плата, премії","Заробітна плата, лікарняні, вагітності, відрядження, компенсації",62006,Центральний офіс,38558365,Україна,Зарплата,26008924418040,state,1749.39,Бордунос Людмила Іванівна,,фізична особа
Самопоміч,"Чернівецька область, Новоселицький район, Маршинці",84,2017-12-22,156,"Заробітна плата, премії","Заробітна плата, лікарняні, вагітності, відрядження, компенсації",62005,Центральний офіс,38558365,Україна,Зарплата,26008924418040,state,2332.17,Галак Даніела Анатоліївна,,фізична особа
Самопоміч,"Львівська область, Городоцький район",84,2017-12-22,156,"Заробітна плата, премії","Заробітна плата, лікарняні, вагітності, відрядження, компенсації",62004,Центральний офіс,38558365,Україна,Зарплата,26008924418040,state,2045.01,Сонич Наталія Юріївна,,фізична особа
Самопоміч,"Хмельницька область, Хмельницький",84,2017-12-22,156,"Заробітна плата, премії","Заробітна плата, лікарняні, вагітності, відрядження, компенсації",62003,Центральний офіс,38558365,Україна,Зарплата,26008924418040,state,2817.50,Яворська Тетяна Марʼянівна,,фізична особа
Самопоміч,"Львівська область, Львів",84,2017-12-22,156,"Заробітна плата, премії","Заробітна плата, лікарняні, вагітності, відрядження, компенсації",62002,Центральний офіс,38558365,Україна,Зарплата,26008924418040,state,2130.72,Тарас Уляна Михайлівна,,фізична особа
Самопоміч,"Львівська область, Львів",84,2017-12-22,156,"Заробітна плата, премії","Заробітна плата, лікарняні, вагітності, відрядження, компенсації",62001,Центральний офіс,38558365,Україна,Зарплата,26008924418040,state,8999.90,Іськович Олександр Миколайович,,фізична особа
Самопоміч,"Київська обл., Бориспіль",84,2017-12-22,156,"Заробітна плата, премії","Заробітна плата, лікарняні, вагітності, відрядження, компенсації",62000,Центральний офіс,38558365,Україна,Зарплата,26008924418040,state,12684.79,Шабан Катерина Степанівна,,фізична особа
Самопоміч,"Івано-Франківська область, Надворнянський район, Надвірна",84,2017-12-22,156,"Заробітна плата, премії","Заробітна плата, лікарняні, вагітності, відрядження, компенсації",61999,Центральний офіс,38558365,Україна,Зарплата,26008924418040,state,905.62,Торбяк Олена Олександрівна,,фізична особа
Самопоміч,"Львівська область, Львів",84,2017-12-22,156,"Заробітна плата, премії","Заробітна плата, лікарняні, вагітності, відрядження, компенсації",61998,Центральний офіс,38558365,Україна,Зарплата,26008924418040,state,3151.68,Кокорузь Марія Михайлівна,,фізична особа
Самопоміч,"Львівська область, Львів",84,2017-12-22,156,"Заробітна плата, премії","Заробітна плата, лікарняні, вагітності, відрядження, компенсації",61997,Центральний офіс,38558365,Україна,Зарплата,26008924418040,state,1913.37,Совицька Роксолана Тарасівна,,фізична особа
Самопоміч,"Дніпропетровська область, Дніпро́",84,2017-12-22,156,"Заробітна плата, премії","Заробітна плата, лікарняні, вагітності, відрядження, компенсації",61996,Центральний офіс,38558365,Україна,Зарплата,26008924418040,state,1601.96,Мороз Інна Леонідівна,,фізична особа
Самопоміч,"Львівська область, Львів",84,2017-12-22,156,"Заробітна плата, премії","Заробітна плата, лікарняні, вагітності, відрядження, компенсації",61995,Центральний офіс,38558365,Україна,Зарплата,26008924418040,state,3179.52,Сапацінська Юлія Юріївна,,фізична особа
Самопоміч,"Черкаська область, Шполянський район, Шпола",84,2017-12-22,156,"Заробітна плата, премії","Заробітна плата, лікарняні, вагітності, відрядження, компенсації",61994,Центральний офіс,38558365,Україна,Зарплата,26008924418040,state,807.54,Шевченко Оксана Олексіївна,,фізична особа
Самопоміч,"Львівська область, Львів",84,2017-12-22,156,"Заробітна плата, премії","Заробітна плата, лікарняні, вагітності, відрядження, компенсації",61993,Центральний офіс,38558365,Україна,Зарплата,26008924418040,state,1607.47,Шевців Яромир Володимирович,,фізична особа
Самопоміч,"Сумська область, Кролевецький район, Кролевець",84,2017-12-22,156,"Заробітна плата, премії","Заробітна плата, лікарняні, вагітності, відрядження, компенсації",61992,Центральний офіс,38558365,Україна,Зарплата,26008924418040,state,1278.46,Бісюк Наталія Миколаївна,,фізична особа
Самопоміч,"Черкаська область, Канів",84,2017-12-22,156,"Заробітна плата, премії","Заробітна плата, лікарняні, вагітності, відрядження, компенсації",61991,Центральний офіс,38558365,Україна,Зарплата,26008924418040,state,2028.60,Мокрієнко Олександр Михайлович,,фізична особа
Самопоміч,"Львівська область, Борислав",84,2017-12-22,156,"Заробітна плата, премії","Заробітна плата, лікарняні, вагітності, відрядження, компенсації",61990,Центральний офіс,38558365,Україна,Зарплата,26008924418040,state,2264.06,Маринчак Марта Ярославівна,,фізична особа
Самопоміч,"Хмельницька область, Хмельницький",84,2017-12-22,156,"Заробітна плата, премії","Заробітна плата, лікарняні, вагітності, відрядження, компенсації",61989,Центральний офіс,38558365,Україна,Зарплата,26008924418040,state,708.37,Божеску Анастасія Олександрівна,,фізична особа
Самопоміч,"Дніпропетровська область, Дніпро́",84,2017-12-22,156,"Заробітна плата, премії","Заробітна плата, лікарняні, вагітності, відрядження, компенсації",61988,Центральний офіс,38558365,Україна,Зарплата,26008924418040,state,2713.25,Шустова Анна Анатоліївна,,фізична особа
Самопоміч,"Закарпатська область, Мукачево",84,2017-12-22,156,"Заробітна плата, премії","Заробітна плата, лікарняні, вагітності, відрядження, компенсації",61987,Центральний офіс,38558365,Україна,Зарплата,26008924418040,state,3895.99,Ковач Ольга Володимирівна,,фізична особа
Самопоміч,"Львівська область, Львів",84,2017-12-22,156,"Заробітна плата, премії","Заробітна плата, лікарняні, вагітності, відрядження, компенсації",61986,Центральний офіс,38558365,Україна,Зарплата,26008924418040,state,3095.41,Довганик Богдан Романович,,фізична особа
Самопоміч,"Вінницька область, Погребищенський район, Погребище",84,2017-12-22,156,"Заробітна плата, премії","Заробітна плата, лікарняні, вагітності, відрядження, компенсації",61985,Центральний офіс,38558365,Україна,Зарплата,26008924418040,state,1211.67,Барінова Тетяна Олегівна,,фізична особа
Самопоміч,"Тернопільська область, Тернопіль",84,2017-12-22,156,"Заробітна плата, премії","Заробітна плата, лікарняні, вагітності, відрядження, компенсації",61984,Центральний офіс,38558365,Україна,Зарплата,26008924418040,state,852.78,Криськів Світлана Михайлівна,,фізична особа
Самопоміч,"Луганська область, Луганськ",84,2017-12-22,156,"Заробітна плата, премії","Заробітна плата, лікарняні, вагітності, відрядження, компенсації",61983,Центральний офіс,38558365,Україна,Зарплата,26008924418040,state,1578.90,Мягкова Ірина Миколаївна,,фізична особа
Самопоміч,"Житомирська область, Пулинський район, Пулини",84,2017-12-22,156,"Заробітна плата, премії","Заробітна плата, лікарняні, вагітності, відрядження, компенсації",61982,Центральний офіс,38558365,Україна,Зарплата,26008924418040,state,1159.20,Сірик Владислав Сергійович,,фізична особа
Самопоміч,Київ,84,2017-12-22,156,"Заробітна плата, премії","Заробітна плата, лікарняні, вагітності, відрядження, компенсації",61981,Центральний офіс,38558365,Україна,Зарплата,26008924418040,state,3897.41,Костенко Валентин Ігорович,,фізична особа
Самопоміч,"Хмельницька область, Волочиський район, Волочиськ",84,2017-12-22,156,"Заробітна плата, премії","Заробітна плата, лікарняні, вагітності, відрядження, компенсації",61980,Центральний офіс,38558365,Україна,Зарплата,26008924418040,state,3872.25,Страз Оксана Антонівна,,фізична особа
Самопоміч,"Миколаївська область, Миколаїв",84,2017-12-22,156,"Заробітна плата, премії","Заробітна плата, лікарняні, вагітності, відрядження, компенсації",61979,Центральний офіс,38558365,Україна,Зарплата,26008924418040,state,2198.86,Євдокимов Юрій Вячеславович,,фізична особа
Самопоміч,"Івано-Франківська область, Тисменицький район, Вовчинець",84,2017-12-22,156,"Заробітна плата, премії","Заробітна плата, лікарняні, вагітності, відрядження, компенсації",61978,Центральний офіс,38558365,Україна,Зарплата,26008924418040,state,1159.20,Хмілевський Іван Ярославович,,фізична особа
Самопоміч,"Дніпропетровська область, Синельникове",84,2017-12-22,156,"Заробітна плата, премії","Заробітна плата, лікарняні, вагітності, відрядження, компенсації",61977,Центральний офіс,38558365,Україна,Зарплата,26008924418040,state,986.13,Панюшев Андрій Юрійович,,фізична особа
Самопоміч,"Львівська область, Львів",84,2017-12-22,156,"Заробітна плата, премії","Заробітна плата, лікарняні, вагітності, відрядження, компенсації",61976,Центральний офіс,38558365,Україна,Зарплата,26008924418040,state,3505.93,Карташев Ілля Сергійович,,фізична особа
Самопоміч,"Івано-Франківська область, Коломийський район, Коломия",84,2017-12-22,156,"Заробітна плата, премії","Заробітна плата, лікарняні, вагітності, відрядження, компенсації",61975,Центральний офіс,38558365,Україна,Зарплата,26008924418040,state,579.60,Галайчук Алла Миколаївна,,фізична особа
Самопоміч,Київ,84,2017-12-22,156,"Заробітна плата, премії","Заробітна плата, лікарняні, вагітності, відрядження, компенсації",61974,Центральний офіс,38558365,Україна,Зарплата,26008924418040,state,3493.70,Деркач Юлія Олександрівна,,фізична особа
Самопоміч,"Одеська область, Одеса",84,2017-12-22,156,"Заробітна плата, премії","Заробітна плата, лікарняні, вагітності, відрядження, компенсації",61973,Центральний офіс,38558365,Україна,Зарплата,26008924418040,state,547.18,Сергієнко Сергій Олександрович,,фізична особа
Самопоміч,"Кіровоградська область, Кропивницький",84,2017-12-22,156,"Заробітна плата, премії","Заробітна плата, лікарняні, вагітності, відрядження, компенсації",61972,Центральний офіс,38558365,Україна,Зарплата,26008924418040,state,4102.59,Савенко Владислав Сергійович,,фізична особа
Самопоміч,"Сумська область, Сумський район, Суми",84,2017-12-22,156,"Заробітна плата, премії","Заробітна плата, лікарняні, вагітності, відрядження, компенсації",61971,Центральний офіс,38558365,Україна,Зарплата,26008924418040,state,660.75,Бутенко Денис Миколайович,,фізична особа
Самопоміч,"Житомирська область, Любарський район, Любар",84,2017-12-22,156,"Заробітна плата, премії","Заробітна плата, лікарняні, вагітності, відрядження, компенсації",61970,Центральний офіс,38558365,Україна,Зарплата,26008924418040,state,905.63,Кидисюк Аліна Вікторівна,,фізична особа
Самопоміч,"Тернопільська область, Лановецький район, Ланівці",84,2017-12-22,156,"Заробітна плата, премії","Заробітна плата, лікарняні, вагітності, відрядження, компенсації",61969,Центральний офіс,38558365,Україна,Зарплата,26008924418040,state,1512.47,Терещук Валентина Юріївна,,фізична особа
Самопоміч,"Рівненська область, Березнівський район",84,2017-12-22,156,"Заробітна плата, премії","Заробітна плата, лікарняні, вагітності, відрядження, компенсації",61968,Центральний офіс,38558365,Україна,Зарплата,26008924418040,state,1676.82,Гречка Марина Вікторівна,,фізична особа
Самопоміч,"Львівська область, Дрогобицький район",84,2017-12-22,156,"Заробітна плата, премії","Заробітна плата, лікарняні, вагітності, відрядження, компенсації",61967,Центральний офіс,38558365,Україна,Зарплата,26008924418040,state,579.60,Оленич Сергій Романович,,фізична особа
Самопоміч,"Житомирська область, Овруцький район, Овруч",84,2017-12-22,156,"Заробітна плата, премії","Заробітна плата, лікарняні, вагітності, відрядження, компенсації",61966,Центральний офіс,38558365,Україна,Зарплата,26008924418040,state,905.63,Комаревич Сергій Васильович,,фізична особа
Самопоміч,Київ,84,2017-12-22,156,"Заробітна плата, премії","Заробітна плата, лікарняні, вагітності, відрядження, компенсації",61965,Центральний офіс,38558365,Україна,Зарплата,26008924418040,state,885.51,Мельник Ігор Вікторович,,фізична особа
Самопоміч,"Житомирська область, Житомир",84,2017-12-22,156,"Заробітна плата, премії","Заробітна плата, лікарняні, вагітності, відрядження, компенсації",61964,Центральний офіс,38558365,Україна,Зарплата,26008924418040,state,16.10,Плацинда Тетяна Анатоліївна,,фізична особа
Самопоміч,"Закарпатська область, Іршавський район, Іршава",84,2017-12-22,156,"Заробітна плата, премії","Заробітна плата, лікарняні, вагітності, відрядження, компенсації",61963,Центральний офіс,38558365,Україна,Зарплата,26008924418040,state,579.60,Балла Євгенія Василівна,,фізична особа
Самопоміч,"Івано-Франківська область, Коломийський район, Коломия",84,2017-12-22,156,"Заробітна плата, премії","Заробітна плата, лікарняні, вагітності, відрядження, компенсації",61962,Центральний офіс,38558365,Україна,Зарплата,26008924418040,state,5254.59,Федюк Любомир Мирославович,,фізична особа
Самопоміч,"Львівська область, Львів",84,2017-12-22,156,"Заробітна плата, премії","Заробітна плата, лікарняні, вагітності, відрядження, компенсації",61961,Центральний офіс,38558365,Україна,Зарплата,26008924418040,state,3579.33,Крупей Микола Ігорович,,фізична особа
Самопоміч,"Львівська область, Стрийський район",84,2017-12-22,156,"Заробітна плата, премії","Заробітна плата, лікарняні, вагітності, відрядження, компенсації",61960,Центральний офіс,38558365,Україна,Зарплата,26008924418040,state,515.20,Ярич Наталія Володимирівна,,фізична особа
Самопоміч,"Івано-Франківська область, Косівський район",84,2017-12-22,156,"Заробітна плата, премії","Заробітна плата, лікарняні, вагітності, відрядження, компенсації",61959,Центральний офіс,38558365,Україна,Зарплата,26008924418040,state,1204.55,Гордій Руслана Романівна,,фізична особа
Самопоміч,Миколаївська область,84,2017-12-22,156,"Заробітна плата, премії","Заробітна плата, лікарняні, вагітності, відрядження, компенсації",61958,Центральний офіс,38558365,Україна,Зарплата,26008924418040,state,2954.08,Смаровоз Ганна Георгіївна,,фізична особа
Самопоміч,"Рівненська область, Острозький район",84,2017-12-22,156,"Заробітна плата, премії","Заробітна плата, лікарняні, вагітності, відрядження, компенсації",61957,Центральний офіс,38558365,Україна,Зарплата,26008924418040,state,746.12,Вільбовець Ірина Валентинівна,,фізична особа
Самопоміч,"Львівська область, Сокальський район",84,2017-12-22,156,"Заробітна плата, премії","Заробітна плата, лікарняні, вагітності, відрядження, компенсації",61956,Центральний офіс,38558365,Україна,Зарплата,26008924418040,state,3104.78,Чунис Олег Романович,,фізична особа
Самопоміч,Київ,84,2017-12-22,156,"Заробітна плата, премії","Заробітна плата, лікарняні, вагітності, відрядження, компенсації",61955,Центральний офіс,38558365,Україна,Зарплата,26008924418040,state,3011.47,Прокопенко Марія Вадимівна,,фізична особа
Самопоміч,Київ,84,2017-12-22,156,"Заробітна плата, премії","Заробітна плата, лікарняні, вагітності, відрядження, компенсації",61954,Центральний офіс,38558365,Україна,Зарплата,26008924418040,state,7845.93,Ляпкало Галина Андріївна,,фізична особа
Самопоміч,"Львівська область, Пустомитівський район",84,2017-12-22,156,"Заробітна плата, премії","Заробітна плата, лікарняні, вагітності, відрядження, компенсації",61953,Центральний офіс,38558365,Україна,Зарплата,26008924418040,state,2407.59,Зільник Віталій Михайлович,,фізична особа
Самопоміч,"Черкаська область, Умань",84,2017-12-22,156,"Заробітна плата, премії","Заробітна плата, лікарняні, вагітності, відрядження, компенсації",61952,Центральний офіс,38558365,Україна,Зарплата,26008924418040,state,644.00,Біліченко Оксана Григорівна,,фізична особа
Самопоміч,Київ,84,2017-12-22,156,"Заробітна плата, премії","Заробітна плата, лікарняні, вагітності, відрядження, компенсації",61951,Центральний офіс,38558365,Україна,Зарплата,26008924418040,state,2173.50,Хамітжанова Людмила Петрівна,,фізична особа
Самопоміч,Керч,84,2017-12-22,156,"Заробітна плата, премії","Заробітна плата, лікарняні, вагітності, відрядження, компенсації",61950,Центральний офіс,38558365,Україна,Зарплата,26008924418040,state,2292.76,Савинська Ганна Олександрівна,,фізична особа
Самопоміч,"Кіровоградська область, Олександрійський район",84,2017-12-22,156,"Заробітна плата, премії","Заробітна плата, лікарняні, вагітності, відрядження, компенсації",61949,Центральний офіс,38558365,Україна,Зарплата,26008924418040,state,2716.88,Суліма Алла Володимирівна,,фізична особа
Самопоміч,"Волинська область, Володимир-Волинський",84,2017-12-22,156,"Заробітна плата, премії","Заробітна плата, лікарняні, вагітності, відрядження, компенсації",61948,Центральний офіс,38558365,Україна,Зарплата,26008924418040,state,1159.20,Шлейн Павло Павлович,,фізична особа
Самопоміч,"Львівська область, Львів",84,2017-12-22,156,"Заробітна плата, премії","Заробітна плата, лікарняні, вагітності, відрядження, компенсації",61947,Центральний офіс,38558365,Україна,Зарплата,26008924418040,state,3906.84,Мотус Оксана Іванівна,,фізична особа
Самопоміч,"Львівська область, Львів",84,2017-12-22,156,"Заробітна плата, премії","Заробітна плата, лікарняні, вагітності, відрядження, компенсації",61946,Центральний офіс,38558365,Україна,Зарплата,26008924418040,state,8574.06,Терещенко Роман Анатолійович,,фізична особа
Самопоміч,"Рівненська область, Сарненський район",84,2017-12-22,156,"Заробітна плата, премії","Заробітна плата, лікарняні, вагітності, відрядження, компенсації",61945,Центральний офіс,38558365,Україна,Зарплата,26008924418040,state,2928.23,Овсійчук Ірина Григорівна,,фізична особа
Самопоміч,"Львівська область, Львів",84,2017-12-22,156,"Заробітна плата, премії","Заробітна плата, лікарняні, вагітності, відрядження, компенсації",61944,Центральний офіс,38558365,Україна,Зарплата,26008924418040,state,5767.72,Огоновська Христина Богданівна,,фізична особа
Самопоміч,"Тернопільська область, Гусятинський район, Гусятин",84,2017-12-22,156,"Заробітна плата, премії","Заробітна плата, лікарняні, вагітності, відрядження, компенсації",61943,Центральний офіс,38558365,Україна,Зарплата,26008924418040,state,782.46,Маланюк Людмила Йосипівна,,фізична особа
Самопоміч,"Львівська область, Львів",84,2017-12-22,156,"Заробітна плата, премії","Заробітна плата, лікарняні, вагітності, відрядження, компенсації",61942,Центральний офіс,38558365,Україна,Зарплата,26008924418040,state,2705.78,Мулик Андрій Ігорович,,фізична особа
Самопоміч,"Львівська область, Золочівський район, Золочів",84,2017-12-22,156,"Заробітна плата, премії","Заробітна плата, лікарняні, вагітності, відрядження, компенсації",61941,Центральний офіс,38558365,Україна,Зарплата,26008924418040,state,3507.38,Муравель Тетяна Богданівна,,фізична особа
Самопоміч,"Житомирська область, Баранівський район, Баранівка",84,2017-12-22,156,"Заробітна плата, премії","Заробітна плата, лікарняні, вагітності, відрядження, компенсації",61940,Центральний офіс,38558365,Україна,Зарплата,26008924418040,state,200.45,Ворощук Сергій Антонович,,фізична особа
Самопоміч,"Івано-Франківська область, Тисменицький район, Тисмениця",84,2017-12-22,156,"Заробітна плата, премії","Заробітна плата, лікарняні, вагітності, відрядження, компенсації",61939,Центральний офіс,38558365,Україна,Зарплата,26008924418040,state,3151.67,Микитин Тарас Миронович,,фізична особа
Самопоміч,"Чернівецька область, Чернівці",84,2017-12-22,156,"Заробітна плата, премії","Заробітна плата, лікарняні, вагітності, відрядження, компенсації",61938,Центральний офіс,38558365,Україна,Зарплата,26008924418040,state,2332.17,Мустеца Алла Іванівна,,фізична особа
Самопоміч,"Житомирська область, Житомир",84,2017-12-22,156,"Заробітна плата, премії","Заробітна плата, лікарняні, вагітності, відрядження, компенсації",61937,Центральний офіс,38558365,Україна,Зарплата,26008924418040,state,2291.33,Старченко Матвій Сергійович,,фізична особа
Самопоміч,"Львівська область, Львів",84,2017-12-22,156,"Заробітна плата, премії","Заробітна плата, лікарняні, вагітності, відрядження, компенсації",61936,Центральний офіс,38558365,Україна,Зарплата,26008924418040,state,3081.14,Заяць Богдана Романівна,,фізична особа
Самопоміч,"Львівська область, Львів",84,2017-12-22,156,"Заробітна плата, премії","Заробітна плата, лікарняні, вагітності, відрядження, компенсації",61935,Центральний офіс,38558365,Україна,Зарплата,26008924418040,state,1123.28,Процик Остап Ярославович,,фізична особа
Самопоміч,"Харківська область, Харків",84,2017-12-22,156,"Заробітна плата, премії","Заробітна плата, лікарняні, вагітності, відрядження, компенсації",61934,Центральний офіс,38558365,Україна,Зарплата,26008924418040,state,1746.85,Бахтігозіна Марина Віталіївна,,фізична особа
Самопоміч,"Волинська область, Нововолинськ",84,2017-12-22,156,"Заробітна плата, премії","Заробітна плата, лікарняні, вагітності, відрядження, компенсації",61933,Центральний офіс,38558365,Україна,Зарплата,26008924418040,state,513.59,Манькута Олена Олексіївна,,фізична особа
Самопоміч,"Дніпропетровська область, Дніпровський район, Підгородне",84,2017-12-22,156,"Заробітна плата, премії","Заробітна плата, лікарняні, вагітності, відрядження, компенсації",61932,Центральний офіс,38558365,Україна,Зарплата,26008924418040,state,4510.01,Бухтіяров Олег Геннадійович,,фізична особа
Самопоміч,"Львівська область, Львів",84,2017-12-22,156,"Заробітна плата, премії","Заробітна плата, лікарняні, вагітності, відрядження, компенсації",61931,Центральний офіс,38558365,Україна,Зарплата,26008924418040,state,2296.46,Кравчик Орест Романович,,фізична особа
Самопоміч,"Дніпропетровська область, Нікополь",84,2017-12-22,156,"Заробітна плата, премії","Заробітна плата, лікарняні, вагітності, відрядження, компенсації",61930,Центральний офіс,38558365,Україна,Зарплата,26008924418040,state,2789.33,Полоз Марія Геннадіївна,,фізична особа
Самопоміч,"Черкаська область, Черкаси",84,2017-12-22,156,"Заробітна плата, премії","Заробітна плата, лікарняні, вагітності, відрядження, компенсації",61929,Центральний офіс,38558365,Україна,Зарплата,26008924418040,state,7037.66,Підгорний Максим Олександрович,,фізична особа
Самопоміч,Київ,84,2017-12-22,156,"Заробітна плата, премії","Заробітна плата, лікарняні, вагітності, відрядження, компенсації",61928,Центральний офіс,38558365,Україна,Зарплата,26008924418040,state,92.11,Гедройц Марія Олександрівна,,фізична особа
Самопоміч,"Вінницька область, Барський район, Балки",84,2017-12-22,156,"Заробітна плата, премії","Заробітна плата, лікарняні, вагітності, відрядження, компенсації",61927,Центральний офіс,38558365,Україна,Зарплата,26008924418040,state,579.60,Крикливий Олександр Володимирович,,фізична особа
Самопоміч,"Львівська область, Львів",84,2017-12-22,156,"Заробітна плата, премії","Заробітна плата, лікарняні, вагітності, відрядження, компенсації",61926,Центральний офіс,38558365,Україна,Зарплата,26008924418040,state,675.60,Туркот Ольга Андріївна,,фізична особа
Самопоміч,"Львівська область, Львів",84,2017-12-22,156,"Заробітна плата, премії","Заробітна плата, лікарняні, вагітності, відрядження, компенсації",61925,Центральний офіс,38558365,Україна,Зарплата,26008924418040,state,5504.68,Алєксєєва Наталія Ігорівна,,фізична особа
Самопоміч,Вінницька область,84,2017-12-22,156,"Заробітна плата, премії","Заробітна плата, лікарняні, вагітності, відрядження, компенсації",61924,Центральний офіс,38558365,Україна,Зарплата,26008924418040,state,1030.57,Ковальчук Вікторія Сергіївна,,фізична особа
Самопоміч,"Івано-Франківська область, Рожнятівський район, Нижній Струтинь",84,2017-12-22,156,"Заробітна плата, премії","Заробітна плата, лікарняні, вагітності, відрядження, компенсації",61923,Центральний офіс,38558365,Україна,Зарплата,26008924418040,state,1046.12,Самілів Галина Василівна,,фізична особа
Самопоміч,"Чернігівська область, Ніжин",84,2017-12-22,156,"Заробітна плата, премії","Заробітна плата, лікарняні, вагітності, відрядження, компенсації",61922,Центральний офіс,38558365,Україна,Зарплата,26008924418040,state,796.95,Середа Дмитро Анатолійович,,фізична особа
Самопоміч,"Рівненська область, Острог",84,2017-12-22,156,"Заробітна плата, премії","Заробітна плата, лікарняні, вагітності, відрядження, компенсації",61921,Центральний офіс,38558365,Україна,Зарплата,26008924418040,state,177.30,Балик Дмитро Миколайович,,фізична особа
Самопоміч,"Київська обл., Києво-Святошинський район",84,2017-12-22,156,"Заробітна плата, премії","Заробітна плата, лікарняні, вагітності, відрядження, компенсації",61920,Центральний офіс,38558365,Україна,Зарплата,26008924418040,state,9001.47,Берко Степан Тарасович,,фізична особа
Самопоміч,"Полтавська область, Полтава",84,2017-12-22,156,"Заробітна плата, премії","Заробітна плата, лікарняні, вагітності, відрядження, компенсації",61919,Центральний офіс,38558365,Україна,Зарплата,26008924418040,state,1495.81,Петрова Олена Борисівна,,фізична особа
Самопоміч,"Сумська область, Сумський район, Суми",84,2017-12-22,156,"Заробітна плата, премії","Заробітна плата, лікарняні, вагітності, відрядження, компенсації",61918,Центральний офіс,38558365,Україна,Зарплата,26008924418040,state,1303.88,Бєлікова Олена Миколаївна,,фізична особа
Самопоміч,"Івано-Франківська область, Городенківський район, Городенка",84,2017-12-22,156,"Заробітна плата, премії","Заробітна плата, лікарняні, вагітності, відрядження, компенсації",61917,Центральний офіс,38558365,Україна,Зарплата,26008924418040,state,702.22,Стасюк Любомир Мирославович,,фізична особа
Самопоміч,"Хмельницька область, Шепетівка",84,2017-12-22,156,"Заробітна плата, премії","Заробітна плата, лікарняні, вагітності, відрядження, компенсації",61916,Центральний офіс,38558365,Україна,Зарплата,26008924418040,state,746.12,Примак Віталій Олександрович,,фізична особа
Самопоміч,"Тернопільська область, Зборівський район",84,2017-12-22,156,"Заробітна плата, премії","Заробітна плата, лікарняні, вагітності, відрядження, компенсації",61915,Центральний офіс,38558365,Україна,Зарплата,26008924418040,state,579.60,Андрієвська Ольга Михайлівна,,фізична особа
Самопоміч,"Львівська область, Львів",84,2017-12-22,156,"Заробітна плата, премії","Заробітна плата, лікарняні, вагітності, відрядження, компенсації",61914,Центральний офіс,38558365,Україна,Зарплата,26008924418040,state,6808.28,Рудич Анастасія Валентинівна,,фізична особа
Самопоміч,Київ,84,2017-12-22,156,"Заробітна плата, премії","Заробітна плата, лікарняні, вагітності, відрядження, компенсації",61913,Центральний офіс,38558365,Україна,Зарплата,26008924418040,state,3199.16,Кирилов Володимир Сергійович,,фізична особа
Самопоміч,"Львівська область, Стрийський район",84,2017-12-22,156,"Заробітна плата, премії","Заробітна плата, лікарняні, вагітності, відрядження, компенсації",61912,Центральний офіс,38558365,Україна,Зарплата,26008924418040,state,2535.75,Шваб Юрій Андрійович,,фізична особа
Самопоміч,"Львівська область, Львів",84,2017-12-22,156,"Заробітна плата, премії","Заробітна плата, лікарняні, вагітності, відрядження, компенсації",61911,Центральний офіс,38558365,Україна,Зарплата,26008924418040,state,1069.67,Яким Лілія Степанівна,,фізична особа
Самопоміч,"Вінницька область, Козятин",84,2017-12-22,156,"Заробітна плата, премії","Заробітна плата, лікарняні, вагітності, відрядження, компенсації",61910,Центральний офіс,38558365,Україна,Зарплата,26008924418040,state,1425.67,Юхимець Руслана Олегівна,,фізична особа
Самопоміч,"Закарпатська область, Тячівський район, Тячів",84,2017-12-22,156,"Заробітна плата, премії","Заробітна плата, лікарняні, вагітності, відрядження, компенсації",61909,Центральний офіс,38558365,Україна,Зарплата,26008924418040,state,1512.89,Кость Владислава Федорівна,,фізична особа
Самопоміч,"Херсонська область, Херсон",84,2017-12-22,156,"Заробітна плата, премії","Заробітна плата, лікарняні, вагітності, відрядження, компенсації",61908,Центральний офіс,38558365,Україна,Зарплата,26008924418040,state,3151.57,Білковський Вʼячеслав Вʼячеславович,,фізична особа
Самопоміч,"Миколаївська область, Очаків",84,2017-12-22,156,"Заробітна плата, премії","Заробітна плата, лікарняні, вагітності, відрядження, компенсації",61907,Центральний офіс,38558365,Україна,Зарплата,26008924418040,state,3595.00,Твердовська Ірина Рафкатівна,,фізична особа
Самопоміч,Херсонська область,84,2017-12-22,156,"Заробітна плата, премії","Заробітна плата, лікарняні, вагітності, відрядження, компенсації",61906,Центральний офіс,38558365,Україна,Зарплата,26008924418040,state,2784.54,Подольський Дмитро Сергійович,,фізична особа
Самопоміч,"Львівська область, Львів",84,2017-12-22,156,"Заробітна плата, премії","Заробітна плата, лікарняні, вагітності, відрядження, компенсації",61905,Центральний офіс,38558365,Україна,Зарплата,26008924418040,state,3935.13,Басик Андрій Миколайович,,фізична особа
Самопоміч,"Волинська область, Камінь-Каширський район, Камінь-Каширський",84,2017-12-22,156,"Заробітна плата, премії","Заробітна плата, лікарняні, вагітності, відрядження, компенсації",61904,Центральний офіс,38558365,Україна,Зарплата,26008924418040,state,1676.83,Рогозіна Тетяна Олександрівна,,фізична особа
Самопоміч,"Львівська область, Львів",84,2017-12-22,156,"Заробітна плата, премії","Заробітна плата, лікарняні, вагітності, відрядження, компенсації",61903,Центральний офіс,38558365,Україна,Зарплата,26008924418040,state,2480.96,Кутко Соломія Степанівна,,фізична особа
Самопоміч,"Львівська область, Львів, вулиця Ковельська, 67А",80,2017-12-22,4553,"Транспортні послуги (квитки, пасажирські перевезення і т.д.)","Транспортні послуги (квитки, пасажирські перевезення і т.д.)",59567,Центральний офіс,38558365,Україна,"Оплата за транспортні послуги, згідно рахунку № 2112/6 від 21.12.17р.",26008924418040,state,6000.00,Кулеба Ігор Іванович,,фізична особа
Самопоміч,"Львівська область, Львів, вулиця Ковельська, 67А",80,2017-12-22,4554,"Транспортні послуги (квитки, пасажирські перевезення і т.д.)","Транспортні послуги (квитки, пасажирські перевезення і т.д.)",59566,Центральний офіс,38558365,Україна,"Оплата за транспортні послуги, згідно рахунку № 2012/3 від 20.12.17р.",26008924418040,state,16925.00,Кулеба Ігор Іванович,,фізична особа
Самопоміч,"Львівська область, Львів, вулиця Липинського, 10",80,2017-12-22,4557,"Транспортні послуги (квитки, пасажирські перевезення і т.д.)","Транспортні послуги (квитки, пасажирські перевезення і т.д.)",59565,Центральний офіс,38558365,Україна,"Оплата за транспортні послуги, згідно рахунку № 2012/1 від 2017-12-20 р.",26008924418040,state,12600.00,Глинський Микола Петрович,,фізична особа
Самопоміч,"Львівська область, Львів, вулиця Ковельська, 67А",80,2017-12-22,4556,"Транспортні послуги (квитки, пасажирські перевезення і т.д.)","Транспортні послуги (квитки, пасажирські перевезення і т.д.)",59564,Центральний офіс,38558365,Україна,"Оплата за транспортні послуги, згідно рахунку № 1912/4 від 19.12.17р.",26008924418040,state,12600.00,Кулеба Ігор Іванович,,фізична особа
Самопоміч,"Львівська область, Львів, вулиця Ковельська, 67А",80,2017-12-22,4555,"Транспортні послуги (квитки, пасажирські перевезення і т.д.)","Транспортні послуги (квитки, пасажирські перевезення і т.д.)",59563,Центральний офіс,38558365,Україна,"Оплата за транспортні послуги, згідно рахунку № 1912/3 від 19.12.17р.",26008924418040,state,9500.00,Кулеба Ігор Іванович,,фізична особа
Самопоміч,"Львівська область, Львів, вулиця Липинського, 10",80,2017-12-22,4558,"Транспортні послуги (квитки, пасажирські перевезення і т.д.)","Транспортні послуги (квитки, пасажирські перевезення і т.д.)",59562,Центральний офіс,38558365,Україна,"Оплата за транспортні послуги, згідно рахунку № 1912/1 від 2017-12-19 р.",26008924418040,state,4000.00,Глинський Микола Петрович,,фізична особа
Самопоміч,"Хмельницька область, Хмельницький, вулиця Тернопільська, 44",75,2017-12-22,4497,Поштові послуги та поширення друкованих матеріалів,Поштові послуги та поширення друкованих матеріалів,59561,Центральний офіс,38558365,Україна,"Оплата за розповсюдження рекламно-інформаційних матеріалів у грудні 2017 р. , згідно рахунку-фактури № 170146 від 2017-12-18 р. в т.ч. ПДВ 1666.67 грн.",26008924418040,state,10000.00,Тхожевський Владислав Володимирович,,фізична особа
Самопоміч,"Київ, вулиця Анни Ахматової, 13А",75,2017-12-22,4570,Поштові послуги та поширення друкованих матеріалів,Поштові послуги та поширення друкованих матеріалів,59560,Центральний офіс,38558365,Україна,"Оплата за розповсюдження поліграфічної продукції, згідно акту надання послуг з розповсюдження продукції від 2017-12-18 р.",26008924418040,state,36000.00,Лобода Лариса Анатоліївна,,фізична особа
Самопоміч,"Київ, вулиця Анни Ахматової, 13А",75,2017-12-22,4571,Поштові послуги та поширення друкованих матеріалів,Поштові послуги та поширення друкованих матеріалів,59559,Центральний офіс,38558365,Україна,"Оплата за розповсюдження поліграфічної продукції, згідно акту надання послуг з розповсюдження продукції від 2017-12-18 р.",26008924418040,state,15800.00,Лобода Лариса Анатоліївна,,фізична особа
Самопоміч,"Закарпатська область, Ужгородський район, площа Народна, 53",75,2017-12-22,4536,Поштові послуги та поширення друкованих матеріалів,Поштові послуги та поширення друкованих матеріалів,59558,Центральний офіс,38558365,Україна,"Оплата за розповсюдження поліграфічної продукції, згідно акту надання послуг з розповсюдження продукції № 1 від 2017-10-23 р.",26008924418040,state,10375.00,Ященко Євген Валерійович,,фізична особа
Самопоміч,"Сумська область, Суми, проспект Михайла Лушпи, 11, 148",75,2017-12-22,4567,Поштові послуги та поширення друкованих матеріалів,Поштові послуги та поширення друкованих матеріалів,59557,Центральний офіс,38558365,Україна,"Оплата за розповсюдження поліграфічної продукції по поштовим скринькам, згідно рахунку № 12-12-17/03 від 2017-12-18 р.",26008924418040,state,6840.00,Дубинський Сергій Сергійович,,фізична особа
Самопоміч,"Чернігівська область, Ніжин, вулиця Синяківська, 57",75,2017-12-22,4569,Поштові послуги та поширення друкованих матеріалів,Поштові послуги та поширення друкованих матеріалів,59556,Центральний офіс,38558365,Україна,"Оплата за розповсюдження поліграфічної продукції 54 тис. шт., згідно рахунку-фактури № СФ-0000810 від 2017-12-13 р.",26008924418040,state,16200.00,Хоминець Володимир Павлович,,фізична особа
Самопоміч,"Київ, вулиця Анни Ахматової, 13А",75,2017-12-22,4572,Поштові послуги та поширення друкованих матеріалів,Поштові послуги та поширення друкованих матеріалів,59555,Центральний офіс,38558365,Україна,"Оплата за розповсюдження поліграфічної продукції 300 тис. примірників, згідно акту надання послуг з розповсюдження продукції від 2017-12-18 р.",26008924418040,state,54000.00,Лобода Лариса Анатоліївна,,фізична особа
Самопоміч,"Закарпатська область, Мукачево, улица Ивана Паркания, 13",75,2017-12-22,4600,Поштові послуги та поширення друкованих матеріалів,Поштові послуги та поширення друкованих матеріалів,59554,Центральний офіс,38558365,Україна,"Оплата за розповсюдження поліграфічної продукції (тираж 13335 екземплярів), згідно акту надання послуг №09/10 від 30.10.17 р.",26008924418040,state,2000.00,Дворниченко Сергій Вікторович,,фізична особа
Самопоміч,"Херсонська область, Херсон, вулиця Михайлівська, 30",75,2017-12-22,4568,Поштові послуги та поширення друкованих матеріалів,Поштові послуги та поширення друкованих матеріалів,59553,Центральний офіс,38558365,Україна,"Оплата за розповсюдження поліграфічної продукції 50400 шт, згідно акту надання послуг з розповсюдження продукції № 3 від 2017-12-19 р.",26008924418040,state,15120.00,Вірлич Євгенія Михайлівна,,фізична особа
Самопоміч,"Миколаївська область, Миколаїв, вулиця Лазурна, 6",75,2017-12-22,4566,Поштові послуги та поширення друкованих матеріалів,Поштові послуги та поширення друкованих матеріалів,59552,Центральний офіс,38558365,Україна,"Оплата за розповсюдження поліграфії, згідно акту надання послуг з розповсюдження продукції № 19/2 від 2017-12-19 р.",26008924418040,state,30720.00,Деменьский Дмитро Павлович,,фізична особа
Самопоміч,"Харківська область, Харків, проспект Ювілейний, 65, 83",75,2017-12-22,4576,Поштові послуги та поширення друкованих матеріалів,Поштові послуги та поширення друкованих матеріалів,59551,Центральний офіс,38558365,Україна,"Оплата за розповсюдження газети ʼОбʼєднання ʼСамопомічʼ , згідно рахунку на оплату № 84 від 18.12.17р.",26008924418040,state,86040.00,Руденко Андрій Володимирович,,фізична особа
Самопоміч,"Закарпатська область, Ужгород, вулиця Швабська, 64",75,2017-12-22,4537,Поштові послуги та поширення друкованих матеріалів,Поштові послуги та поширення друкованих матеріалів,59550,Центральний офіс,38558365,Україна,"Оплата за розповсюдження поліграфії по поштовим скринькам будинкам у м. Ужгород 29820 екземплярів, згідно акту надання послуг № 2/11 від 2017-11-23 р.",26008924418040,state,4771.20,Біланіна Олена Володимирівна,,фізична особа
Самопоміч,"Закарпатська область, Ужгород, вулиця Швабська, 64",75,2017-12-22,4577,Поштові послуги та поширення друкованих матеріалів,Поштові послуги та поширення друкованих матеріалів,59549,Центральний офіс,38558365,Україна,"Оплата за розповсюдження поліграфії по поштовим скринькам будинкам у м. Ужгород 21800 екземплярів, згідно акту надання послуг № 3/12 від 2017-12-20 р.",26008924418040,state,3488.00,Біланіна Олена Володимирівна,,фізична особа
Самопоміч,"Львівська область, Миколаївський район, Миколаїв, вулиця Данила Галицького, 8",49,2017-12-22,4583,Публікування матеріалів у друкованих ЗМІ,Реклама в друкованих ЗМІ,59548,Центральний офіс,38558365,Україна,"Оплата за розміщення статті в газеті ʼГлечик. Інфоʼ, згідно акту приймання-передачі наданих послуг від 2017-12-19р.",26008924418040,state,2000.00,Возна Марʼяна Василівна,,фізична особа
Самопоміч,"Івано-Франківська область, Коломия, вулиця Дружби, 7",53,2017-12-22,4515,Витрати на розміщення зовнішньої реклами,Зовнішня реклама,59547,Центральний офіс,38558365,Україна,"Оплата за розміщення реклами на рекламних конструкціях з 2017-12-01 р по 2017-12-20 р., згідно акту надання послуг від 2017-12-20 р.",26008924418040,state,1258.00,Бабинюк Богдан Ярославович,3227406316,фізична особа
Самопоміч,"Запорізька область, Запоріжжя, вулиця Громової, 8",50,2017-12-22,4547,Оплата ефірного часу на радіо,Реклама на радіо,59546,Центральний офіс,38558365,Україна,"Оплата за рекламно-інформаційні послуги (висвітлення на радіо) 28, 29, 30 листопада 2017р., згідно рахунку-фактури № СФ-000204 від 28.11.17р.",26008924418040,state,10650.00,Бринза Ольга Павлівна,,фізична особа
Самопоміч,"Запорізька область, Запоріжжя, вулиця Громової, 8",50,2017-12-22,4546,Оплата ефірного часу на радіо,Реклама на радіо,59545,Центральний офіс,38558365,Україна,"Оплата за рекламно-інформаційні послуги (висвітлення на радіо) 08, 09, 10 листопада 2017р., згідно рахунку-фактури № СФ-000208 від 08.11.17р.",26008924418040,state,12168.00,Бринза Ольга Павлівна,,фізична особа
Самопоміч,"Тернопільська область, Чортківський район, Чортків, вулиця Ринок, 41",69,2017-12-22,4528,Організація заходів та інші організаційні послуги,Організація заходів та інші організаційні послуги,59544,Центральний офіс,38558365,Україна,"Оплата за проведення тренінгів, згідно акту приймання-передачі наданих послуг від 2017-12-18 р.",26008924418040,state,3650.00,Петльований Анатолій Володимирович,,фізична особа
Самопоміч,"Львівська область, Львів, вулиця Романчука, 1",69,2017-12-22,4499,Організація заходів та інші організаційні послуги,Організація заходів та інші організаційні послуги,59543,Центральний офіс,38558365,Україна,"Оплата за послуги організації заходів, згідно акту прийому-передачі наданих послуг від 2017-12-18 р.",26008924418040,state,33600.00,Фільченко Іван Юрійович,,фізична особа
Самопоміч,"Київ, вулиця Генерала Наумова, 19",54,2017-12-22,4539,Виготовлення відеозаписів,Реклама (без класифікації),59542,Центральний офіс,38558365,Україна,"Оплата за послуги із створення відео-контенту, згідно рахунку-фактури № 0612 від 2017-12-06 р.",26008924418040,state,9500.00,Подорожний Нікіта Анатолійович,,фізична особа
Самопоміч,"Київ, вулиця Мала Житомирська, 20",69,2017-12-22,4527,Організація заходів та інші організаційні послуги,Організація заходів та інші організаційні послуги,59541,Центральний офіс,38558365,Україна,"Оплата за послуги з проведення тренінгів, згідно акту приймання-передачі наданих послуг від 2017-12-19 р.",26008924418040,state,38665.00,Трушкевич Тетяна Миколаївна,,фізична особа
Самопоміч,"Запорізька область, Запоріжжя, Нижньодніпровська вулиця, 6, 10",69,2017-12-22,4520,Організація заходів та інші організаційні послуги,Організація заходів та інші організаційні послуги,59540,Центральний офіс,38558365,Україна,"Оплата за послуги з проведення тренінгів, згідно акту приймання-передачі наданих послуг від 2017-12-18 р.",26008924418040,state,2588.46,Романюк Олег Васильович,,фізична особа
Самопоміч,"Київ, проспект Героїв Сталінграда, 20А",69,2017-12-22,4518,Організація заходів та інші організаційні послуги,Організація заходів та інші організаційні послуги,59539,Центральний офіс,38558365,Україна,"Оплата за послуги з проведення тренінгів по містах України, згідно акту приймання-передачі наданих послуг від 18.12.17р.",26008924418040,state,63480.00,Кебас Олексій Тарасович,,фізична особа
Самопоміч,"Київ, проспект Героїв Сталінграда, 20А",69,2017-12-22,4519,Організація заходів та інші організаційні послуги,Організація заходів та інші організаційні послуги,59538,Центральний офіс,38558365,Україна,"Оплата за послуги з проведення тренінгів по містах України, згідно акту приймання-передачі наданих послуг від 01.12.17р.",26008924418040,state,76500.00,Кебас Олексій Тарасович,,фізична особа
Самопоміч,"Закарпатська область, Ужгород, проспект Свободи, 18, 19",79,2017-12-22,4597,"Оренда будинків і приміщень та експлуатаційні витрати (прибирання, страхування орендованих будинків, охорона, сигналізація, ремонт, вивіз сміття, тощо)",Оренда нерухомості,59537,Центральний офіс,38558365,Україна,"Оплата за оренду нерухомого майна з 2017-12-01 р. по 2017-12-20р., згідно акту наданих послуг від 20.12.17р.",26008924418040,state,3925.81,Орос Оксана Степанівна,,фізична особа
Самопоміч,"Київська обл., Васильків, вулиця Соборна, 142",79,2017-12-22,4540,"Оренда будинків і приміщень та експлуатаційні витрати (прибирання, страхування орендованих будинків, охорона, сигналізація, ремонт, вивіз сміття, тощо)",Оренда нерухомості,59536,Центральний офіс,38558365,Україна,"Оплата за оренду нежитлового приміщення у листопаді 2017 р., згідно акту наданих послуг від 2017-11-30 р.",26008924418040,state,2462.06,Струк Андрій Анатолійович,,фізична особа
Самопоміч,"Тернопільська область, Підволочиський район, Скалат",69,2017-12-22,4495,Організація заходів та інші організаційні послуги,Організація заходів та інші організаційні послуги,59535,Центральний офіс,38558365,Україна,"Оплата за організацію заходу, згідно рахунку на оплату №71 від 08.12.17р.",26008924418040,state,9020.00,Постригач Лілія Володимирівна,,фізична особа
Самопоміч,"Львівська область, Яворівський район, Бірки, вулиця Брюховицька, 26",75,2017-12-22,4593,Поштові послуги та поширення друкованих матеріалів,Поштові послуги та поширення друкованих матеріалів,59534,Центральний офіс,38558365,Україна,"Оплата за обслуговування та користувацький супровід системи, згідно акту прийому-передачі наданих послуг від 2017-12-22 р.",26008924418040,state,42360.00,Пасемко Ігор Степанович,,фізична особа
Самопоміч,"Львівська область, Львів, проспект В'ячеслава Чорновола, 23",48,2017-12-22,4603,Публікування матеріалів у мережі Інтернет,Реклама в інтернеті,59533,Центральний офіс,38558365,Україна,"Оплата за надання інформаційних послуг, згідно рахунку-фактури № 05-СА від 2017-12-15 р.",26008924418040,state,5000.00,Болкун Андрій Богданович,,фізична особа
Самопоміч,"Львівська область, Львів, вулиця Липова Алея, 5А, 26",74,2017-12-22,4588,"Придбання канцтоварів, паперу, інших предметів і матеріалів, а також госп товари",Придбання канцтоварів та госп. товарів,59532,Центральний офіс,38558365,Україна,"Оплата за медалі , згідно рахунку-фактури №РФ-1478 від 2017-10-05р.",26008924418040,state,4080.00,Кутянський Роман Григорович,,фізична особа
Самопоміч,"Волинська область, Ковель, вулиця Відродження, 4, 43",57,2017-12-22,4592,Виготовлення брендованої продукції,"Виготовлення брендованої продукції (футболки, кепки, парасольки)",59531,Центральний офіс,38558365,Україна,"Оплата за значки та наліпки з логотипом, згідно рахунку №27/11-03 від 27.11.17р",26008924418040,state,6600.00,Ляшук Андрій Володимирович,2525618876,фізична особа
Самопоміч,"Київська обл., Білоцерківський район, Дрозди",58,2017-12-22,4500,"Виготовлення друкованих матеріалів (плакатів, листівок, буклетів та інших агітаційних матеріалів)",Друкована агітація,59530,Центральний офіс,38558365,Україна,"Оплата за друк флаєрів А4 ʼбезкоштовні лікиʼ м. Біла Церква, згідно видаткової накладної № 3 від 2017-12-06 р.",26008924418040,state,6965.70,Татарін Михайло Васильович,,фізична особа
Самопоміч,"Львівська область, Львів, вулиця Академіка Лазаренка, 36",58,2017-12-22,4531,"Виготовлення друкованих матеріалів (плакатів, листівок, буклетів та інших агітаційних матеріалів)",Друкована агітація,59529,Центральний офіс,38558365,Україна,"Оплата за додрукарські послуги, згідно акту приймання-передачі наданих послуг від 19.12.17р.",26008924418040,state,8063.52,Васьків-Кукул Оксана Григорівна,,фізична особа
Самопоміч,"Львівська область, Львів, вулиця Академіка Лазаренка, 36",58,2017-12-22,4530,"Виготовлення друкованих матеріалів (плакатів, листівок, буклетів та інших агітаційних матеріалів)",Друкована агітація,59528,Центральний офіс,38558365,Україна,"Оплата за додрукарські послуги, згідно акту приймання-передачі наданих послуг від 10.12.17р.",26008924418040,state,12803.62,Васьків-Кукул Оксана Григорівна,,фізична особа
Самопоміч,"Львівська область, Львів, вулиця Академіка Лазаренка, 36",58,2017-12-22,4529,"Виготовлення друкованих матеріалів (плакатів, листівок, буклетів та інших агітаційних матеріалів)",Друкована агітація,59527,Центральний офіс,38558365,Україна,"Оплата за додрукарські послуги, згідно акту приймання-передачі наданих послуг від 02.12.17р.",26008924418040,state,21908.25,Васьків-Кукул Оксана Григорівна,,фізична особа
Самопоміч,"Івано-Франківська область, Івано-Франківськ, вулиця Вовчинецька, 77",58,2017-12-22,4496,"Виготовлення друкованих матеріалів (плакатів, листівок, буклетів та інших агітаційних матеріалів)",Друкована агітація,59526,Центральний офіс,38558365,Україна,"Оплата за візитки, календарі та флаєра, згідно рахунку-фактури № СФ-000112 від 2017-12-08 р",26008924418040,state,4763.00,Майданчук Ірина Іванівна,,фізична особа
Самопоміч,"Львівська область, Львів, вулиця Лисенка, 16",54,2017-12-22,4532,Виготовлення відеозаписів,Реклама (без класифікації),59525,Центральний офіс,38558365,Україна,"Оплата за виробництво телевізійного відеоролика, згідно рахунку № 1-18/12 від 2017-12-18 р.",26008924418040,state,85000.00,Сурмай Уляна Ігорівна,,фізична особа
Самопоміч,"Львівська область, Львів, вулиця Лисенка, 16",54,2017-12-22,4533,Виготовлення відеозаписів,Реклама (без класифікації),59524,Центральний офіс,38558365,Україна,"Оплата за виготовлення телевізійних програм, згідно акту наданих послуг від 2017-12-15 р.",26008924418040,state,96000.00,Сурмай Уляна Ігорівна,,фізична особа
Самопоміч,"Львівська область, Львів, вулиця Лисенка, 16",54,2017-12-22,4534,Виготовлення відеозаписів,Реклама (без класифікації),59523,Центральний офіс,38558365,Україна,"Оплата за виготовлення телевізійних програм ʼСамопоміч. Країнаʼ, згідно рахунку № 1-05/12 від 2017-12-05 р.",26008924418040,state,75000.00,Сурмай Уляна Ігорівна,,фізична особа
Самопоміч,"Київська обл., Обухівський район, Українка, Дніпровський проспект, 16",58,2017-12-22,4544,"Виготовлення друкованих матеріалів (плакатів, листівок, буклетів та інших агітаційних матеріалів)",Друкована агітація,59522,Центральний офіс,38558365,Україна,"Оплата за буклети А4, календарі, листівки А4 і А5, згідно рахунку-фактури № 170066 від 2017-12-15 р.",26008924418040,state,68400.00,Пилипенко Наталія Віталіївна,,фізична особа
Самопоміч,"Черкаська область, Городищенський район, Журавка",79,2017-12-22,4511,"Оренда будинків і приміщень та експлуатаційні витрати (прибирання, страхування орендованих будинків, охорона, сигналізація, ремонт, вивіз сміття, тощо)",Оренда нерухомості,59521,Центральний офіс,38558365,Україна,"Для поповнення карткового рахунку Соловей Юрій Михайлович Оплата оренди приміщення за листопад 17р.,зг. акту над. посл. від 30.11.17р.",26008924418040,state,4025.00,Соловей Юрій Михайлович,,фізична особа
Самопоміч,"Черкаська область, Городищенський район, Журавка",79,2017-12-22,4508,"Оренда будинків і приміщень та експлуатаційні витрати (прибирання, страхування орендованих будинків, охорона, сигналізація, ремонт, вивіз сміття, тощо)",Оренда нерухомості,59520,Центральний офіс,38558365,Україна,"Для поповнення карткового рахунку Соловей Юрій Михайлович Оплата оренди приміщення за жовтень 2017р.,зг. акту над. посл від 31.10.17р.",26008924418040,state,3375.36,Соловей Юрій Михайлович,,фізична особа
Самопоміч,"Черкаська область, Городищенський район, Журавка",79,2017-12-22,4514,"Оренда будинків і приміщень та експлуатаційні витрати (прибирання, страхування орендованих будинків, охорона, сигналізація, ремонт, вивіз сміття, тощо)",Оренда нерухомості,59519,Центральний офіс,38558365,Україна,"Для поповнення карткового рахунку Соловей Юрій Михайлович Оплата оренди приміщення з 01-20.12.17р.,зг. акту над. посл. від 20.12.17р.",26008924418040,state,2596.93,Соловей Юрій Михайлович,,фізична особа
Самопоміч,"Чернігівська область, Прилуцький район, Товкачівка",79,2017-12-22,4505,"Оренда будинків і приміщень та експлуатаційні витрати (прибирання, страхування орендованих будинків, охорона, сигналізація, ремонт, вивіз сміття, тощо)",Оренда нерухомості,59518,Центральний офіс,38558365,Україна,"Для поповнення картки Шевченко Віталій Вікторович Оплата оренди нежитлового прим. з 01-20.12.17р., зг. акту від 20.12.17р.",26008924418040,state,3424.62,Шевченко Віталій Вікторович,,фізична особа
Самопоміч,"Тернопільська область, Зборівський район, Іванківці",79,2017-12-22,4552,"Оренда будинків і приміщень та експлуатаційні витрати (прибирання, страхування орендованих будинків, охорона, сигналізація, ремонт, вивіз сміття, тощо)",Оренда нерухомості,59517,Центральний офіс,38558365,Україна,"Для поповнення картки Наконечна Ганна Амвросіївна Оплата оренди нежитлового приміщення за листопад 2017р.,зг. акту від 30.11.17р.",26008924418040,state,805.00,Наконечна Ганна Амвросіївна,,фізична особа
Самопоміч,"Львівська область, Львів, вулиця Городоцька, 165, 70",58,2017-12-22,,"Виготовлення друкованих матеріалів (плакатів, листівок, буклетів та інших агітаційних матеріалів)",Друкована агітація,53079,Центральний офіс,38558365,Україна,’+1110; Оплата за виготовлення друкованих матеріалів передвиборної агітації згідно рах. № 0000025 від 2017-12-21р.,26006530146200,current,120.00,Чміль Святослав Львович,3039106214,фізична особа
Самопоміч,"Тернопільська область, Тернопіль, вулиця Лучаківського, 10, 101",58,2017-12-22,4605,"Виготовлення друкованих матеріалів (плакатів, листівок, буклетів та інших агітаційних матеріалів)",Друкована агітація,52829,Центральний офіс,38558365,Україна,"Оплата за друк юридичних довідників, календарів та ін., згідно рахунку на оплату № 285 від 22.12.17р.",26008924418040,state,11915.63,Красниця Теодозій Володимирович,1962702237,фізична особа
Самопоміч,"Тернопільська область, Тернопіль, вулиця Лучаківського, 10, 101",58,2017-12-22,130286948,"Виготовлення друкованих матеріалів (плакатів, листівок, буклетів та інших агітаційних матеріалів)",Друкована агітація,52802,Центральний офіс,38558365,Україна,’+1110; Оплата за виготовлення друкованих матеріалів передвиборчої агітації згідно рах. № 168 від 2017-12-15 р.,26006530146200,current,361.88,Красниця Теодозій Володимирович,1962702237,фізична особа
Самопоміч,"Тернопільська область, Тернопіль, вулиця Лучаківського, 10, 101",58,2017-12-22,1,"Виготовлення друкованих матеріалів (плакатів, листівок, буклетів та інших агітаційних матеріалів)",Друкована агітація,52795,Центральний офіс,38558365,Україна,"оплата за виготовлення друкованих матеріалів передвиборної агітації, згідно рахунку № 263 від 2017-12-20 р., без ПДВ, пл. Гересименя Т.О.",26006530146200,current,361.88,Красниця Теодозій Володимирович,1962702237,фізична особа
Самопоміч,"Тернопільська область, Тернопіль, вулиця Лучаківського, 10, 101",58,2017-12-22,1,"Виготовлення друкованих матеріалів (плакатів, листівок, буклетів та інших агітаційних матеріалів)",Друкована агітація,52793,Центральний офіс,38558365,Україна,"’+1110; оплата за виготовлення друкованих матеріалів передвиборної агітації згідно рахунку № 265 від 2017-12-21р., без ПДВ.",26006530146200,current,361.88,Красниця Теодозій Володимирович,1962702237,фізична особа
Самопоміч,"Тернопільська область, Тернопіль, вулиця Лучаківського, 10, 101",58,2017-12-22,,"Виготовлення друкованих матеріалів (плакатів, листівок, буклетів та інших агітаційних матеріалів)",Друкована агітація,52792,Центральний офіс,38558365,Україна,"’+1110; оплата за виготовлення друкованих матеріалів передвиборної агітації, згідно рах. № 264 від 2017-12-20р.",26006530146200,current,361.88,Красниця Теодозій Володимирович,1962702237,фізична особа
Самопоміч,"Львівська область, Львів, вулиця Генерала Чупринки, 110, 7",57,2017-12-22,130287219,Виготовлення брендованої продукції,"Виготовлення брендованої продукції (футболки, кепки, парасольки)",52665,Центральний офіс,38558365,Україна,+;1140; Оплата за брендовану продукцію згідно рахунку № 42 від 2017-12-05 р.,26006530146200,current,102.62,Портах Володимир Степанович,1702716055,фізична особа
Самопоміч,"Львівська область, Львів, вулиця Генерала Чупринки, 110, 7",57,2017-12-22,1,Виготовлення брендованої продукції,"Виготовлення брендованої продукції (футболки, кепки, парасольки)",52658,Центральний офіс,38558365,Україна,"Оплата за брендовану продукцію, згідно рахунку № 47 від 2017-12-05р.,без ПДВ, пл. Герасименя Т.О.",26006530146200,current,102.62,Портах Володимир Степанович,1702716055,фізична особа
Самопоміч,"Львівська область, Львів, вулиця Генерала Чупринки, 110, 7",57,2017-12-22,1,Виготовлення брендованої продукції,"Виготовлення брендованої продукції (футболки, кепки, парасольки)",52656,Центральний офіс,38558365,Україна,"+;1140; оплата за брендовану продукцію згідно рахунку № 49 від 2017-12-05р.,без ПДВ.",26006530146200,current,102.62,Портах Володимир Степанович,1702716055,фізична особа
Самопоміч,"Львівська область, Львів, вулиця Генерала Чупринки, 110, 7",57,2017-12-22,,Виготовлення брендованої продукції,"Виготовлення брендованої продукції (футболки, кепки, парасольки)",52655,Центральний офіс,38558365,Україна,+;1140; оплата за брендовану продукцію згідно рахунку № 48 від 2017-12-05р.,26006530146200,current,102.62,Портах Володимир Степанович,1702716055,фізична особа
Самопоміч,"Львівська область, Львів, вулиця Стрийська, 202",75,2017-12-22,4565,Поштові послуги та поширення друкованих матеріалів,Поштові послуги та поширення друкованих матеріалів,52644,Центральний офіс,38558365,Україна,"Оплата за розповсюдження газети ʼОбʼєднання ʼСамопомічʼ по поштовим скринькам, згідно акту надання послуг з розповсюдження продукції № 2 від 2017-12-19 р.",26008924418040,state,56000.00,ТОВ ʼПромоціяʼ,41738913,юридична особа
Самопоміч,"Закарпатська область, Тячівський район, Тячів",73,2017-12-22,4502,Придбання меблів,Придбання меблів,52642,Центральний офіс,38558365,Україна,"Оплата за стільці, столи та дошку 2*1, згідно рахунку № 15 від 2017-11-14 р.",26008924418040,state,10200.00,ТОВ ʼФабрика меблів ʼДинастіяʼ,41676695,юридична особа
Самопоміч,"Житомирська область, Брусилівський район, Брусилів, площа Базарна, 25",74,2017-12-22,4494,"Придбання канцтоварів, паперу, інших предметів і матеріалів, а також госп товари",Придбання канцтоварів та госп. товарів,52628,Центральний офіс,38558365,Україна,"Оплата за канцтовари, згідно рахунку на оплату № 1-5913 від 2017-12-06р. в т.ч. ПДВ 6184.40 грн.",26008924418040,state,37106.40,ТОВ 'Папірус універсал',40959684,юридична особа
Самопоміч,"Житомирська область, Брусилівський район, Брусилів, площа Базарна, 25",74,2017-12-22,4601,"Придбання канцтоварів, паперу, інших предметів і матеріалів, а також госп товари",Придбання канцтоварів та госп. товарів,52627,Центральний офіс,38558365,Україна,"Оплата за канцтовари, згідно рахунку на оплату № 1-5806 від 2017-12-01р. в т.ч. ПДВ 348.37 грн.",26008924418040,state,2090.22,ТОВ 'Папірус універсал',40959684,юридична особа
Самопоміч,"Житомирська область, Брусилівський район, Брусилів, площа Базарна, 25",74,2017-12-22,4602,"Придбання канцтоварів, паперу, інших предметів і матеріалів, а також госп товари",Придбання канцтоварів та госп. товарів,52626,Центральний офіс,38558365,Україна,"Оплата за канцтовари, згідно рахунку на оплату № 1-5586 від 2017-11-21р. в т.ч. ПДВ 153.79 грн.",26008924418040,state,922.74,ТОВ 'Папірус універсал',40959684,юридична особа
Самопоміч,"Львівська область, Львів, вулиця Пасічна, 71А",72,2017-12-22,4575,"Придбання, ремонт офісної техніки та програмного забезпечення (Бухгалтерські програми, Ліга.закон, домени)",Придбання офісної техніки та програмного забезпечення,52542,Центральний офіс,38558365,Україна,"Оплата за пакет модулів ʼБюджети-плануванняʼ зг. з додат. №1 до дог. постач.програмної продукції №01-17/Д від 21.02.17 р, зг. рахунку-фактури №7 від 22.12.17 р.",26008924418040,state,287070.00,ТОВ 'ДевСофт',40921750,юридична особа
Самопоміч,"Закарпатська область, Хуст, вулиця Карпатської Січі, 41",51,2017-12-22,4548,Оплата ефірного часу на ТБ,Телереклама,52499,Центральний офіс,38558365,Україна,"Оплата за трансляцію рекламного ролика, згідно акту про прийняття-передачі наданих послуг від 2017-10-31 р.",26008924418040,state,1562.40,ТОВ ʼЗахідна Медіа Компаніяʼ,40268487,юридична особа
Самопоміч,"Закарпатська область, Хуст, вулиця Карпатської Січі, 41",51,2017-12-22,4549,Оплата ефірного часу на ТБ,Телереклама,52498,Центральний офіс,38558365,Україна,"Оплата за трансляцію рекламного ролика, згідно акту про прийняття-передачі наданих послуг від 2017-11-30 р.",26008924418040,state,1512.00,ТОВ ʼЗахідна Медіа Компаніяʼ,40268487,юридична особа
Самопоміч,"Закарпатська область, Хуст, вулиця Карпатської Січі, 41",51,2017-12-22,4574,Оплата ефірного часу на ТБ,Телереклама,52497,Центральний офіс,38558365,Україна,"Оплата за трансляцію рекламного ролика, згідно акту про прийняття-передачі наданих послуг від 2017-10-02 р.",26008924418040,state,302.40,ТОВ ʼЗахідна Медіа Компаніяʼ,40268487,юридична особа
Самопоміч,"Київ, вулиця Миколи Пимоненка, 13Ж",48,2017-12-22,4582,Публікування матеріалів у мережі Інтернет,Реклама в інтернеті,52079,Центральний офіс,38558365,Україна,"Оплата за розміщення реклами в мережі інтернет за листопад, згідно акту наданих послуг № 1117-320 від 2017-11-30р. в т.ч. ПДВ 10025.83 грн.",26008924418040,state,60154.99,"ТОВ ""АДМІКСЕР.ЮА""",39560553,юридична особа
Самопоміч,"Київ, вулиця Миколи Пимоненка, 13Ж",48,2017-12-22,4581,Публікування матеріалів у мережі Інтернет,Реклама в інтернеті,52078,Центральний офіс,38558365,Україна,"Оплата за розміщення реклами в мережі інтернет за 2017-12-01р. -2017-12-15 р.,згідно рахунку на оплату № 1217-210 від 2017-12-15р. в т.ч. ПДВ 670.75 грн.",26008924418040,state,4024.51,"ТОВ ""АДМІКСЕР.ЮА""",39560553,юридична особа
Самопоміч,"Львівська область, Львів, вулиця Стрийська, 35",62,2017-12-22,4524,Сплата ЄСВ,Податкові платежі,52067,Центральний офіс,38558365,Україна,*;101;38558365; сплата єдиного соціального внеску 22% із зарплати працівників за грудень 2017 р . ;;;,26008924418040,state,228329.63,Залізнична ОДПІ ГУ ДФС у Львівській області,39554382,юридична особа
Самопоміч,"Львівська область, Львів, вулиця Стрийська, 35",62,2017-12-22,4522,Сплата ЄСВ,Податкові платежі,52066,Центральний офіс,38558365,Україна,"*;101;38558363; сплата ЄСВ 8,41% із зарплати працівників за грудень 2017р.",26008924418040,state,1745.28,Залізнична ОДПІ ГУ ДФС у Львівській області,39554382,юридична особа
Самопоміч,"Київ, вулиця Жилянська, 23",62,2017-12-22,37,Сплата ЄСВ,Податкові платежі,51904,Київська міська організація,39842314,Київ,ЄСВ вiд зарплати за 2 пол. грудень 2017р.,26005056218695,current,3777.73,ДПІ у Голосіївському районі м. Києва,39468461,юридична особа
Самопоміч,"Чернівецька область, Новоселицький район, Новоселиця, вулиця Пирогова, 18, 6",49,2017-12-22,7,Публікування матеріалів у друкованих ЗМІ,Реклама в друкованих ЗМІ,51816,Центральний офіс,38558365,Україна,"За публікацію в газеті та виготовлення агіт матеріалів рахунки N 46,47,48,49 Без ПДВ.",26006530146200,current,16000.00,"ПП ""І.А. Новоселиччина""",38662504,юридична особа
Самопоміч,"Львівська область, Львів, вулиця Академіка Андрія Сахарова, 42",64,2017-12-22,34,Повернення платежів партії,Повернення,51806,Київська міська організація,39842314,Київ,Внесок на пiдтримку партiї.,26005056218695,current,50000.00,"Центральний офіс Обʼєднання ""Самопоміч""",38558365,юридична особа
Самопоміч,"Київ, вулиця Лугова, 12",72,2017-12-22,4535,"Придбання, ремонт офісної техніки та програмного забезпечення (Бухгалтерські програми, Ліга.закон, домени)",Придбання офісної техніки та програмного забезпечення,51778,Центральний офіс,38558365,Україна,"Оплата за посл. у сфері інформатизації щодо розміщення користувацької інформ. за листопад 17р.,зг. рах. на опл. №4003840 від 30.11.17р. в т.ч. ПДВ 2398.03 грн.",26008924418040,state,14388.17,ТОВ 'Софтпром Солюшинз',38282502,юридична особа
Самопоміч,"Київ, проспект Перемоги, 67, 306",57,2017-12-22,4541,Виготовлення брендованої продукції,"Виготовлення брендованої продукції (футболки, кепки, парасольки)",51701,Центральний офіс,38558365,Україна,"Оплата за пледи з логотипом та блокноти А5 з логотипом, згідно рахунку на оплату № 7714 від 12.12.17р. в т.ч. ПДВ 2045.53 грн.",26008924418040,state,12273.18,"ТОВ ’Торговий Дім ""Еней""",38205868,юридична особа
Самопоміч,"Київ, проспект Перемоги, 67, 306",57,2017-12-22,4595,Виготовлення брендованої продукції,"Виготовлення брендованої продукції (футболки, кепки, парасольки)",51700,Центральний офіс,38558365,Україна,"Оплата за олівці з логотипом, згідно рахунку на оплату № 7028 від 27.11.17р. в т.ч. ПДВ 2350.00 грн.",26008924418040,state,14100.00,"ТОВ ’Торговий Дім ""Еней""",38205868,юридична особа
Самопоміч,"Київ, проспект Перемоги, 67, 306",58,2017-12-22,4594,"Виготовлення друкованих матеріалів (плакатів, листівок, буклетів та інших агітаційних матеріалів)",Друкована агітація,51699,Центральний офіс,38558365,Україна,"Оплата за календарі настільні, згідно рахунку на оплату № 7788 від 14.12.17р. в т.ч. ПДВ 1060.00 грн.",26008924418040,state,6360.00,"ТОВ ’Торговий Дім ""Еней""",38205868,юридична особа
Самопоміч,"Київ, проспект Перемоги, 67, 306",57,2017-12-22,4543,Виготовлення брендованої продукції,"Виготовлення брендованої продукції (футболки, кепки, парасольки)",51698,Центральний офіс,38558365,Україна,"Оплата за горнятка, термогорнятка, парасолі, ручки та рюкзаки з логотипом, згідно рахунку на оплату № 6960 від 23.11.17р. в т.ч. ПДВ 4617.68 грн.",26008924418040,state,27706.08,"ТОВ ’Торговий Дім ""Еней""",38205868,юридична особа
Самопоміч,"Київ, проспект Перемоги, 67, 306",57,2017-12-22,4542,Виготовлення брендованої продукції,"Виготовлення брендованої продукції (футболки, кепки, парасольки)",51697,Центральний офіс,38558365,Україна,"Оплата за блокноти А5 на пружині з логотипом, згідно рахунку на оплату № 7693 від 12.12.17р. в т.ч. ПДВ 125.00 грн.",26008924418040,state,750.00,"ТОВ ’Торговий Дім ""Еней""",38205868,юридична особа
Самопоміч,"Київ, проспект Перемоги, 67, 306",57,2017-12-22,4607,Виготовлення брендованої продукції,"Виготовлення брендованої продукції (футболки, кепки, парасольки)",51696,Центральний офіс,38558365,Україна,"Оплата за футболки, зошити, дощовики, рюкзаки, ручки та сумки з логотипом, згідно видаткової накладної № 1003 від 22.12.17р. в т.ч. ПДВ 3004.80 грн.",26008924418040,state,18028.80,"ТОВ ’Торговий Дім ""Еней""",38205868,юридична особа
Самопоміч,"Київ, проспект Перемоги, 67, 306",57,2017-12-22,130287850,Виготовлення брендованої продукції,"Виготовлення брендованої продукції (футболки, кепки, парасольки)",51674,Центральний офіс,38558365,Україна,+;1140; Оплата за брендовану продукцію згідно рахунку № 071217/22 в т.ч. ПДВ від 2017-12-15 р.,26006530146200,current,623.40,"ТОВ ’Торговий Дім ""Еней""",38205868,юридична особа
Самопоміч,"Київ, проспект Перемоги, 67, 306",57,2017-12-22,1,Виготовлення брендованої продукції,"Виготовлення брендованої продукції (футболки, кепки, парасольки)",51667,Центральний офіс,38558365,Україна,"Оплата продукції згідно рахунку № 071217/27 від 2017-12-20 р., у тому числі ПДВ 103,90 грн.,пл. Герасименя Т.О.",26006530146200,current,623.40,"ТОВ ’Торговий Дім ""Еней""",38205868,юридична особа
Самопоміч,"Київ, проспект Перемоги, 67, 306",57,2017-12-22,1,Виготовлення брендованої продукції,"Виготовлення брендованої продукції (футболки, кепки, парасольки)",51665,Центральний офіс,38558365,Україна,"+;1140; оплата за брендовану продукцію зг. рах. Фактури № 071217/29 від 2017-12-20р., в т.ч. ПДВ 103,90 грн.",26006530146200,current,623.40,"ТОВ ’Торговий Дім ""Еней""",38205868,юридична особа
Самопоміч,"Київ, проспект Перемоги, 67, 306",57,2017-12-22,,Виготовлення брендованої продукції,"Виготовлення брендованої продукції (футболки, кепки, парасольки)",51664,Центральний офіс,38558365,Україна,+;1140; оплата за брендову продукцію згідно рахунку № 071217/28 від 2017-12-20р.,26006530146200,current,623.40,"ТОВ ’Торговий Дім ""Еней""",38205868,юридична особа
Самопоміч,"Київ, вулиця Володимирська, 69",61,2017-12-22,35,Військовий збір,Податкові платежі,51518,Київська міська організація,39842314,Київ,"Вiйськовий збiр вiд зарплати за 2 пол, грудень 2017р.",26005056218695,current,262.12,УДКСУ у Голосіївському районі м. Києва,38039757,юридична особа
Самопоміч,"Київ, вулиця Володимирська, 69",63,2017-12-22,36,Податок на доходи,Податкові платежі,51516,Київська міська організація,39842314,Київ,ПДФО вiд зарплати за 2 пол. грудень 2017р.,26005056218695,current,3045.41,УДКСУ у Голосіївському районі м. Києва,38039757,юридична особа
Самопоміч,"Львівська область, Львів, вулиця Конотопська, 6",63,2017-12-22,4523,Податок на доходи,Податкові платежі,51453,Центральний офіс,38558365,Україна,*;101;38558365; сплата ПДФО із зарплати за грудень 2017 р.;;;11010100,26008924418040,state,183388.96,УДКСУ у Франківському районі м. Львова,37965138,юридична особа
Самопоміч,"Львівська область, Львів, вулиця Конотопська, 6",61,2017-12-22,4521,Військовий збір,Податкові платежі,51452,Центральний офіс,38558365,Україна,*;101;38558365; сплата військового збору із зарплати працівників за грудень 2017 р.;;; 11011000,26008924418040,state,15438.23,УДКСУ у Франківському районі м. Львова,37965138,юридична особа
Самопоміч,"Львівська область, Львів, вулиця Конотопська, 6",63,2017-12-22,4510,Податок на доходи,Податкові платежі,51451,Центральний офіс,38558365,Україна,*;101; сплата ПДФО відмінний від з/п згідно договору оренди приміщення за листопад 2017 р. Соловей Юрій Михайлович ; 11010400,26008924418040,state,900.00,УДКСУ у Франківському районі м. Львова,37965138,юридична особа
Самопоміч,"Львівська область, Львів, вулиця Конотопська, 6",63,2017-12-22,4507,Податок на доходи,Податкові платежі,51450,Центральний офіс,38558365,Україна,*;101; сплата ПДФО відмінний від з/п згідно договору оренди приміщення за жовтень 2017 р. Соловей Юрій Михайлович ; 11010400,26008924418040,state,754.74,УДКСУ у Франківському районі м. Львова,37965138,юридична особа
Самопоміч,"Львівська область, Львів, вулиця Конотопська, 6",63,2017-12-22,4513,Податок на доходи,Податкові платежі,51449,Центральний офіс,38558365,Україна,*;101; сплата ПДФО відмінний від з/п згідно договору оренди приміщення з 2017-12-01 р. по 2017-12-20 р. Соловей Юрій Михайлович; 11010400,26008924418040,state,580.68,УДКСУ у Франківському районі м. Львова,37965138,юридична особа
Самопоміч,"Львівська область, Львів, вулиця Конотопська, 6",63,2017-12-22,4550,Податок на доходи,Податкові платежі,51448,Центральний офіс,38558365,Україна,*;101; сплата ПДФО відмінний від з/п згідно договору оренди Наконечна Г. А. за листопад 2017р. ; 11010400,26008924418040,state,180.00,УДКСУ у Франківському районі м. Львова,37965138,юридична особа
Самопоміч,"Львівська область, Львів, вулиця Конотопська, 6",63,2017-12-22,4503,Податок на доходи,Податкові платежі,51447,Центральний офіс,38558365,Україна,сплата ПДФО відмінний від з/п згідно договору оренди Шевченко В. В.,26008924418040,state,765.76,УДКСУ у Франківському районі м. Львова,37965138,юридична особа
Самопоміч,"Львівська область, Львів, вулиця Конотопська, 6",61,2017-12-22,4504,Військовий збір,Податкові платежі,51446,Центральний офіс,38558365,Україна,сплата військового збору згідно договору оренди Шевченко В. В.,26008924418040,state,63.81,УДКСУ у Франківському районі м. Львова,37965138,юридична особа
Самопоміч,"Львівська область, Львів, вулиця Конотопська, 6",61,2017-12-22,4509,Військовий збір,Податкові платежі,51445,Центральний офіс,38558365,Україна,*;101; сплата військового збору згідно договору оренди у листопаді 2017 р. Соловей Ю. М. ; 11011000,26008924418040,state,75.00,УДКСУ у Франківському районі м. Львова,37965138,юридична особа
Самопоміч,"Львівська область, Львів, вулиця Конотопська, 6",61,2017-12-22,4506,Військовий збір,Податкові платежі,51444,Центральний офіс,38558365,Україна,*;101; сплата військового збору згідно договору оренди у жовтні 2017 р. Соловей Ю. М.; 11011000,26008924418040,state,62.90,УДКСУ у Франківському районі м. Львова,37965138,юридична особа
Самопоміч,"Львівська область, Львів, вулиця Конотопська, 6",61,2017-12-22,4551,Військовий збір,Податкові платежі,51443,Центральний офіс,38558365,Україна,*;101; сплата військового збору згідно договору оренди за листопад 2017р. Наконечна Г.А.; 11011000,26008924418040,state,15.00,УДКСУ у Франківському районі м. Львова,37965138,юридична особа
Самопоміч,"Львівська область, Львів, вулиця Конотопська, 6",61,2017-12-22,4512,Військовий збір,Податкові платежі,51442,Центральний офіс,38558365,Україна,*;101; сплата військового збору згідно договору оренди з 2017-12-01 р. по 2017-12-20 р. Соловей Ю. М. ; 11011000,26008924418040,state,48.39,УДКСУ у Франківському районі м. Львова,37965138,юридична особа
Самопоміч,"Львівська область, Львів, вулиця Керченська, 8",57,2017-12-22,4606,Виготовлення брендованої продукції,"Виготовлення брендованої продукції (футболки, кепки, парасольки)",51085,Центральний офіс,38558365,Україна,"Оплата за пакети 30*50 м, згідно рахунку на оплату № 614 від 2017-12-22р. в т.ч. ПДВ 408.00 грн.",26008924418040,state,2448.00,"ПП ""APT-ЛІНІЯ""",37483818,юридична особа
Самопоміч,"Львівська область, Львів, вулиця Керченська, 8",57,2017-12-22,4599,Виготовлення брендованої продукції,"Виготовлення брендованої продукції (футболки, кепки, парасольки)",51084,Центральний офіс,38558365,Україна,"Оплата за бейджи, згідно видаткової накладної № 501 від 2017-11-28р. в т.ч. ПДВ 14.20 грн.",26008924418040,state,85.20,"ПП ""APT-ЛІНІЯ""",37483818,юридична особа
Самопоміч,"Львівська область, Львів, вулиця Керченська, 8, 7",57,2017-12-22,130286551,Виготовлення брендованої продукції,"Виготовлення брендованої продукції (футболки, кепки, парасольки)",51057,Центральний офіс,38558365,Україна,+;1140; Оплата за пакети з логотипом згідно рахунку № 512 від 2017-12-07 р.,26006530146200,current,108.00,"ПП ""APT-ЛІНІЯ""",37483818,юридична особа
Самопоміч,"Львівська область, Львів, вулиця Керченська, 8, 7",57,2017-12-22,1,Виготовлення брендованої продукції,"Виготовлення брендованої продукції (футболки, кепки, парасольки)",51050,Центральний офіс,38558365,Україна,"Оплата за пакети з логотипом, згідно рахунку № 578 від 2017-12-07 р., у тому числі з ПДВ 18,00 грн., пл.Герасименя Т.О.",26006530146200,current,108.00,"ПП ""APT-ЛІНІЯ""",37483818,юридична особа
Самопоміч,"Львівська область, Львів, вулиця Керченська, 8, 7",57,2017-12-22,1,Виготовлення брендованої продукції,"Виготовлення брендованої продукції (футболки, кепки, парасольки)",51048,Центральний офіс,38558365,Україна,"+;1140; оплата за пакети з логотипом згідно рахунку № 580 від 2017-12-07 р., в тому числі ПДВ 18,00 грн.",26006530146200,current,108.00,"ПП ""APT-ЛІНІЯ""",37483818,юридична особа
Самопоміч,"Львівська область, Львів, вулиця Керченська, 8, 7",57,2017-12-22,,Виготовлення брендованої продукції,"Виготовлення брендованої продукції (футболки, кепки, парасольки)",51047,Центральний офіс,38558365,Україна,"+;1140; оплата за пакети з логотипом згідно рахунку № 579 від 2017-12-07 р., в",26006530146200,current,108.00,"ПП ""APT-ЛІНІЯ""",37483818,юридична особа
Самопоміч,"Херсонська область, Херсон, вулиця Гагаріна, 21",53,2017-12-22,4591,Витрати на розміщення зовнішньої реклами,Зовнішня реклама,50909,Центральний офіс,38558365,Україна,"Оплата за розміщення рекламних матеріалів (постерів 3*6) у липні-листопаді 2017р., згідно рахунку-фактури № СФ-0000083 від 2017-11-30р.",26008924418040,state,22500.00,ПП ʼГордієнкоʼ,37465118,юридична особа
Самопоміч,"Івано-Франківська область, Галицький район, Бурштин, вулиця Січових Стрільців, 27",51,2017-12-22,4604,Оплата ефірного часу на ТБ,Телереклама,50903,Центральний офіс,38558365,Україна,"Оплата за виготовлення та трансляцію телепрограми ʼНовий поглядʼ Т. Виноградника на каналі ʼРАІʼ, згідно рахунку № 117 від 2017-10-02р.",26008924418040,state,4500.00,"ТОВ ""Телерадіокомпанія ""РАІ""",36983355,юридична особа
Самопоміч,"Тернопільська область, Тернопіль, вулиця Текстильна, 28",82,2017-12-22,4589,"Гонорари, в тому числі за надані консультаційні послуги","Гонорари, в тому числі за надані консультаційні послуги",50894,Центральний офіс,38558365,Україна,"Оплата винагороди повіреному за виконання доручення, згідно рахунку на оплату № 950 від 2017-12-21р. в т.ч. ПДВ 250.29 грн.",26008924418040,state,1501.72,"ТОВ ""ПОДІЛЛЯ-ТЕР""",36829762,юридична особа
Самопоміч,"Івано-Франківська область, Тлумацький район, Обертин",73,2017-12-22,4585,Придбання меблів,Придбання меблів,50840,Центральний офіс,38558365,Україна,"Оплата за меблі, згідно накладної № БГ15915 від 2017-12-20 р. в т.ч. ПДВ 4708.33 грн.",26008924418040,state,28250.00,ТОВ ʼКреатив-Інжинірингʼ,36610365,юридична особа
Самопоміч,"Львівська область, Львів, вулиця Зелена, 147",75,2017-12-22,4559,Поштові послуги та поширення друкованих матеріалів,Поштові послуги та поширення друкованих матеріалів,50815,Центральний офіс,38558365,Україна,"Оплата за послуги по доставці відправлень, згідно рахунку на оплату № TD000063568 від 2017-12-19 р. в т.ч. ПДВ 2822.83 грн.",26008924418040,state,16937.00,"ТОВ ""Торговий Дім ""Міст Експрес""",36152228,юридична особа
Самопоміч,"Полтавська область, Кременчук, вулиця Академіка Маслова, 32/15",43,2017-12-22,4517,Інші витрати,Інші витрати,50727,Центральний офіс,38558365,Україна,Відрахування з доходів боржника Плахотника Дмитра Миколайовича зг пост від 15.05.17 та вик листа№2-2813/11 від 28.03.12,26008924418040,state,636.44,Автозаводський ВДВС м. Кременчук ГТУЮ у Полтавській області,34987562,юридична особа
Самопоміч,"Київ, вулиця Предславинська, 35Д",69,2017-12-22,4501,Організація заходів та інші організаційні послуги,Організація заходів та інші організаційні послуги,50578,Центральний офіс,38558365,Україна,"Оплата за послуги з конференц-сервісу 16-2017-12-17 р., згідно рахунку на оплату № ПГ196997 від 2017-12-14 р. в т.ч. ПДВ 11485.00 грн.",26008924418040,state,68910.00,ТОВ ʼКертʼ,33835663,юридична особа
Самопоміч,"Хмельницька область, Хмельницький, вулиця Свободи, 19",75,2017-12-22,4573,Поштові послуги та поширення друкованих матеріалів,Поштові послуги та поширення друкованих матеріалів,50518,Центральний офіс,38558365,Україна,"Оплата за послуги з розповсюдження поліграфічної продукції, згідно рахунку-фактури № СФ-000146 від 2017-12-18 р.",26008924418040,state,6720.00,ТОВ ʼХмельницький Медіа-Центрʼ,33232719,юридична особа
Самопоміч,"Київ, вулиця Смоленська, 31/33",76,2017-12-22,4590,Послуги зв’язку,Послуги зв’язку,50406,Центральний офіс,38558365,Україна,"Оплата за телекомунікаційні послуги за листопад 2017р., згідно рахунку № 3642418*2831572 від 2017-12-01 р. зг. договору №3642418 в т.ч. ПДВ 182.04 грн.",26008924418040,state,1092.26,"ПрАТ ""Датагруп""",31720260,юридична особа
Самопоміч,"Львівська область, Львів, вулиця Академіка Андрія Сахарова, 42",79,2017-12-22,4587,"Оренда будинків і приміщень та експлуатаційні витрати (прибирання, страхування орендованих будинків, охорона, сигналізація, ремонт, вивіз сміття, тощо)",Оренда нерухомості,50386,Центральний офіс,38558365,Україна,"Оплата за оренду нежитл. приміщення у листопаді 17 р. та відшкод. комунальних витрат, згідно рах.-фактури № СФ-0000868 від 2017-11-30 р. в т.ч. ПДВ 2756.67 грн.",26008924418040,state,16540.01,"ПАТ ""Промбудприлад""",31588943,юридична особа
Самопоміч,"Львівська область, Львів, вулиця Академіка Андрія Сахарова, 42",79,2017-12-22,4586,"Оренда будинків і приміщень та експлуатаційні витрати (прибирання, страхування орендованих будинків, охорона, сигналізація, ремонт, вивіз сміття, тощо)",Оренда нерухомості,50385,Центральний офіс,38558365,Україна,"Оплата за оренду нежитл. приміщення у жовтні-листопаді 17 р., згідно рахунку-фактури № СФ-0000885 від 2017-11-30 р. в т.ч. ПДВ 1260.00 грн.",26008924418040,state,7560.00,"ПАТ ""Промбудприлад""",31588943,юридична особа
Самопоміч,"Львівська область, Львів, вулиця Академіка Андрія Сахарова, 42",79,2017-12-22,4580,"Оренда будинків і приміщень та експлуатаційні витрати (прибирання, страхування орендованих будинків, охорона, сигналізація, ремонт, вивіз сміття, тощо)",Оренда нерухомості,50384,Центральний офіс,38558365,Україна,"Оплата за оренду нежитл. приміщення у жовтні 17 р. та відшкод. комунальних витрат, згідно рахунку-фактури № СФ-0000786 від 2017-10-31 р. в т.ч. ПДВ 2569.07 грн.",26008924418040,state,15414.41,"ПАТ ""Промбудприлад""",31588943,юридична особа
Самопоміч,"Полтавська область, Полтава, вулиця Леніна, 4",75,2017-12-22,4578,Поштові послуги та поширення друкованих матеріалів,Поштові послуги та поширення друкованих матеріалів,50006,Центральний офіс,38558365,Україна,"Оплата за безадресну доставку газет А3,8 шпальт по поштовим скринькам буд. м. Чернівці, зг. рах. на оплату №69/17 від 15.12.17р. в т.ч. ПДВ 2140.00 грн.",26008924418040,state,12840.00,"ТОВ ""Краяни-Лтава""",25155560,юридична особа
Самопоміч,"Полтавська область, Полтава, вулиця Леніна, 4",75,2017-12-22,4564,Поштові послуги та поширення друкованих матеріалів,Поштові послуги та поширення друкованих матеріалів,50005,Центральний офіс,38558365,Україна,"Оплата за безадресну доставку газет А3,8 шпальт по поштовим скринькам буд. м. Полтава, зг. рах. на оплату №74/17 від 15.12.17р. в т.ч. ПДВ 1817.60 грн.",26008924418040,state,10905.60,"ТОВ ""Краяни-Лтава""",25155560,юридична особа
Самопоміч,"Полтавська область, Полтава, вулиця Леніна, 4",75,2017-12-22,4563,Поштові послуги та поширення друкованих матеріалів,Поштові послуги та поширення друкованих матеріалів,50004,Центральний офіс,38558365,Україна,"Оплата за безадресну доставку газет А3,8 шпальт по поштовим скринькам буд. м. Одеса, зг. рах. на оплату №71/17 від 15.12.17р. в т.ч. ПДВ 8096.00 грн.",26008924418040,state,48576.00,"ТОВ ""Краяни-Лтава""",25155560,юридична особа
Самопоміч,"Полтавська область, Полтава, вулиця Леніна, 4",75,2017-12-22,4579,Поштові послуги та поширення друкованих матеріалів,Поштові послуги та поширення друкованих матеріалів,50003,Центральний офіс,38558365,Україна,"Оплата за безадресну доставку газет А3,8 шпальт по поштовим скринькам буд. м. Івано-Франківськ, зг. рах. на оплату №68/17 від 15.12.17р. в т.ч. ПДВ 1249.60 грн.",26008924418040,state,7497.60,"ТОВ ""Краяни-Лтава""",25155560,юридична особа
Самопоміч,"Полтавська область, Полтава, вулиця Леніна, 4",75,2017-12-22,4562,Поштові послуги та поширення друкованих матеріалів,Поштові послуги та поширення друкованих матеріалів,50002,Центральний офіс,38558365,Україна,"Оплата за безадресну доставку газет А3,8 шпальт по поштовим скринькам буд. м. Запоріжжя, зг. рах. на оплату №73/17 від 15.12.17р. в т.ч. ПДВ 5664.00 грн.",26008924418040,state,33984.00,"ТОВ ""Краяни-Лтава""",25155560,юридична особа
Самопоміч,"Полтавська область, Полтава, вулиця Леніна, 4",75,2017-12-22,4561,Поштові послуги та поширення друкованих матеріалів,Поштові послуги та поширення друкованих матеріалів,50001,Центральний офіс,38558365,Україна,"Оплата за безадресну доставку газет А3,8 шпальт по поштовим скринькам буд. м. Дніпро, зг. рах. на оплату №72/17 від 15.12.17р. в т.ч. ПДВ 5440.00 грн.",26008924418040,state,32640.00,"ТОВ ""Краяни-Лтава""",25155560,юридична особа
Самопоміч,"Полтавська область, Полтава, вулиця Леніна, 4",75,2017-12-22,4560,Поштові послуги та поширення друкованих матеріалів,Поштові послуги та поширення друкованих матеріалів,50000,Центральний офіс,38558365,Україна,"Оплата за безадресну доставку газет А3,8 шпальт по поштовим скринькам буд. м. Вінниця, зг. рах. на оплату №70/17 від 15.12.17р. в т.ч. ПДВ 2358.40 грн.",26008924418040,state,14150.40,"ТОВ ""Краяни-Лтава""",25155560,юридична особа
Самопоміч,"Івано-Франківська область, Коломия, вулиця Січових Стрільців, 23",51,2017-12-22,4596,Оплата ефірного часу на ТБ,Телереклама,49955,Центральний офіс,38558365,Україна,"Оплата за виготовлення та розміщення матеріалів на телеканалі, згідно акту наданих послуг № 2 від 2017-12-18 р. в т.ч. ПДВ 3240.00 грн.",26008924418040,state,19440.00,ПП ʼТелерадіокомпанія ʼНТКʼ,25073559,юридична особа
Самопоміч,"Київська обл., Біла Церква",51,2017-12-22,4598,Оплата ефірного часу на ТБ,Телереклама,49950,Центральний офіс,38558365,Україна,"Оплата за виготовлення та розміщення сюжету на телеканалі, згідно рахунку на оплату № 59 від 2017-11-03 р.",26008924418040,state,4200.00,"ТОВ ""ТРК ""Крокус""",24883843,юридична особа
Самопоміч,"Донецька область, Маріуполь, проспект Металургів, 159",53,2017-12-22,4584,Витрати на розміщення зовнішньої реклами,Зовнішня реклама,49926,Центральний офіс,38558365,Україна,"Оплата за розміщення реклами на рекламних конструкціях, згідно акту надання послуг від 2017-12-22 р.",26008924418040,state,3400.00,"ТОВ ""КОМПАНІЯ ""ОЛЕГ КІРЮХІН""",24451807,юридична особа
Самопоміч,"Київ, вулиця Єреванська, 1",70,2017-12-22,4526,Банківські послуги,Інші витрати,49786,Центральний офіс,38558365,Україна,Банківська комісія за виплату зарплати працівників за грудень 2017 р.,26008924418040,state,4148.82,"АБ ""Укргазбанк""",23697280,юридична особа
Самопоміч,"Київ, вулиця Михайла Грушевського, 1Д",70,2017-12-22,CMO0N2I2IY,Банківські послуги,Інші витрати,49219,Київська міська організація,39842314,Київ,"Комiсiя за виконання платежiв в нацiональнiй валютi, згiдно з вiдкритою офертою банку N б/н вiд 2017-10-19 та тарифiв банку, без ПДВ.",26005056218695,current,3.00,"ПАТ КБ ""Приватбанк""",14360570,юридична особа
Самопоміч,"Київ, вулиця Михайла Грушевського, 1Д",70,2017-12-22,CMO0N2I2GY,Банківські послуги,Інші витрати,49218,Київська міська організація,39842314,Київ,"Комiсiя за виконання платежiв в нацiональнiй валютi, згiдно з вiдкритою офертою банку N б/н вiд 2017-10-19 та тарифiв банку, без ПДВ.",26005056218695,current,3.00,"ПАТ КБ ""Приватбанк""",14360570,юридична особа
Самопоміч,"Київ, вулиця Михайла Грушевського, 1Д",70,2017-12-22,CMO0N2I2FY,Банківські послуги,Інші витрати,49217,Київська міська організація,39842314,Київ,"Комiсiя за виконання платежiв в нацiональнiй валютi, згiдно з вiдкритою офертою банку N б/н вiд 2017-10-19 та тарифiв банку, без ПДВ.",26005056218695,current,3.00,"ПАТ КБ ""Приватбанк""",14360570,юридична особа
Самопоміч,"Київ, вулиця Михайла Грушевського, 1Д",70,2017-12-22,CMO0N2I2EY,Банківські послуги,Інші витрати,49216,Київська міська організація,39842314,Київ,"Комiсiя за виконання платежiв в нацiональнiй валютi, згiдно з вiдкритою офертою банку N б/н вiд 2017-10-19 та тарифiв банку, без ПДВ.",26005056218695,current,3.00,"ПАТ КБ ""Приватбанк""",14360570,юридична особа
Самопоміч,"Київ, вулиця Михайла Грушевського, 1Д",70,2017-12-22,40,Банківські послуги,Інші витрати,49215,Київська міська організація,39842314,Київ,Комiсiя РКО вiд зарплати за2 пол. грудня 2017р.,26005056218695,current,30.38,"ПАТ КБ ""Приватбанк""",14360570,юридична особа
Самопоміч,"Житомирська область, Житомир, вулиця Кафедральна, 10",79,2017-12-22,4498,"Оренда будинків і приміщень та експлуатаційні витрати (прибирання, страхування орендованих будинків, охорона, сигналізація, ремонт, вивіз сміття, тощо)",Оренда нерухомості,49101,Центральний офіс,38558365,Україна,"Оплата за надані послуги з оренди приміщення з 2017-12-01 р. по 2017-12-20р.,згідно рахунку № 125 від 01.12.17р.",26008924418040,state,6032.26,"Науково-виробнича асоціація ""Житомирський Моноліт""",13550438,юридична особа
Самопоміч,"Чернівецька область, Хотинський район, Хотин, вулиця Свято-Покровська, 11",79,2017-12-22,4516,"Оренда будинків і приміщень та експлуатаційні витрати (прибирання, страхування орендованих будинків, охорона, сигналізація, ремонт, вивіз сміття, тощо)",Оренда нерухомості,48822,Центральний офіс,38558365,Україна,"Оплата за оренду нерухомого майна у листопаді 2017 р., згідно акту наданих послуг від 2017-11-30 р.",26008924418040,state,1500.00,"Мале колективне підприємсто ""Хотинчанка""",03058135,юридична особа
Самопоміч,"Чернівецька область, Новоселицький район, Новоселиця",58,2017-12-22,6,"Виготовлення друкованих матеріалів (плакатів, листівок, буклетів та інших агітаційних матеріалів)",Друкована агітація,48793,Центральний офіс,38558365,Україна,"За передвиборчу агітацію згідно договору. У сумі 289,67 грн., ПДВ-20% 57,93 грн.",26006530146200,current,347.60,"РГ ""Слово правди""",02476282,юридична особа
Самопоміч,"Тернопільська область, Козівський район, Козова",49,2017-12-22,4545,Публікування матеріалів у друкованих ЗМІ,Реклама в друкованих ЗМІ,48783,Центральний офіс,38558365,Україна,"Оплата за розміщення інформаційних матеріалів у газеті, згідно акту приймання-передачі наданих послуг від 2017-12-08 р.",26008924418040,state,6497.00,"РГ ""Вільне Слово""",02475285,юридична особа
Самопоміч,"Вінницька область, Немирівський район, Немирів",49,2017-12-22,4538,Публікування матеріалів у друкованих ЗМІ,Реклама в друкованих ЗМІ,48728,Центральний офіс,38558365,Україна,"Оплата за опублікування іміджевої статті в газеті, згідно рахунку № 11 від 2017-11-30 р.",26008924418040,state,2772.00,"ПП ""Редакція Немирівської районної громадсько-політичної газети ""Прибузькі новини""",02471465,юридична особа
Самопоміч,"Львівська область, Львів",83,2017-12-21,4488,"Виплати працівникам (не зарплата): лікарняні, вагітності, відрядження, компенсації ","Заробітна плата, лікарняні, вагітності, відрядження, компенсації",59650,Центральний офіс,38558365,Україна,відрядження,26008924418040,state,720.00,Довганик Богдан Романович,,фізична особа
Самопоміч,Київ,83,2017-12-21,4488,"Виплати працівникам (не зарплата): лікарняні, вагітності, відрядження, компенсації ","Заробітна плата, лікарняні, вагітності, відрядження, компенсації",59649,Центральний офіс,38558365,Україна,відрядження,26008924418040,state,703.51,Бульба Альона Сергіївна,,фізична особа
Самопоміч,"Вінницька область, Вінниця",83,2017-12-21,4488,"Виплати працівникам (не зарплата): лікарняні, вагітності, відрядження, компенсації ","Заробітна плата, лікарняні, вагітності, відрядження, компенсації",59648,Центральний офіс,38558365,Україна,відрядження,26008924418040,state,1333.11,Бугакова Олена Юріївна,,фізична особа
Самопоміч,"Львівська область, Пустомитівський район",83,2017-12-21,4488,"Виплати працівникам (не зарплата): лікарняні, вагітності, відрядження, компенсації ","Заробітна плата, лікарняні, вагітності, відрядження, компенсації",59647,Центральний офіс,38558365,Україна,відрядження,26008924418040,state,1416.22,Бордун Галина Володимирівна,,фізична особа
Самопоміч,Київ,83,2017-12-21,4488,"Виплати працівникам (не зарплата): лікарняні, вагітності, відрядження, компенсації ","Заробітна плата, лікарняні, вагітності, відрядження, компенсації",59646,Центральний офіс,38558365,Україна,відрядження,26008924418040,state,515.73,Баланович Станіслав Васильович,,фізична особа
Самопоміч,"Львівська область, Яворівський район, Яворів",83,2017-12-21,4488,"Виплати працівникам (не зарплата): лікарняні, вагітності, відрядження, компенсації ","Заробітна плата, лікарняні, вагітності, відрядження, компенсації",59645,Центральний офіс,38558365,Україна,відрядження,26008924418040,state,515.24,Звір Юрій Васильович,,фізична особа
Самопоміч,"Львівська область, Львів",83,2017-12-21,4488,"Виплати працівникам (не зарплата): лікарняні, вагітності, відрядження, компенсації ","Заробітна плата, лікарняні, вагітності, відрядження, компенсації",59644,Центральний офіс,38558365,Україна,відрядження,26008924418040,state,785.46,Івасько Лілія Михайлівна,,фізична особа
Самопоміч,"Львівська область, Львів",83,2017-12-21,4488,"Виплати працівникам (не зарплата): лікарняні, вагітності, відрядження, компенсації ","Заробітна плата, лікарняні, вагітності, відрядження, компенсації",59643,Центральний офіс,38558365,Україна,відрядження,26008924418040,state,1682.71,Яремчук Роман Володимирович,,фізична особа
Самопоміч,"Київська обл., Васильківський район",83,2017-12-21,4488,"Виплати працівникам (не зарплата): лікарняні, вагітності, відрядження, компенсації ","Заробітна плата, лікарняні, вагітності, відрядження, компенсації",59642,Центральний офіс,38558365,Україна,відрядження,26008924418040,state,654.17,Шевченко Олександр Леонідович,,фізична особа
Самопоміч,"Черкаська область, Черкаси",83,2017-12-21,4488,"Виплати працівникам (не зарплата): лікарняні, вагітності, відрядження, компенсації ","Заробітна плата, лікарняні, вагітності, відрядження, компенсації",59641,Центральний офіс,38558365,Україна,відрядження,26008924418040,state,584.98,Підгорний Максим Олександрович,,фізична особа
Самопоміч,"Київська обл., Бориспіль",83,2017-12-21,4488,"Виплати працівникам (не зарплата): лікарняні, вагітності, відрядження, компенсації ","Заробітна плата, лікарняні, вагітності, відрядження, компенсації",59640,Центральний офіс,38558365,Україна,відрядження,26008924418040,state,796.06,Нестеренко Світлана Вадимівна,,фізична особа
Самопоміч,"Луганська область, Луганськ",83,2017-12-21,4488,"Виплати працівникам (не зарплата): лікарняні, вагітності, відрядження, компенсації ","Заробітна плата, лікарняні, вагітності, відрядження, компенсації",59639,Центральний офіс,38558365,Україна,відрядження,26008924418040,state,489.64,Мягкова Ірина Миколаївна,,фізична особа
Самопоміч,"Львівська область, Львів",83,2017-12-21,4488,"Виплати працівникам (не зарплата): лікарняні, вагітності, відрядження, компенсації ","Заробітна плата, лікарняні, вагітності, відрядження, компенсації",59638,Центральний офіс,38558365,Україна,відрядження,26008924418040,state,720.00,Кізима Роман Михайлович,,фізична особа
Самопоміч,"Львівська область, Львів, вулиця Залізнична, 7А",82,2017-12-21,4468,"Гонорари, в тому числі за надані консультаційні послуги","Гонорари, в тому числі за надані консультаційні послуги",59516,Центральний офіс,38558365,Україна,"Оплата за фотозйомку представників Політичної Партії ʼОбʼєднання ʼСамопомічʼ, згідно рахунку-фактури № 25 від 07.12.17р.",26008924418040,state,5950.00,Середа Ірина Володимирівна,,фізична особа
Самопоміч,"Черкаська область, Монастирищенський район, Монастирище, вулиця Соборна, 169",73,2017-12-21,4490,Придбання меблів,Придбання меблів,59515,Центральний офіс,38558365,Україна,"Оплата за столи та стільці, згідно накладної № 158 від 2017-11-04 р.",26008924418040,state,9870.00,Святецький Вадим Сергійович,,фізична особа
Самопоміч,"Черкаська область, Черкаський район, Руська Поляна, вулиця Дружби",75,2017-12-21,4486,Поштові послуги та поширення друкованих матеріалів,Поштові послуги та поширення друкованих матеріалів,59514,Центральний офіс,38558365,Україна,"Оплата за розповсюдження газети 85000 прим. по м. Черкаси, згідно акту надання послуг з розповсюдження продукції № 2 від 2017-11-27 р.",26008924418040,state,15300.00,Кононенко Катерина Володимирівна,,фізична особа
Самопоміч,"Полтавська область, Кременчук, Переяславська вулиця, 55А",50,2017-12-21,4479,Оплата ефірного часу на радіо,Реклама на радіо,59513,Центральний офіс,38558365,Україна,"Оплата за рекламні послуги на радіо, згідно рахунку на оплату № 108 від 2017-10-31 р.",26008924418040,state,12200.00,Жуков Кирило Леонідович,,фізична особа
Самопоміч,"Львівська область, Львів, вулиця Пекарська, 45",69,2017-12-21,4493,Організація заходів та інші організаційні послуги,Організація заходів та інші організаційні послуги,59512,Центральний офіс,38558365,Україна,"Оплата за організацію і проведення он-лайн прес-конференції, згідно рахунку №80 від 21.12.17р.",26008924418040,state,6400.00,Шостак Ольга Василівна,,фізична особа
Самопоміч,"Львівська область, Львів, вулиця Хорватська, 16",72,2017-12-21,4478,"Придбання, ремонт офісної техніки та програмного забезпечення (Бухгалтерські програми, Ліга.закон, домени)",Придбання офісної техніки та програмного забезпечення,59511,Центральний офіс,38558365,Україна,"Оплата за надання послуг хостингу веб сайту за листопад 2017р., згідно рахунку № р-171201-25 від 2017-12-01р.",26008924418040,state,1359.61,Олійник Любомир Вячеславович,,фізична особа
Самопоміч,"Львівська область, Львів, вулиця Хорватська, 16",72,2017-12-21,4477,"Придбання, ремонт офісної техніки та програмного забезпечення (Бухгалтерські програми, Ліга.закон, домени)",Придбання офісної техніки та програмного забезпечення,59510,Центральний офіс,38558365,Україна,"Оплата за надання послуг хостингу веб сайту за жовтень 2017р., згідно рахунку № р-171031-25 від 2017-10-31р.",26008924418040,state,1359.61,Олійник Любомир Вячеславович,,фізична особа
Самопоміч,"Рівненська область, Острог, проспект Незалежності, 13",74,2017-12-21,4492,"Придбання канцтоварів, паперу, інших предметів і матеріалів, а також госп товари",Придбання канцтоварів та госп. товарів,59509,Центральний офіс,38558365,Україна,"Оплата за канцтовари, згідно рахунку № 34/11-17, від 27.11.17 р.",26008924418040,state,3589.04,Вільбовець Тетяна Михайлівна,,фізична особа
Самопоміч,"Івано-Франківська область, Коломия, вулиця Дружби, 7",58,2017-12-21,4482,"Виготовлення друкованих матеріалів (плакатів, листівок, буклетів та інших агітаційних матеріалів)",Друкована агітація,59508,Центральний офіс,38558365,Україна,"Оплата за виготовлення кольорових постерів А4, згідно акту надання послуг від 2017-12-17 р.",26008924418040,state,26685.00,Бабинюк Богдан Ярославович,3227406316,фізична особа
Самопоміч,"Черкаська область, Черкаси, провулок Громова, 22",43,2017-12-21,4491,Інші витрати,Інші витрати,59507,Центральний офіс,38558365,Україна,"Оплата за банер, згідно рахунку-фактури № АС-0000132 від 2017-11-29 р.",26008924418040,state,1293.00,Сумська Анастасія Станіславівна,,фізична особа
Самопоміч,"Львівська область, Львів, вулиця Городоцька, 165, 70",58,2017-12-21,261193392,"Виготовлення друкованих матеріалів (плакатів, листівок, буклетів та інших агітаційних матеріалів)",Друкована агітація,53078,Центральний офіс,38558365,Україна,’+1110; Оплата за виготовлення друкованих матеріалів передвиборчої агітації згідно рах. № 0000023 від 2017-12-19р.,26006530146200,current,16868.00,Чміль Святослав Львович,3039106214,фізична особа
Самопоміч,"Миколаївська область, Миколаїв, вулиця Клечова балка, 87",58,2017-12-21,410001,"Виготовлення друкованих матеріалів (плакатів, листівок, буклетів та інших агітаційних матеріалів)",Друкована агітація,53066,Центральний офіс,38558365,Україна,’+1110 оплата за виготовлення друкованих матеріалів передвиборної агітації зг. рах. 1612сф06 від 2017-12-16р.; платник Смаровоз Г.Г.,26006530146200,current,520.00,Січкарюк Ростислав Анатолійович,2902710574,фізична особа
Самопоміч,"Херсонська область, Херсон, вулиця Тираспольська, 21",58,2017-12-21,4467,"Виготовлення друкованих матеріалів (плакатів, листівок, буклетів та інших агітаційних матеріалів)",Друкована агітація,52981,Центральний офіс,38558365,Україна,"Оплата за виготовлення друкованої продукції, згідно рахунку на оплату № 209 від 2017-12-11 р.",26008924418040,state,28500.00,Кузнецов Дмитро Борисович,2424201951,фізична особа
Самопоміч,"Тернопільська область, Тернопіль, вулиця Лучаківського, 10, 101",58,2017-12-21,1,"Виготовлення друкованих матеріалів (плакатів, листівок, буклетів та інших агітаційних матеріалів)",Друкована агітація,52804,Центральний офіс,38558365,Україна,"’+1110; Оплата за виготовлення друкованих матеріалів передвиборної агітації згідно рахунку № 255 від 2017-12-13 р., без ПДВ.",26006530146200,current,361.88,Красниця Теодозій Володимирович,1962702237,фізична особа
Самопоміч,"Тернопільська область, Тернопіль, вулиця Лучаківського, 10, 101",58,2017-12-21,410001,"Виготовлення друкованих матеріалів (плакатів, листівок, буклетів та інших агітаційних матеріалів)",Друкована агітація,52794,Центральний офіс,38558365,Україна,оплата за виготовлення друкованих матеріалів передвиборної агітації зг. рахунку № 240 від 2017-12-07 року +;1110; платник Смаровоз Г.Г.,26006530146200,current,361.88,Красниця Теодозій Володимирович,1962702237,фізична особа
Самопоміч,"Тернопільська область, Тернопіль, вулиця Лучаківського, 10, 101",58,2017-12-21,261193600,"Виготовлення друкованих матеріалів (плакатів, листівок, буклетів та інших агітаційних матеріалів)",Друкована агітація,52791,Центральний офіс,38558365,Україна,’+1110; оплата за виготовлення друкованих матеріалів передвиборчої агітації згідно рах. № 262 від 2017-12-19р.,26006530146200,current,361.88,Красниця Теодозій Володимирович,1962702237,фізична особа
Самопоміч,"Тернопільська область, Тернопіль, вулиця Лучаківського, 10, 101",58,2017-12-21,121,"Виготовлення друкованих матеріалів (плакатів, листівок, буклетів та інших агітаційних матеріалів)",Друкована агітація,52788,Центральний офіс,38558365,Україна,"’+1110; оплата за виготовлення друкованих матеріалів передвиборної агітації зг. рах. № 257 від 2017-12-15р., без ПДВ.",26006530146200,current,361.88,Красниця Теодозій Володимирович,1962702237,фізична особа
Самопоміч,"Львівська область, Львів, вулиця Генерала Чупринки, 110, 7",57,2017-12-21,1,Виготовлення брендованої продукції,"Виготовлення брендованої продукції (футболки, кепки, парасольки)",52667,Центральний офіс,38558365,Україна,"+;1140; Оплата за брендовану продукцію згідно рахунку № 39 від 2017-12-05 р., т.ч. ПДВ 20,52 грн.",26006530146200,current,102.62,Портах Володимир Степанович,1702716055,фізична особа
Самопоміч,"Львівська область, Львів, вулиця Генерала Чупринки, 110, 7",57,2017-12-21,410001,Виготовлення брендованої продукції,"Виготовлення брендованої продукції (футболки, кепки, парасольки)",52657,Центральний офіс,38558365,Україна,"Оплата за брендовану продукцію згідно рахунку № 23 від 2017-12-05р.,без ПДВ +;1140; платник Смаровоз Г.Г.",26006530146200,current,102.62,Портах Володимир Степанович,1702716055,фізична особа
Самопоміч,"Львівська область, Львів, вулиця Генерала Чупринки, 110, 7",57,2017-12-21,26194002,Виготовлення брендованої продукції,"Виготовлення брендованої продукції (футболки, кепки, парасольки)",52654,Центральний офіс,38558365,Україна,+;1140; Оплата за брендовану продукцію згідно рахунку № 46 від 2017-12-05р.,26006530146200,current,102.62,Портах Володимир Степанович,1702716055,фізична особа
Самопоміч,"Київська обл., Бориспіль, вулиця Київський шлях, 14",52,2017-12-21,4487,Інша реклама (без класифікації),Реклама (без класифікації),52523,Центральний офіс,38558365,Україна,"Оплата за послуги по рекламі за жовтень 2017р., згідно з актом надання послуг від 31.10.17р.",26008924418040,state,3600.00,ТОВ 'Арайс Груп',40405148,юридична особа
Самопоміч,"Сумська область, Суми, площа Незалежності, 10",51,2017-12-21,4481,Оплата ефірного часу на ТБ,Телереклама,52115,Центральний офіс,38558365,Україна,"Оплата за виготовлення і транслювання відеоматеріалів , згідно рахунку на оплату № 293 від 30.11.17р. в т.ч. ПДВ 2499.99 грн.",26008924418040,state,14999.94,"ТОВ ""Телекомпанія СТС""",39751385,юридична особа
Самопоміч,"Сумська область, Суми, площа Незалежності, 10",51,2017-12-21,4480,Оплата ефірного часу на ТБ,Телереклама,52114,Центральний офіс,38558365,Україна,"Оплата за виготовлення і транслювання відеоматеріалів , згідно рахунку на оплату № 292 від 23.11.17р. в т.ч. ПДВ 2499.99 грн.",26008924418040,state,14999.94,"ТОВ ""Телекомпанія СТС""",39751385,юридична особа
Самопоміч,"Київ, вулиця Миколи Пимоненка, 13Ж",48,2017-12-21,4469,Публікування матеріалів у мережі Інтернет,Реклама в інтернеті,52077,Центральний офіс,38558365,Україна,"Оплата за розміщення реклами в мережі інтернет за жовтень 2017р.,згідно рахунку на оплату № 1017-306 від 2017-10-31р. в т.ч. ПДВ 6222.30 грн.",26008924418040,state,37333.80,"ТОВ ""АДМІКСЕР.ЮА""",39560553,юридична особа
Самопоміч,"Київ, проспект Перемоги, 67, 306",57,2017-12-21,1,Виготовлення брендованої продукції,"Виготовлення брендованої продукції (футболки, кепки, парасольки)",51676,Центральний офіс,38558365,Україна,"+;1140; оплата за брендовану продукцію згідно рахунку № 071217/19 від 2017-12-13 р., у т.ч. ПДВ 103,90 грн.",26006530146200,current,623.40,"ТОВ ’Торговий Дім ""Еней""",38205868,юридична особа
Самопоміч,"Київ, проспект Перемоги, 67, 306",57,2017-12-21,410001,Виготовлення брендованої продукції,"Виготовлення брендованої продукції (футболки, кепки, парасольки)",51666,Центральний офіс,38558365,Україна,+;1140 оплата за брендовану продукцію зг. рахунку № 071217/03 від 2017-12-07року; платник Смаровоз Г.Г.,26006530146200,current,623.40,"ТОВ ’Торговий Дім ""Еней""",38205868,юридична особа
Самопоміч,"Київ, проспект Перемоги, 67, 306",57,2017-12-21,261193753,Виготовлення брендованої продукції,"Виготовлення брендованої продукції (футболки, кепки, парасольки)",51663,Центральний офіс,38558365,Україна,+;1140; Оплата за брендову продукцію згідно рахунку № 071217/26 від 2017-12-19 р.,26006530146200,current,623.40,"ТОВ ’Торговий Дім ""Еней""",38205868,юридична особа
Самопоміч,"Київ, проспект Перемоги, 67, 306",57,2017-12-21,121,Виготовлення брендованої продукції,"Виготовлення брендованої продукції (футболки, кепки, парасольки)",51660,Центральний офіс,38558365,Україна,"+;1140;оплата за брендову продукцію згідно рахунку № 071214/21 від 2017-12-14р., у т.ч. ПДВ 103,90 грн.",26006530146200,current,623.40,"ТОВ ’Торговий Дім ""Еней""",38205868,юридична особа
Самопоміч,"Львівська область, Львів, вулиця Керченська, 8",57,2017-12-21,4476,Виготовлення брендованої продукції,"Виготовлення брендованої продукції (футболки, кепки, парасольки)",51083,Центральний офіс,38558365,Україна,"Оплата за бейджи, згідно рахунку на оплату № 607 від 2017-12-19р. в т.ч. ПДВ 4.26 грн.",26008924418040,state,25.56,"ПП ""APT-ЛІНІЯ""",37483818,юридична особа
Самопоміч,"Львівська область, Львів, вулиця Керченська, 8",57,2017-12-21,4475,Виготовлення брендованої продукції,"Виготовлення брендованої продукції (футболки, кепки, парасольки)",51082,Центральний офіс,38558365,Україна,"Оплата за бейджи, згідно рахунку на оплату № 605 від 2017-12-15р. в т.ч. ПДВ 8.52 грн.",26008924418040,state,51.12,"ПП ""APT-ЛІНІЯ""",37483818,юридична особа
Самопоміч,"Львівська область, Львів, вулиця Керченська, 8, 7",57,2017-12-21,1,Виготовлення брендованої продукції,"Виготовлення брендованої продукції (футболки, кепки, парасольки)",51059,Центральний офіс,38558365,Україна,"+;1140; Оплата за пакети з логотипом згідно рахунку № 570 від 2017-12-07 р., в т.ч. ПДВ 18,00 грн.",26006530146200,current,108.00,"ПП ""APT-ЛІНІЯ""",37483818,юридична особа
Самопоміч,"Львівська область, Львів, вулиця Керченська, 8, 7",57,2017-12-21,410001,Виготовлення брендованої продукції,"Виготовлення брендованої продукції (футболки, кепки, парасольки)",51049,Центральний офіс,38558365,Україна,Оплата за пакети з логотипом згідно рахунку № 55 від 2017-12-07 року +;1140; платник Смаровоз Г.Г.,26006530146200,current,108.00,"ПП ""APT-ЛІНІЯ""",37483818,юридична особа
Самопоміч,"Львівська область, Львів, вулиця Керченська, 8, 7",57,2017-12-21,261193675,Виготовлення брендованої продукції,"Виготовлення брендованої продукції (футболки, кепки, парасольки)",51046,Центральний офіс,38558365,Україна,+;1140; оплата за пакети з логотипом згідно рахунку № 577 від 2017-12-07 р.,26006530146200,current,108.00,"ПП ""APT-ЛІНІЯ""",37483818,юридична особа
Самопоміч,"Львівська область, Львів, вулиця Керченська, 8, 7",57,2017-12-21,121,Виготовлення брендованої продукції,"Виготовлення брендованої продукції (футболки, кепки, парасольки)",51043,Центральний офіс,38558365,Україна,"+;1140; оплата за пакети з логотипом згідно рахунку № 572 від 2017-12-07 р., у т.ч. ПДВ 18,00 грн.",26006530146200,current,108.00,"ПП ""APT-ЛІНІЯ""",37483818,юридична особа
Самопоміч,"Львівська область, Львів, вулиця Широка, 81",58,2017-12-21,4473,"Виготовлення друкованих матеріалів (плакатів, листівок, буклетів та інших агітаційних матеріалів)",Друкована агітація,50236,Центральний офіс,38558365,Україна,"Оплата за листівки, згідно рахунку № 4776 від 20.12.17р. в т.ч. ПДВ 305.00 грн.",26008924418040,state,1830.00,ТОВ 'Ромус-Поліграф',25551379,юридична особа
Самопоміч,"Львівська область, Львів, вулиця Широка, 81",74,2017-12-21,4474,"Придбання канцтоварів, паперу, інших предметів і матеріалів, а також госп товари",Придбання канцтоварів та госп. товарів,50235,Центральний офіс,38558365,Україна,"Оплата за короб. архівні, згідно рахунку № 102527 від 20.12.17р. в т.ч. ПДВ 71.70 грн.",26008924418040,state,430.20,ТОВ 'Ромус-Поліграф',25551379,юридична особа
Самопоміч,"Львівська область, Львів, вулиця Широка, 81",74,2017-12-21,4472,"Придбання канцтоварів, паперу, інших предметів і матеріалів, а також госп товари",Придбання канцтоварів та госп. товарів,50234,Центральний офіс,38558365,Україна,"Оплата за канцтовари, згідно рахунку № 4775 від 20.12.17р. в т.ч. ПДВ 328.00 грн.",26008924418040,state,1968.00,ТОВ 'Ромус-Поліграф',25551379,юридична особа
Самопоміч,"Київ, вулиця Єреванська, 1",70,2017-12-21,4489,Банківські послуги,Інші витрати,49785,Центральний офіс,38558365,Україна,Банківська комісія за відшкодування відрядних витрат,26008924418040,state,54.58,"АБ ""Укргазбанк""",23697280,юридична особа
Самопоміч,"Київ, вулиця Дегтярівська, 53",76,2017-12-21,4483,Послуги зв’язку,Послуги зв’язку,49430,Центральний офіс,38558365,Україна,"Оплата за надані послуги мобільного звʼязку за листопад 2017р., згідно рахунку № 15-21992069 від 2017-11-30р. в т.ч. ПДВ 716,10 грн.",26008924418040,state,4455.14,"ПрАТ ""Київстар""",21673832,юридична особа
Самопоміч,"Київ, бульвар Тараса Шевченка, 18",76,2017-12-21,4485,Послуги зв’язку,Послуги зв’язку,49407,Центральний офіс,38558365,Україна,"Оплата за телекомунікаційні послуги за листопад 2017р., зг. рах-акт №460701000051102017-11-30 від 30.11.17р.зг. договору №4607010000511030 в т.ч. ПДВ 25.36 грн.",26008924418040,state,152.16,"ПАТ ""Укртелеком""",21560766,юридична особа
Самопоміч,"Київ, бульвар Тараса Шевченка, 18",76,2017-12-21,4484,Послуги зв’язку,Послуги зв’язку,49406,Центральний офіс,38558365,Україна,"Оплата за телекомунікаційні послуги за листопад 2017р., зг. рах-акт №460000000001822017-11-95 від 30.11.17р.зг. договору №4600000000018295 в т.ч. ПДВ 29.75 грн.",26008924418040,state,178.50,"ПАТ ""Укртелеком""",21560766,юридична особа
Самопоміч,"Львівська область, Львів, вулиця Козельницька, 3",79,2017-12-21,4470,"Оренда будинків і приміщень та експлуатаційні витрати (прибирання, страхування орендованих будинків, охорона, сигналізація, ремонт, вивіз сміття, тощо)",Оренда нерухомості,48658,Центральний офіс,38558365,Україна,"Оплата за реактивну електроенергію, згідно рахунку №303512/1331758-2 за грудень 2017р. Договір 54512 в т.ч. ПДВ 6.59 грн.",26008924418040,state,39.54,"ПАТ ""Львівобленерго""",00131587,юридична особа
Самопоміч,"Львівська область, Львів, вулиця Козельницька, 3",79,2017-12-21,4471,"Оренда будинків і приміщень та експлуатаційні витрати (прибирання, страхування орендованих будинків, охорона, сигналізація, ремонт, вивіз сміття, тощо)",Оренда нерухомості,48657,Центральний офіс,38558365,Україна,"Оплата за активну електроенергію, згідно рахунку №303512/1331757-1 за грудень 2017р. договір 54512 в т.ч. ПДВ 693.44 грн.",26008924418040,state,4160.64,"ПАТ ""Львівобленерго""",00131587,юридична особа
Самопоміч,"Львівська область, Львів, вулиця Скрипника, 23",79,2017-12-20,4399,"Оренда будинків і приміщень та експлуатаційні витрати (прибирання, страхування орендованих будинків, охорона, сигналізація, ремонт, вивіз сміття, тощо)",Оренда нерухомості,59506,Центральний офіс,38558365,Україна,"Оплата оренди нерухомого майна з 2017-12-01р. по 2017-12-20 р., згідно акту наданих послуг від 20.12.17р",26008924418040,state,968.00,Смолярчук Максим Юрійович,,фізична особа
Самопоміч,"Львівська область, Стебник, вулиця Михайла Грушевського, 13",82,2017-12-20,4466,"Гонорари, в тому числі за надані консультаційні послуги","Гонорари, в тому числі за надані консультаційні послуги",59505,Центральний офіс,38558365,Україна,"Оплата за юридичні послуги за період з 2017-12-01 р. до 2017-12-20 р., згідно акту про надання послуг № 7 від 2017-12-20 р.",26008924418040,state,16000.00,Романишин Тарас Миколайович,,фізична особа
Самопоміч,"Житомирська область, Житомир, проспект Миру, 51",79,2017-12-20,4451,"Оренда будинків і приміщень та експлуатаційні витрати (прибирання, страхування орендованих будинків, охорона, сигналізація, ремонт, вивіз сміття, тощо)",Оренда нерухомості,59504,Центральний офіс,38558365,Україна,"Оплата за суборенду нерухомого майна у листопаді 2017 р., згідно акту наданих послуг від 2017-11-30 р.",26008924418040,state,4000.00,Антонов Максим Юрійович,,фізична особа
Самопоміч,"Житомирська область, Житомир, проспект Миру, 51",79,2017-12-20,4450,"Оренда будинків і приміщень та експлуатаційні витрати (прибирання, страхування орендованих будинків, охорона, сигналізація, ремонт, вивіз сміття, тощо)",Оренда нерухомості,59503,Центральний офіс,38558365,Україна,"Оплата за суборенду нерухомого майна у жовтні 2017 р., згідно акту наданих послуг від 2017-10-31 р.",26008924418040,state,4000.00,Антонов Максим Юрійович,,фізична особа
